{"text_format":"3","workbook":"xlsx","n_sheets":8,"sheets":["Instruções","02_Fornecedores","03_Itens","04_Solicitações","05_Cotações","06_Compras","07_Cálculos","08_Relatórios"],"not_rendered":{"charts":3,"images":6,"macros":1},"read":"whole","date_system":"1900"}

{"sheet":"Instruções","index":0,"n_rows":60,"n_cols":4,"rows_kept":60}
["http://authenticator.sapphirebusinesstech.com:8080/access/v1/validate"]
["123456789"]
["contact@sapphirebusinesstech.com",null,null,"Any use for this file other than sample using and technical analysis without authorization is stricly prohibited and protected by copyright"]
[{"$nulls":3},"Qualquer uso desse arquivo sem autorização outro que uso de exemplo e análise técnica é extritamente proibida e protegida por direitos autorais."]
[200,null,null,"Cualquier uso de este archivo sin autorización que no sea para fines de ejemplo o análisis técnico está estrictamente prohibido y está protegido por derechos de autor."]
[]
[{"$f":"IF(A12=\"\",0,TODAY()-A12)","v":0}]
[]
[]
[]
[]
[null,null,"📋 CONTROLE DE COMPRAS E COTAÇÕES — GUIA DE USO"]
[null,null,"📌 VISÃO GERAL DA PLANILHA"]
[null,null,"Esta planilha foi projetada para controle completo do processo de compras:"]
[null,null,"• Cadastre fornecedores e itens/serviços padronizados"]
[null,null,"• Registre solicitações de compra com prazos e valores de referência"]
[null,null,"• Lance múltiplas cotações por solicitação e compare preço, prazo e condição"]
[null,null,"• Identifique automaticamente a melhor cotação (menor preço)"]
[null,null,"• Registre a compra fechada e acompanhe entrega e economia real"]
[null,null,"• Visualize indicadores consolidados na aba de Relatórios"]
[]
[null,null,"📖 PASSO A PASSO DE USO"]
[null,null,"Siga esta ordem para melhor uso da planilha:"]
[null,null,"Passo 1 — Cadastre seus Fornecedores na aba 02_Fornecedores","Preencha código, nome, contato, e-mail, cidade e status (Ativo/Inativo)."]
[null,null,"Passo 2 — Cadastre seus Itens/Serviços na aba 03_Itens","Padronize descrições, categorias e unidades para evitar erros."]
[null,null,"Passo 3 — Registre Solicitações de Compra na aba 04_Solicitações","Informe item, quantidade, prazo máximo e valor de referência."]
[null,null,"Passo 4 — Registre as Cotações recebidas na aba 05_Cotações","Lance várias propostas por solicitação. O sistema calcula o valor final automaticamente."]
[null,null,"Passo 5 — Compare e escolha o melhor fornecedor","Use os filtros da tabela de cotações e a formatação condicional (verde = menor preço)."]
[null,null,"Passo 6 — Registre a Compra Fechada na aba 06_Compras","Informe o fornecedor vencedor, valor final negociado e prazo de entrega."]
[null,null,"Passo 7 — Acompanhe entregas e economia","Preencha a data de recebimento. O status de entrega é calculado automaticamente."]
[null,null,"Passo 8 — Consulte os Relatórios na aba 08_Relatórios","Veja indicadores, gráficos e rankings atualizados automaticamente."]
[]
[null,null,"⚠️ REGRAS E CUIDADOS"]
[null,null,"• NÃO exclua ou renomeie colunas das tabelas — as fórmulas dependem dos nomes."]
[null,null,"• NÃO apague células com fórmulas (colunas sombreadas em cinza claro)."]
[null,null,"• Campos monetários estão formatados em R$ — digite apenas números."]
[null,null,"• Datas devem ser digitadas no formato dd/mm/aaaa."]
[null,null,"• Use os filtros nativos das tabelas para localizar registros."]
[null,null,"• A aba 07_Cálculos é automática — não edite manualmente."]
[null,null,"• A aba 08_Relatórios é atualizada automaticamente a partir dos cálculos."]
[null,null,"• Use os botões na linha 4 de cada aba para navegar entre as seções."]
[null,null,"• Mantenha os IDs únicos (SOL0001, COT0001, COM0001, FOR001, ITM001)."]
[]
[null,null,"🟢 LEGENDA DE STATUS E INDICADORES"]
[null,null,"Status da Solicitação"]
[null,null,"Aberta","Solicitação registrada, aguardando início das cotações"]
[null,null,"Em cotação","Cotações sendo recebidas de fornecedores"]
[null,null,"Cotação concluída","Todas as propostas recebidas, pronto para decisão"]
[null,null,"Compra fechada","Fornecedor escolhido e compra registrada na aba 06_Compras"]
[null,null,"Cancelada","Solicitação cancelada — não prossegue"]
[]
[null,null,"Status de Entrega (automático)"]
[null,null,"Em aberto","Produto/serviço ainda não recebido"]
[null,null,"Recebida no prazo","Entregue até a data prevista — ótimo!"]
[null,null,"Recebida com atraso","Entregue após a data prevista — atenção"]
[]
[null,null,"💰 Entendendo a Economia Obtida"]
[null,null,"Economia Potencial","Diferença entre a maior e a menor cotação para a mesma solicitação."]
[null,null,"Economia pela Escolha","Diferença entre a maior cotação e o valor efetivamente fechado."]
[null,null,"Economia na Negociação","Diferença entre a cotação original escolhida e o valor final negociado."]

{"sheet":"02_Fornecedores","index":1,"n_rows":7,"n_cols":12,"rows_kept":7,"hidden":true}
["http://authenticator.sapphirebusinesstech.com:8080/access/v1/validate"]
[]
[]
[]
[]
[null,null,"🏢 CADASTRO DE FORNECEDORES"]
[null,null,"Código Fornecedor","Fornecedor","Nome Contato","Telefone","E-mail","Cidade/UF","Prazo Médio Histórico (dias)","Condição de Pagamento Padrão","Categoria Principal","Status"]

{"sheet":"03_Itens","index":2,"n_rows":7,"n_cols":9,"rows_kept":7,"hidden":true}
["http://authenticator.sapphirebusinesstech.com:8080/access/v1/validate"]
[]
[]
[]
[]
[null,null,"📦 CADASTRO DE ITENS / SERVIÇOS"]
[null,null,"Código Item","Categoria","Item/Serviço","Unidade","Preço Referência Unit. (R$)","Observação Técnica","Ativo"]

{"sheet":"04_Solicitações","index":3,"n_rows":8,"n_cols":16,"rows_kept":8,"hidden":true}
["http://authenticator.sapphirebusinesstech.com:8080/access/v1/validate"]
[]
[]
[]
[]
[null,null,"📝 REGISTRO DE SOLICITAÇÕES DE COMPRA"]
[null,null,"ID Solicitação","Data Solicitação","Solicitante","Centro de Custo","Categoria","Item/Serviço","Quantidade","Unidade","Preço Referência Unit. (R$)","Valor Referência Total (R$)","Prazo Máximo (dias)","Data Limite Necessidade","Status Solicitação","Observações"]
[{"$nulls":11},{"$f":"tblSolicitacoes[[#This Row],[Quantidade]]*tblSolicitacoes[[#This Row],[Preço Referência Unit. (R$)]]","v":0},null,{"$f":"tblSolicitacoes[[#This Row],[Data Solicitação]]+tblSolicitacoes[[#This Row],[Prazo Máximo (dias)]]","v":"00:00:00"}]

{"sheet":"05_Cotações","index":4,"n_rows":8,"n_cols":19,"rows_kept":8,"hidden":true}
["http://authenticator.sapphirebusinesstech.com:8080/access/v1/validate"]
[]
[]
[]
[]
[null,null,"📈 REGISTRO DE COTAÇÕES"]
[null,null,"ID Cotação","ID Solicitação","Fornecedor","Data Cotação","Item/Serviço","Quantidade","Preço Unitário (R$)","Desconto (R$)","Frete (R$)","Valor Produto (R$)","Valor Final Cotado (R$)","Prazo Entrega (dias)","Data Prevista Entrega","Condição de Pagamento","Validade da Cotação","Atende Prazo?","Observações"]
[{"$nulls":11},{"$f":"tblCotacoes[[#This Row],[Quantidade]]*tblCotacoes[[#This Row],[Preço Unitário (R$)]]","v":0},{"$f":"tblCotacoes[[#This Row],[Valor Produto (R$)]]-tblCotacoes[[#This Row],[Desconto (R$)]]+tblCotacoes[[#This Row],[Frete (R$)]]","v":0},null,{"$f":"tblCotacoes[[#This Row],[Data Cotação]]+tblCotacoes[[#This Row],[Prazo Entrega (dias)]]","v":"00:00:00"},null,null,{"$f":"IFERROR(IF(tblCotacoes[[#This Row],[Data Prevista Entrega]]<=VLOOKUP(tblCotacoes[[#This Row],[ID Solicitação]],tblSolicitacoes[[ID Solicitação]:[Data Limite Necessidade]],12,FALSE),\"SIM\",\"NÃO\"),\"\")","v":""}]

{"sheet":"06_Compras","index":5,"n_rows":8,"n_cols":15,"rows_kept":8,"hidden":true}
["http://authenticator.sapphirebusinesstech.com:8080/access/v1/validate"]
[]
[]
[]
[]
[null,null,"✅ REGISTRO DE COMPRAS FECHADAS"]
[null,null,"ID Compra","ID Solicitação","ID Cotação Escolhida","Fornecedor Escolhido","Data Fechamento","Valor Cotado Original (R$)","Valor Final Fechado (R$)","Economia Negociada (R$)","Data Prevista Entrega","Data Recebimento","Status Entrega","Diferença Prazo (dias)","Observações"]
[{"$nulls":7},{"$f":"IFERROR(VLOOKUP(tblCompras[[#This Row],[ID Cotação Escolhida]],tblCotacoes[[ID Cotação]:[Valor Final Cotado (R$)]],11,FALSE),0)","v":0},null,{"$f":"tblCompras[[#This Row],[Valor Cotado Original (R$)]]-tblCompras[[#This Row],[Valor Final Fechado (R$)]]","v":0},null,null,{"$f":"IF(tblCompras[[#This Row],[Data Recebimento]]=\"\",\"Em aberto\",IF(tblCompras[[#This Row],[Data Recebimento]]<=tblCompras[[#This Row],[Data Prevista Entrega]],\"Recebida no prazo\",\"Recebida com atraso\"))","v":"Em aberto"},{"$f":"IF(tblCompras[[#This Row],[Data Recebimento]]=\"\",\"\",tblCompras[[#This Row],[Data Recebimento]]-tblCompras[[#This Row],[Data Prevista Entrega]])","v":""}]

{"sheet":"07_Cálculos","index":6,"n_rows":198,"n_cols":11,"rows_kept":198,"hidden":true}
["http://authenticator.sapphirebusinesstech.com:8080/access/v1/validate"]
[]
[]
[]
[]
[null,null,"📊 BASE DE CÁLCULOS E CONSOLIDAÇÃO"]
[null,null,"Indicador","Valor","Observação"]
[null,null,"Total de Solicitações",{"$f":"COUNTIF(tblSolicitacoes[ID Solicitação],\"<>\")","v":0},"Quantidade de solicitações registradas"]
[null,null,"Total de Cotações",{"$f":"COUNTIF(tblCotacoes[ID Cotação],\"<>\")","v":0},"Quantidade de cotações recebidas"]
[null,null,"Total Comprado (R$)",{"$f":"SUM(tblCompras[Valor Final Fechado (R$)])","v":0},"Soma dos valores efetivamente fechados"]
[null,null,"Economia Negociada Total (R$)",{"$f":"SUM(tblCompras[Economia Negociada (R$)])","v":0},"Diferença entre cotado e fechado"]
[null,null,"Compras em Aberto",{"$f":"COUNTIF(tblCompras[Status Entrega],\"Em aberto\")","v":1},"Aguardando recebimento"]
[null,null,"Entregas no Prazo",{"$f":"COUNTIF(tblCompras[Status Entrega],\"Recebida no prazo\")","v":0},"Entregues até a data prevista"]
[null,null,"Entregas com Atraso",{"$f":"COUNTIF(tblCompras[Status Entrega],\"Recebida com atraso\")","v":0},"Entregues após a data prevista"]
[null,null,"Prazo Médio Ofertado (dias)",{"$f":"IFERROR(AVERAGE(tblCotacoes[Prazo Entrega (dias)]),0)","v":{"v":0,"d":"0.0"}},"Média de prazo das cotações"]
[]
[null,null,"📝 RESUMO POR SOLICITAÇÃO"]
[null,null,"ID Solicitação","Qtd Cotações","Menor Cotação (R$)","Maior Cotação (R$)","Economia Potencial (R$)","Valor Fechado (R$)","Economia Real (R$)","Melhor Prazo Cotado (dias)","Situação Final"]
[null,null,{"$f":"IFERROR(INDEX(tblSolicitacoes[ID Solicitação],ROW(A1)),\"\")","v":0},{"$f":"IF(C19=\"\",\"\",COUNTIFS(tblCotacoes[ID Solicitação],C19))","v":0},{"$f":"IF(C19=\"\",\"\",_xlfn.MINIFS(tblCotacoes[Valor Final Cotado (R$)],tblCotacoes[ID Solicitação],C19))","v":0},{"$f":"IF(C19=\"\",\"\",_xlfn.MAXIFS(tblCotacoes[Valor Final Cotado (R$)],tblCotacoes[ID Solicitação],C19))","v":0},{"$f":"IF(F19=\"\",\"\",F19-E19)","v":0},{"$f":"IF(C19=\"\",\"\",SUMIFS(tblCompras[Valor Final Fechado (R$)],tblCompras[ID Solicitação],C19))","v":0},{"$f":"IF(H19=\"\",\"\",F19-H19)","v":0},{"$f":"IF(C19=\"\",\"\",_xlfn.MINIFS(tblCotacoes[Prazo Entrega (dias)],tblCotacoes[ID Solicitação],C19))","v":0},{"$f":"IF(H19>0,\"Comprada\",\"Em aberto\")","v":"Em aberto"}]
[null,null,{"$f":"IFERROR(INDEX(tblSolicitacoes[ID Solicitação],ROW(A2)),\"\")","v":""},{"$f":"IF(C20=\"\",\"\",COUNTIFS(tblCotacoes[ID Solicitação],C20))","v":""},{"$f":"IF(C20=\"\",\"\",_xlfn.MINIFS(tblCotacoes[Valor Final Cotado (R$)],tblCotacoes[ID Solicitação],C20))","v":""},{"$f":"IF(C20=\"\",\"\",_xlfn.MAXIFS(tblCotacoes[Valor Final Cotado (R$)],tblCotacoes[ID Solicitação],C20))","v":""},"",{"$f":"IF(C20=\"\",\"\",SUMIFS(tblCompras[Valor Final Fechado (R$)],tblCompras[ID Solicitação],C20))","v":""},"",{"$f":"IF(C20=\"\",\"\",_xlfn.MINIFS(tblCotacoes[Prazo Entrega (dias)],tblCotacoes[ID Solicitação],C20))","v":""},"Comprada"]
[null,null,{"$f":"IFERROR(INDEX(tblSolicitacoes[ID Solicitação],ROW(A3)),\"\")","v":""},{"$f":"IF(C21=\"\",\"\",COUNTIFS(tblCotacoes[ID Solicitação],C21))","v":""},{"$f":"IF(C21=\"\",\"\",_xlfn.MINIFS(tblCotacoes[Valor Final Cotado (R$)],tblCotacoes[ID Solicitação],C21))","v":""},{"$f":"IF(C21=\"\",\"\",_xlfn.MAXIFS(tblCotacoes[Valor Final Cotado (R$)],tblCotacoes[ID Solicitação],C21))","v":""},"",{"$f":"IF(C21=\"\",\"\",SUMIFS(tblCompras[Valor Final Fechado (R$)],tblCompras[ID Solicitação],C21))","v":""},"",{"$f":"IF(C21=\"\",\"\",_xlfn.MINIFS(tblCotacoes[Prazo Entrega (dias)],tblCotacoes[ID Solicitação],C21))","v":""},"Comprada"]
[null,null,{"$f":"IFERROR(INDEX(tblSolicitacoes[ID Solicitação],ROW(A4)),\"\")","v":""},{"$f":"IF(C22=\"\",\"\",COUNTIFS(tblCotacoes[ID Solicitação],C22))","v":""},{"$f":"IF(C22=\"\",\"\",_xlfn.MINIFS(tblCotacoes[Valor Final Cotado (R$)],tblCotacoes[ID Solicitação],C22))","v":""},{"$f":"IF(C22=\"\",\"\",_xlfn.MAXIFS(tblCotacoes[Valor Final Cotado (R$)],tblCotacoes[ID Solicitação],C22))","v":""},"",{"$f":"IF(C22=\"\",\"\",SUMIFS(tblCompras[Valor Final Fechado (R$)],tblCompras[ID Solicitação],C22))","v":""},"",{"$f":"IF(C22=\"\",\"\",_xlfn.MINIFS(tblCotacoes[Prazo Entrega (dias)],tblCotacoes[ID Solicitação],C22))","v":""},"Comprada"]
[null,null,{"$f":"IFERROR(INDEX(tblSolicitacoes[ID Solicitação],ROW(A5)),\"\")","v":""},{"$f":"IF(C23=\"\",\"\",COUNTIFS(tblCotacoes[ID Solicitação],C23))","v":""},{"$f":"IF(C23=\"\",\"\",_xlfn.MINIFS(tblCotacoes[Valor Final Cotado (R$)],tblCotacoes[ID Solicitação],C23))","v":""},{"$f":"IF(C23=\"\",\"\",_xlfn.MAXIFS(tblCotacoes[Valor Final Cotado (R$)],tblCotacoes[ID Solicitação],C23))","v":""},"",{"$f":"IF(C23=\"\",\"\",SUMIFS(tblCompras[Valor Final Fechado (R$)],tblCompras[ID Solicitação],C23))","v":""},"",{"$f":"IF(C23=\"\",\"\",_xlfn.MINIFS(tblCotacoes[Prazo Entrega (dias)],tblCotacoes[ID Solicitação],C23))","v":""},"Comprada"]
[null,null,{"$f":"IFERROR(INDEX(tblSolicitacoes[ID Solicitação],ROW(A6)),\"\")","v":""},{"$f":"IF(C24=\"\",\"\",COUNTIFS(tblCotacoes[ID Solicitação],C24))","v":""},{"$f":"IF(C24=\"\",\"\",_xlfn.MINIFS(tblCotacoes[Valor Final Cotado (R$)],tblCotacoes[ID Solicitação],C24))","v":""},{"$f":"IF(C24=\"\",\"\",_xlfn.MAXIFS(tblCotacoes[Valor Final Cotado (R$)],tblCotacoes[ID Solicitação],C24))","v":""},"",{"$f":"IF(C24=\"\",\"\",SUMIFS(tblCompras[Valor Final Fechado (R$)],tblCompras[ID Solicitação],C24))","v":""},"",{"$f":"IF(C24=\"\",\"\",_xlfn.MINIFS(tblCotacoes[Prazo Entrega (dias)],tblCotacoes[ID Solicitação],C24))","v":""},"Comprada"]
[null,null,{"$f":"IFERROR(INDEX(tblSolicitacoes[ID Solicitação],ROW(A7)),\"\")","v":""},{"$f":"IF(C25=\"\",\"\",COUNTIFS(tblCotacoes[ID Solicitação],C25))","v":""},{"$f":"IF(C25=\"\",\"\",_xlfn.MINIFS(tblCotacoes[Valor Final Cotado (R$)],tblCotacoes[ID Solicitação],C25))","v":""},{"$f":"IF(C25=\"\",\"\",_xlfn.MAXIFS(tblCotacoes[Valor Final Cotado (R$)],tblCotacoes[ID Solicitação],C25))","v":""},"",{"$f":"IF(C25=\"\",\"\",SUMIFS(tblCompras[Valor Final Fechado (R$)],tblCompras[ID Solicitação],C25))","v":""},"",{"$f":"IF(C25=\"\",\"\",_xlfn.MINIFS(tblCotacoes[Prazo Entrega (dias)],tblCotacoes[ID Solicitação],C25))","v":""},"Comprada"]
[null,null,{"$f":"IFERROR(INDEX(tblSolicitacoes[ID Solicitação],ROW(A8)),\"\")","v":""},{"$f":"IF(C26=\"\",\"\",COUNTIFS(tblCotacoes[ID Solicitação],C26))","v":""},{"$f":"IF(C26=\"\",\"\",_xlfn.MINIFS(tblCotacoes[Valor Final Cotado (R$)],tblCotacoes[ID Solicitação],C26))","v":""},{"$f":"IF(C26=\"\",\"\",_xlfn.MAXIFS(tblCotacoes[Valor Final Cotado (R$)],tblCotacoes[ID Solicitação],C26))","v":""},"",{"$f":"IF(C26=\"\",\"\",SUMIFS(tblCompras[Valor Final Fechado (R$)],tblCompras[ID Solicitação],C26))","v":""},"",{"$f":"IF(C26=\"\",\"\",_xlfn.MINIFS(tblCotacoes[Prazo Entrega (dias)],tblCotacoes[ID Solicitação],C26))","v":""},"Comprada"]
[null,null,{"$f":"IFERROR(INDEX(tblSolicitacoes[ID Solicitação],ROW(A9)),\"\")","v":""},{"$f":"IF(C27=\"\",\"\",COUNTIFS(tblCotacoes[ID Solicitação],C27))","v":""},{"$f":"IF(C27=\"\",\"\",_xlfn.MINIFS(tblCotacoes[Valor Final Cotado (R$)],tblCotacoes[ID Solicitação],C27))","v":""},{"$f":"IF(C27=\"\",\"\",_xlfn.MAXIFS(tblCotacoes[Valor Final Cotado (R$)],tblCotacoes[ID Solicitação],C27))","v":""},"",{"$f":"IF(C27=\"\",\"\",SUMIFS(tblCompras[Valor Final Fechado (R$)],tblCompras[ID Solicitação],C27))","v":""},"",{"$f":"IF(C27=\"\",\"\",_xlfn.MINIFS(tblCotacoes[Prazo Entrega (dias)],tblCotacoes[ID Solicitação],C27))","v":""},"Comprada"]
[null,null,{"$f":"IFERROR(INDEX(tblSolicitacoes[ID Solicitação],ROW(A10)),\"\")","v":""},{"$f":"IF(C28=\"\",\"\",COUNTIFS(tblCotacoes[ID Solicitação],C28))","v":""},{"$f":"IF(C28=\"\",\"\",_xlfn.MINIFS(tblCotacoes[Valor Final Cotado (R$)],tblCotacoes[ID Solicitação],C28))","v":""},{"$f":"IF(C28=\"\",\"\",_xlfn.MAXIFS(tblCotacoes[Valor Final Cotado (R$)],tblCotacoes[ID Solicitação],C28))","v":""},"",{"$f":"IF(C28=\"\",\"\",SUMIFS(tblCompras[Valor Final Fechado (R$)],tblCompras[ID Solicitação],C28))","v":""},"",{"$f":"IF(C28=\"\",\"\",_xlfn.MINIFS(tblCotacoes[Prazo Entrega (dias)],tblCotacoes[ID Solicitação],C28))","v":""},"Comprada"]
[null,null,{"$f":"IFERROR(INDEX(tblSolicitacoes[ID Solicitação],ROW(A11)),\"\")","v":""},{"$f":"IF(C29=\"\",\"\",COUNTIFS(tblCotacoes[ID Solicitação],C29))","v":""},{"$f":"IF(C29=\"\",\"\",_xlfn.MINIFS(tblCotacoes[Valor Final Cotado (R$)],tblCotacoes[ID Solicitação],C29))","v":""},{"$f":"IF(C29=\"\",\"\",_xlfn.MAXIFS(tblCotacoes[Valor Final Cotado (R$)],tblCotacoes[ID Solicitação],C29))","v":""},"",{"$f":"IF(C29=\"\",\"\",SUMIFS(tblCompras[Valor Final Fechado (R$)],tblCompras[ID Solicitação],C29))","v":""},"",{"$f":"IF(C29=\"\",\"\",_xlfn.MINIFS(tblCotacoes[Prazo Entrega (dias)],tblCotacoes[ID Solicitação],C29))","v":""},"Comprada"]
[null,null,{"$f":"IFERROR(INDEX(tblSolicitacoes[ID Solicitação],ROW(A12)),\"\")","v":""},{"$f":"IF(C30=\"\",\"\",COUNTIFS(tblCotacoes[ID Solicitação],C30))","v":""},{"$f":"IF(C30=\"\",\"\",_xlfn.MINIFS(tblCotacoes[Valor Final Cotado (R$)],tblCotacoes[ID Solicitação],C30))","v":""},{"$f":"IF(C30=\"\",\"\",_xlfn.MAXIFS(tblCotacoes[Valor Final Cotado (R$)],tblCotacoes[ID Solicitação],C30))","v":""},"",{"$f":"IF(C30=\"\",\"\",SUMIFS(tblCompras[Valor Final Fechado (R$)],tblCompras[ID Solicitação],C30))","v":""},"",{"$f":"IF(C30=\"\",\"\",_xlfn.MINIFS(tblCotacoes[Prazo Entrega (dias)],tblCotacoes[ID Solicitação],C30))","v":""},"Comprada"]
[null,null,{"$f":"IFERROR(INDEX(tblSolicitacoes[ID Solicitação],ROW(A13)),\"\")","v":""},{"$f":"IF(C31=\"\",\"\",COUNTIFS(tblCotacoes[ID Solicitação],C31))","v":""},{"$f":"IF(C31=\"\",\"\",_xlfn.MINIFS(tblCotacoes[Valor Final Cotado (R$)],tblCotacoes[ID Solicitação],C31))","v":""},{"$f":"IF(C31=\"\",\"\",_xlfn.MAXIFS(tblCotacoes[Valor Final Cotado (R$)],tblCotacoes[ID Solicitação],C31))","v":""},"",{"$f":"IF(C31=\"\",\"\",SUMIFS(tblCompras[Valor Final Fechado (R$)],tblCompras[ID Solicitação],C31))","v":""},"",{"$f":"IF(C31=\"\",\"\",_xlfn.MINIFS(tblCotacoes[Prazo Entrega (dias)],tblCotacoes[ID Solicitação],C31))","v":""},"Comprada"]
[null,null,{"$f":"IFERROR(INDEX(tblSolicitacoes[ID Solicitação],ROW(A14)),\"\")","v":""},{"$f":"IF(C32=\"\",\"\",COUNTIFS(tblCotacoes[ID Solicitação],C32))","v":""},{"$f":"IF(C32=\"\",\"\",_xlfn.MINIFS(tblCotacoes[Valor Final Cotado (R$)],tblCotacoes[ID Solicitação],C32))","v":""},{"$f":"IF(C32=\"\",\"\",_xlfn.MAXIFS(tblCotacoes[Valor Final Cotado (R$)],tblCotacoes[ID Solicitação],C32))","v":""},"",{"$f":"IF(C32=\"\",\"\",SUMIFS(tblCompras[Valor Final Fechado (R$)],tblCompras[ID Solicitação],C32))","v":""},"",{"$f":"IF(C32=\"\",\"\",_xlfn.MINIFS(tblCotacoes[Prazo Entrega (dias)],tblCotacoes[ID Solicitação],C32))","v":""},"Comprada"]
[null,null,{"$f":"IFERROR(INDEX(tblSolicitacoes[ID Solicitação],ROW(A15)),\"\")","v":""},{"$f":"IF(C33=\"\",\"\",COUNTIFS(tblCotacoes[ID Solicitação],C33))","v":""},{"$f":"IF(C33=\"\",\"\",_xlfn.MINIFS(tblCotacoes[Valor Final Cotado (R$)],tblCotacoes[ID Solicitação],C33))","v":""},{"$f":"IF(C33=\"\",\"\",_xlfn.MAXIFS(tblCotacoes[Valor Final Cotado (R$)],tblCotacoes[ID Solicitação],C33))","v":""},"",{"$f":"IF(C33=\"\",\"\",SUMIFS(tblCompras[Valor Final Fechado (R$)],tblCompras[ID Solicitação],C33))","v":""},"",{"$f":"IF(C33=\"\",\"\",_xlfn.MINIFS(tblCotacoes[Prazo Entrega (dias)],tblCotacoes[ID Solicitação],C33))","v":""},"Comprada"]
[null,null,{"$f":"IFERROR(INDEX(tblSolicitacoes[ID Solicitação],ROW(A16)),\"\")","v":""},{"$f":"IF(C34=\"\",\"\",COUNTIFS(tblCotacoes[ID Solicitação],C34))","v":""},{"$f":"IF(C34=\"\",\"\",_xlfn.MINIFS(tblCotacoes[Valor Final Cotado (R$)],tblCotacoes[ID Solicitação],C34))","v":""},{"$f":"IF(C34=\"\",\"\",_xlfn.MAXIFS(tblCotacoes[Valor Final Cotado (R$)],tblCotacoes[ID Solicitação],C34))","v":""},"",{"$f":"IF(C34=\"\",\"\",SUMIFS(tblCompras[Valor Final Fechado (R$)],tblCompras[ID Solicitação],C34))","v":""},"",{"$f":"IF(C34=\"\",\"\",_xlfn.MINIFS(tblCotacoes[Prazo Entrega (dias)],tblCotacoes[ID Solicitação],C34))","v":""},"Comprada"]
[null,null,{"$f":"IFERROR(INDEX(tblSolicitacoes[ID Solicitação],ROW(A17)),\"\")","v":""},{"$f":"IF(C35=\"\",\"\",COUNTIFS(tblCotacoes[ID Solicitação],C35))","v":""},{"$f":"IF(C35=\"\",\"\",_xlfn.MINIFS(tblCotacoes[Valor Final Cotado (R$)],tblCotacoes[ID Solicitação],C35))","v":""},{"$f":"IF(C35=\"\",\"\",_xlfn.MAXIFS(tblCotacoes[Valor Final Cotado (R$)],tblCotacoes[ID Solicitação],C35))","v":""},"",{"$f":"IF(C35=\"\",\"\",SUMIFS(tblCompras[Valor Final Fechado (R$)],tblCompras[ID Solicitação],C35))","v":""},"",{"$f":"IF(C35=\"\",\"\",_xlfn.MINIFS(tblCotacoes[Prazo Entrega (dias)],tblCotacoes[ID Solicitação],C35))","v":""},"Comprada"]
[null,null,{"$f":"IFERROR(INDEX(tblSolicitacoes[ID Solicitação],ROW(A18)),\"\")","v":""},{"$f":"IF(C36=\"\",\"\",COUNTIFS(tblCotacoes[ID Solicitação],C36))","v":""},{"$f":"IF(C36=\"\",\"\",_xlfn.MINIFS(tblCotacoes[Valor Final Cotado (R$)],tblCotacoes[ID Solicitação],C36))","v":""},{"$f":"IF(C36=\"\",\"\",_xlfn.MAXIFS(tblCotacoes[Valor Final Cotado (R$)],tblCotacoes[ID Solicitação],C36))","v":""},"",{"$f":"IF(C36=\"\",\"\",SUMIFS(tblCompras[Valor Final Fechado (R$)],tblCompras[ID Solicitação],C36))","v":""},"",{"$f":"IF(C36=\"\",\"\",_xlfn.MINIFS(tblCotacoes[Prazo Entrega (dias)],tblCotacoes[ID Solicitação],C36))","v":""},"Comprada"]
[null,null,{"$f":"IFERROR(INDEX(tblSolicitacoes[ID Solicitação],ROW(A19)),\"\")","v":""},{"$f":"IF(C37=\"\",\"\",COUNTIFS(tblCotacoes[ID Solicitação],C37))","v":""},{"$f":"IF(C37=\"\",\"\",_xlfn.MINIFS(tblCotacoes[Valor Final Cotado (R$)],tblCotacoes[ID Solicitação],C37))","v":""},{"$f":"IF(C37=\"\",\"\",_xlfn.MAXIFS(tblCotacoes[Valor Final Cotado (R$)],tblCotacoes[ID Solicitação],C37))","v":""},"",{"$f":"IF(C37=\"\",\"\",SUMIFS(tblCompras[Valor Final Fechado (R$)],tblCompras[ID Solicitação],C37))","v":""},"",{"$f":"IF(C37=\"\",\"\",_xlfn.MINIFS(tblCotacoes[Prazo Entrega (dias)],tblCotacoes[ID Solicitação],C37))","v":""},"Comprada"]
[null,null,{"$f":"IFERROR(INDEX(tblSolicitacoes[ID Solicitação],ROW(A20)),\"\")","v":""},{"$f":"IF(C38=\"\",\"\",COUNTIFS(tblCotacoes[ID Solicitação],C38))","v":""},{"$f":"IF(C38=\"\",\"\",_xlfn.MINIFS(tblCotacoes[Valor Final Cotado (R$)],tblCotacoes[ID Solicitação],C38))","v":""},{"$f":"IF(C38=\"\",\"\",_xlfn.MAXIFS(tblCotacoes[Valor Final Cotado (R$)],tblCotacoes[ID Solicitação],C38))","v":""},"",{"$f":"IF(C38=\"\",\"\",SUMIFS(tblCompras[Valor Final Fechado (R$)],tblCompras[ID Solicitação],C38))","v":""},"",{"$f":"IF(C38=\"\",\"\",_xlfn.MINIFS(tblCotacoes[Prazo Entrega (dias)],tblCotacoes[ID Solicitação],C38))","v":""},"Comprada"]
[null,null,{"$f":"IFERROR(INDEX(tblSolicitacoes[ID Solicitação],ROW(A21)),\"\")","v":""},{"$f":"IF(C39=\"\",\"\",COUNTIFS(tblCotacoes[ID Solicitação],C39))","v":""},{"$f":"IF(C39=\"\",\"\",_xlfn.MINIFS(tblCotacoes[Valor Final Cotado (R$)],tblCotacoes[ID Solicitação],C39))","v":""},{"$f":"IF(C39=\"\",\"\",_xlfn.MAXIFS(tblCotacoes[Valor Final Cotado (R$)],tblCotacoes[ID Solicitação],C39))","v":""},"",{"$f":"IF(C39=\"\",\"\",SUMIFS(tblCompras[Valor Final Fechado (R$)],tblCompras[ID Solicitação],C39))","v":""},"",{"$f":"IF(C39=\"\",\"\",_xlfn.MINIFS(tblCotacoes[Prazo Entrega (dias)],tblCotacoes[ID Solicitação],C39))","v":""},"Comprada"]
[null,null,{"$f":"IFERROR(INDEX(tblSolicitacoes[ID Solicitação],ROW(A22)),\"\")","v":""},{"$f":"IF(C40=\"\",\"\",COUNTIFS(tblCotacoes[ID Solicitação],C40))","v":""},{"$f":"IF(C40=\"\",\"\",_xlfn.MINIFS(tblCotacoes[Valor Final Cotado (R$)],tblCotacoes[ID Solicitação],C40))","v":""},{"$f":"IF(C40=\"\",\"\",_xlfn.MAXIFS(tblCotacoes[Valor Final Cotado (R$)],tblCotacoes[ID Solicitação],C40))","v":""},"",{"$f":"IF(C40=\"\",\"\",SUMIFS(tblCompras[Valor Final Fechado (R$)],tblCompras[ID Solicitação],C40))","v":""},"",{"$f":"IF(C40=\"\",\"\",_xlfn.MINIFS(tblCotacoes[Prazo Entrega (dias)],tblCotacoes[ID Solicitação],C40))","v":""},"Comprada"]
[null,null,{"$f":"IFERROR(INDEX(tblSolicitacoes[ID Solicitação],ROW(A23)),\"\")","v":""},{"$f":"IF(C41=\"\",\"\",COUNTIFS(tblCotacoes[ID Solicitação],C41))","v":""},{"$f":"IF(C41=\"\",\"\",_xlfn.MINIFS(tblCotacoes[Valor Final Cotado (R$)],tblCotacoes[ID Solicitação],C41))","v":""},{"$f":"IF(C41=\"\",\"\",_xlfn.MAXIFS(tblCotacoes[Valor Final Cotado (R$)],tblCotacoes[ID Solicitação],C41))","v":""},"",{"$f":"IF(C41=\"\",\"\",SUMIFS(tblCompras[Valor Final Fechado (R$)],tblCompras[ID Solicitação],C41))","v":""},"",{"$f":"IF(C41=\"\",\"\",_xlfn.MINIFS(tblCotacoes[Prazo Entrega (dias)],tblCotacoes[ID Solicitação],C41))","v":""},"Comprada"]
[null,null,{"$f":"IFERROR(INDEX(tblSolicitacoes[ID Solicitação],ROW(A24)),\"\")","v":""},{"$f":"IF(C42=\"\",\"\",COUNTIFS(tblCotacoes[ID Solicitação],C42))","v":""},{"$f":"IF(C42=\"\",\"\",_xlfn.MINIFS(tblCotacoes[Valor Final Cotado (R$)],tblCotacoes[ID Solicitação],C42))","v":""},{"$f":"IF(C42=\"\",\"\",_xlfn.MAXIFS(tblCotacoes[Valor Final Cotado (R$)],tblCotacoes[ID Solicitação],C42))","v":""},"",{"$f":"IF(C42=\"\",\"\",SUMIFS(tblCompras[Valor Final Fechado (R$)],tblCompras[ID Solicitação],C42))","v":""},"",{"$f":"IF(C42=\"\",\"\",_xlfn.MINIFS(tblCotacoes[Prazo Entrega (dias)],tblCotacoes[ID Solicitação],C42))","v":""},"Comprada"]
[null,null,{"$f":"IFERROR(INDEX(tblSolicitacoes[ID Solicitação],ROW(A25)),\"\")","v":""},{"$f":"IF(C43=\"\",\"\",COUNTIFS(tblCotacoes[ID Solicitação],C43))","v":""},{"$f":"IF(C43=\"\",\"\",_xlfn.MINIFS(tblCotacoes[Valor Final Cotado (R$)],tblCotacoes[ID Solicitação],C43))","v":""},{"$f":"IF(C43=\"\",\"\",_xlfn.MAXIFS(tblCotacoes[Valor Final Cotado (R$)],tblCotacoes[ID Solicitação],C43))","v":""},"",{"$f":"IF(C43=\"\",\"\",SUMIFS(tblCompras[Valor Final Fechado (R$)],tblCompras[ID Solicitação],C43))","v":""},"",{"$f":"IF(C43=\"\",\"\",_xlfn.MINIFS(tblCotacoes[Prazo Entrega (dias)],tblCotacoes[ID Solicitação],C43))","v":""},"Comprada"]
[null,null,{"$f":"IFERROR(INDEX(tblSolicitacoes[ID Solicitação],ROW(A26)),\"\")","v":""},{"$f":"IF(C44=\"\",\"\",COUNTIFS(tblCotacoes[ID Solicitação],C44))","v":""},{"$f":"IF(C44=\"\",\"\",_xlfn.MINIFS(tblCotacoes[Valor Final Cotado (R$)],tblCotacoes[ID Solicitação],C44))","v":""},{"$f":"IF(C44=\"\",\"\",_xlfn.MAXIFS(tblCotacoes[Valor Final Cotado (R$)],tblCotacoes[ID Solicitação],C44))","v":""},"",{"$f":"IF(C44=\"\",\"\",SUMIFS(tblCompras[Valor Final Fechado (R$)],tblCompras[ID Solicitação],C44))","v":""},"",{"$f":"IF(C44=\"\",\"\",_xlfn.MINIFS(tblCotacoes[Prazo Entrega (dias)],tblCotacoes[ID Solicitação],C44))","v":""},"Comprada"]
[null,null,{"$f":"IFERROR(INDEX(tblSolicitacoes[ID Solicitação],ROW(A27)),\"\")","v":""},{"$f":"IF(C45=\"\",\"\",COUNTIFS(tblCotacoes[ID Solicitação],C45))","v":""},{"$f":"IF(C45=\"\",\"\",_xlfn.MINIFS(tblCotacoes[Valor Final Cotado (R$)],tblCotacoes[ID Solicitação],C45))","v":""},{"$f":"IF(C45=\"\",\"\",_xlfn.MAXIFS(tblCotacoes[Valor Final Cotado (R$)],tblCotacoes[ID Solicitação],C45))","v":""},"",{"$f":"IF(C45=\"\",\"\",SUMIFS(tblCompras[Valor Final Fechado (R$)],tblCompras[ID Solicitação],C45))","v":""},"",{"$f":"IF(C45=\"\",\"\",_xlfn.MINIFS(tblCotacoes[Prazo Entrega (dias)],tblCotacoes[ID Solicitação],C45))","v":""},"Comprada"]
[null,null,{"$f":"IFERROR(INDEX(tblSolicitacoes[ID Solicitação],ROW(A28)),\"\")","v":""},{"$f":"IF(C46=\"\",\"\",COUNTIFS(tblCotacoes[ID Solicitação],C46))","v":""},{"$f":"IF(C46=\"\",\"\",_xlfn.MINIFS(tblCotacoes[Valor Final Cotado (R$)],tblCotacoes[ID Solicitação],C46))","v":""},{"$f":"IF(C46=\"\",\"\",_xlfn.MAXIFS(tblCotacoes[Valor Final Cotado (R$)],tblCotacoes[ID Solicitação],C46))","v":""},"",{"$f":"IF(C46=\"\",\"\",SUMIFS(tblCompras[Valor Final Fechado (R$)],tblCompras[ID Solicitação],C46))","v":""},"",{"$f":"IF(C46=\"\",\"\",_xlfn.MINIFS(tblCotacoes[Prazo Entrega (dias)],tblCotacoes[ID Solicitação],C46))","v":""},"Comprada"]
[null,null,{"$f":"IFERROR(INDEX(tblSolicitacoes[ID Solicitação],ROW(A29)),\"\")","v":""},{"$f":"IF(C47=\"\",\"\",COUNTIFS(tblCotacoes[ID Solicitação],C47))","v":""},{"$f":"IF(C47=\"\",\"\",_xlfn.MINIFS(tblCotacoes[Valor Final Cotado (R$)],tblCotacoes[ID Solicitação],C47))","v":""},{"$f":"IF(C47=\"\",\"\",_xlfn.MAXIFS(tblCotacoes[Valor Final Cotado (R$)],tblCotacoes[ID Solicitação],C47))","v":""},"",{"$f":"IF(C47=\"\",\"\",SUMIFS(tblCompras[Valor Final Fechado (R$)],tblCompras[ID Solicitação],C47))","v":""},"",{"$f":"IF(C47=\"\",\"\",_xlfn.MINIFS(tblCotacoes[Prazo Entrega (dias)],tblCotacoes[ID Solicitação],C47))","v":""},"Comprada"]
[null,null,{"$f":"IFERROR(INDEX(tblSolicitacoes[ID Solicitação],ROW(A30)),\"\")","v":""},{"$f":"IF(C48=\"\",\"\",COUNTIFS(tblCotacoes[ID Solicitação],C48))","v":""},{"$f":"IF(C48=\"\",\"\",_xlfn.MINIFS(tblCotacoes[Valor Final Cotado (R$)],tblCotacoes[ID Solicitação],C48))","v":""},{"$f":"IF(C48=\"\",\"\",_xlfn.MAXIFS(tblCotacoes[Valor Final Cotado (R$)],tblCotacoes[ID Solicitação],C48))","v":""},"",{"$f":"IF(C48=\"\",\"\",SUMIFS(tblCompras[Valor Final Fechado (R$)],tblCompras[ID Solicitação],C48))","v":""},"",{"$f":"IF(C48=\"\",\"\",_xlfn.MINIFS(tblCotacoes[Prazo Entrega (dias)],tblCotacoes[ID Solicitação],C48))","v":""},"Comprada"]
[null,null,{"$f":"IFERROR(INDEX(tblSolicitacoes[ID Solicitação],ROW(A31)),\"\")","v":""},{"$f":"IF(C49=\"\",\"\",COUNTIFS(tblCotacoes[ID Solicitação],C49))","v":""},{"$f":"IF(C49=\"\",\"\",_xlfn.MINIFS(tblCotacoes[Valor Final Cotado (R$)],tblCotacoes[ID Solicitação],C49))","v":""},{"$f":"IF(C49=\"\",\"\",_xlfn.MAXIFS(tblCotacoes[Valor Final Cotado (R$)],tblCotacoes[ID Solicitação],C49))","v":""},"",{"$f":"IF(C49=\"\",\"\",SUMIFS(tblCompras[Valor Final Fechado (R$)],tblCompras[ID Solicitação],C49))","v":""},"",{"$f":"IF(C49=\"\",\"\",_xlfn.MINIFS(tblCotacoes[Prazo Entrega (dias)],tblCotacoes[ID Solicitação],C49))","v":""},"Comprada"]
[null,null,{"$f":"IFERROR(INDEX(tblSolicitacoes[ID Solicitação],ROW(A32)),\"\")","v":""},{"$f":"IF(C50=\"\",\"\",COUNTIFS(tblCotacoes[ID Solicitação],C50))","v":""},{"$f":"IF(C50=\"\",\"\",_xlfn.MINIFS(tblCotacoes[Valor Final Cotado (R$)],tblCotacoes[ID Solicitação],C50))","v":""},{"$f":"IF(C50=\"\",\"\",_xlfn.MAXIFS(tblCotacoes[Valor Final Cotado (R$)],tblCotacoes[ID Solicitação],C50))","v":""},"",{"$f":"IF(C50=\"\",\"\",SUMIFS(tblCompras[Valor Final Fechado (R$)],tblCompras[ID Solicitação],C50))","v":""},"",{"$f":"IF(C50=\"\",\"\",_xlfn.MINIFS(tblCotacoes[Prazo Entrega (dias)],tblCotacoes[ID Solicitação],C50))","v":""},"Comprada"]
[null,null,{"$f":"IFERROR(INDEX(tblSolicitacoes[ID Solicitação],ROW(A33)),\"\")","v":""},{"$f":"IF(C51=\"\",\"\",COUNTIFS(tblCotacoes[ID Solicitação],C51))","v":""},{"$f":"IF(C51=\"\",\"\",_xlfn.MINIFS(tblCotacoes[Valor Final Cotado (R$)],tblCotacoes[ID Solicitação],C51))","v":""},{"$f":"IF(C51=\"\",\"\",_xlfn.MAXIFS(tblCotacoes[Valor Final Cotado (R$)],tblCotacoes[ID Solicitação],C51))","v":""},{"$f":"IF(F51=\"\",\"\",F51-E51)","v":""},{"$f":"IF(C51=\"\",\"\",SUMIFS(tblCompras[Valor Final Fechado (R$)],tblCompras[ID Solicitação],C51))","v":""},{"$f":"IF(H51=\"\",\"\",F51-H51)","v":""},{"$f":"IF(C51=\"\",\"\",_xlfn.MINIFS(tblCotacoes[Prazo Entrega (dias)],tblCotacoes[ID Solicitação],C51))","v":""},{"$f":"IF(H51>0,\"Comprada\",\"Em aberto\")","v":"Comprada"}]
[null,null,{"$f":"IFERROR(INDEX(tblSolicitacoes[ID Solicitação],ROW(A34)),\"\")","v":""},{"$f":"IF(C52=\"\",\"\",COUNTIFS(tblCotacoes[ID Solicitação],C52))","v":""},{"$f":"IF(C52=\"\",\"\",_xlfn.MINIFS(tblCotacoes[Valor Final Cotado (R$)],tblCotacoes[ID Solicitação],C52))","v":""},{"$f":"IF(C52=\"\",\"\",_xlfn.MAXIFS(tblCotacoes[Valor Final Cotado (R$)],tblCotacoes[ID Solicitação],C52))","v":""},"",{"$f":"IF(C52=\"\",\"\",SUMIFS(tblCompras[Valor Final Fechado (R$)],tblCompras[ID Solicitação],C52))","v":""},"",{"$f":"IF(C52=\"\",\"\",_xlfn.MINIFS(tblCotacoes[Prazo Entrega (dias)],tblCotacoes[ID Solicitação],C52))","v":""},"Comprada"]
[null,null,{"$f":"IFERROR(INDEX(tblSolicitacoes[ID Solicitação],ROW(A35)),\"\")","v":""},{"$f":"IF(C53=\"\",\"\",COUNTIFS(tblCotacoes[ID Solicitação],C53))","v":""},{"$f":"IF(C53=\"\",\"\",_xlfn.MINIFS(tblCotacoes[Valor Final Cotado (R$)],tblCotacoes[ID Solicitação],C53))","v":""},{"$f":"IF(C53=\"\",\"\",_xlfn.MAXIFS(tblCotacoes[Valor Final Cotado (R$)],tblCotacoes[ID Solicitação],C53))","v":""},"",{"$f":"IF(C53=\"\",\"\",SUMIFS(tblCompras[Valor Final Fechado (R$)],tblCompras[ID Solicitação],C53))","v":""},"",{"$f":"IF(C53=\"\",\"\",_xlfn.MINIFS(tblCotacoes[Prazo Entrega (dias)],tblCotacoes[ID Solicitação],C53))","v":""},"Comprada"]
[null,null,{"$f":"IFERROR(INDEX(tblSolicitacoes[ID Solicitação],ROW(A36)),\"\")","v":""},{"$f":"IF(C54=\"\",\"\",COUNTIFS(tblCotacoes[ID Solicitação],C54))","v":""},{"$f":"IF(C54=\"\",\"\",_xlfn.MINIFS(tblCotacoes[Valor Final Cotado (R$)],tblCotacoes[ID Solicitação],C54))","v":""},{"$f":"IF(C54=\"\",\"\",_xlfn.MAXIFS(tblCotacoes[Valor Final Cotado (R$)],tblCotacoes[ID Solicitação],C54))","v":""},"",{"$f":"IF(C54=\"\",\"\",SUMIFS(tblCompras[Valor Final Fechado (R$)],tblCompras[ID Solicitação],C54))","v":""},"",{"$f":"IF(C54=\"\",\"\",_xlfn.MINIFS(tblCotacoes[Prazo Entrega (dias)],tblCotacoes[ID Solicitação],C54))","v":""},"Comprada"]
[null,null,{"$f":"IFERROR(INDEX(tblSolicitacoes[ID Solicitação],ROW(A37)),\"\")","v":""},{"$f":"IF(C55=\"\",\"\",COUNTIFS(tblCotacoes[ID Solicitação],C55))","v":""},{"$f":"IF(C55=\"\",\"\",_xlfn.MINIFS(tblCotacoes[Valor Final Cotado (R$)],tblCotacoes[ID Solicitação],C55))","v":""},{"$f":"IF(C55=\"\",\"\",_xlfn.MAXIFS(tblCotacoes[Valor Final Cotado (R$)],tblCotacoes[ID Solicitação],C55))","v":""},"",{"$f":"IF(C55=\"\",\"\",SUMIFS(tblCompras[Valor Final Fechado (R$)],tblCompras[ID Solicitação],C55))","v":""},"",{"$f":"IF(C55=\"\",\"\",_xlfn.MINIFS(tblCotacoes[Prazo Entrega (dias)],tblCotacoes[ID Solicitação],C55))","v":""},"Comprada"]
[null,null,{"$f":"IFERROR(INDEX(tblSolicitacoes[ID Solicitação],ROW(A38)),\"\")","v":""},{"$f":"IF(C56=\"\",\"\",COUNTIFS(tblCotacoes[ID Solicitação],C56))","v":""},{"$f":"IF(C56=\"\",\"\",_xlfn.MINIFS(tblCotacoes[Valor Final Cotado (R$)],tblCotacoes[ID Solicitação],C56))","v":""},{"$f":"IF(C56=\"\",\"\",_xlfn.MAXIFS(tblCotacoes[Valor Final Cotado (R$)],tblCotacoes[ID Solicitação],C56))","v":""},"",{"$f":"IF(C56=\"\",\"\",SUMIFS(tblCompras[Valor Final Fechado (R$)],tblCompras[ID Solicitação],C56))","v":""},"",{"$f":"IF(C56=\"\",\"\",_xlfn.MINIFS(tblCotacoes[Prazo Entrega (dias)],tblCotacoes[ID Solicitação],C56))","v":""},"Comprada"]
[null,null,{"$f":"IFERROR(INDEX(tblSolicitacoes[ID Solicitação],ROW(A39)),\"\")","v":""},{"$f":"IF(C57=\"\",\"\",COUNTIFS(tblCotacoes[ID Solicitação],C57))","v":""},{"$f":"IF(C57=\"\",\"\",_xlfn.MINIFS(tblCotacoes[Valor Final Cotado (R$)],tblCotacoes[ID Solicitação],C57))","v":""},{"$f":"IF(C57=\"\",\"\",_xlfn.MAXIFS(tblCotacoes[Valor Final Cotado (R$)],tblCotacoes[ID Solicitação],C57))","v":""},"",{"$f":"IF(C57=\"\",\"\",SUMIFS(tblCompras[Valor Final Fechado (R$)],tblCompras[ID Solicitação],C57))","v":""},"",{"$f":"IF(C57=\"\",\"\",_xlfn.MINIFS(tblCotacoes[Prazo Entrega (dias)],tblCotacoes[ID Solicitação],C57))","v":""},"Comprada"]
[null,null,{"$f":"IFERROR(INDEX(tblSolicitacoes[ID Solicitação],ROW(A40)),\"\")","v":""},{"$f":"IF(C58=\"\",\"\",COUNTIFS(tblCotacoes[ID Solicitação],C58))","v":""},{"$f":"IF(C58=\"\",\"\",_xlfn.MINIFS(tblCotacoes[Valor Final Cotado (R$)],tblCotacoes[ID Solicitação],C58))","v":""},{"$f":"IF(C58=\"\",\"\",_xlfn.MAXIFS(tblCotacoes[Valor Final Cotado (R$)],tblCotacoes[ID Solicitação],C58))","v":""},"",{"$f":"IF(C58=\"\",\"\",SUMIFS(tblCompras[Valor Final Fechado (R$)],tblCompras[ID Solicitação],C58))","v":""},"",{"$f":"IF(C58=\"\",\"\",_xlfn.MINIFS(tblCotacoes[Prazo Entrega (dias)],tblCotacoes[ID Solicitação],C58))","v":""},"Comprada"]
[null,null,{"$f":"IFERROR(INDEX(tblSolicitacoes[ID Solicitação],ROW(A41)),\"\")","v":""},{"$f":"IF(C59=\"\",\"\",COUNTIFS(tblCotacoes[ID Solicitação],C59))","v":""},{"$f":"IF(C59=\"\",\"\",_xlfn.MINIFS(tblCotacoes[Valor Final Cotado (R$)],tblCotacoes[ID Solicitação],C59))","v":""},{"$f":"IF(C59=\"\",\"\",_xlfn.MAXIFS(tblCotacoes[Valor Final Cotado (R$)],tblCotacoes[ID Solicitação],C59))","v":""},"",{"$f":"IF(C59=\"\",\"\",SUMIFS(tblCompras[Valor Final Fechado (R$)],tblCompras[ID Solicitação],C59))","v":""},"",{"$f":"IF(C59=\"\",\"\",_xlfn.MINIFS(tblCotacoes[Prazo Entrega (dias)],tblCotacoes[ID Solicitação],C59))","v":""},"Comprada"]
[null,null,{"$f":"IFERROR(INDEX(tblSolicitacoes[ID Solicitação],ROW(A42)),\"\")","v":""},{"$f":"IF(C60=\"\",\"\",COUNTIFS(tblCotacoes[ID Solicitação],C60))","v":""},{"$f":"IF(C60=\"\",\"\",_xlfn.MINIFS(tblCotacoes[Valor Final Cotado (R$)],tblCotacoes[ID Solicitação],C60))","v":""},{"$f":"IF(C60=\"\",\"\",_xlfn.MAXIFS(tblCotacoes[Valor Final Cotado (R$)],tblCotacoes[ID Solicitação],C60))","v":""},"",{"$f":"IF(C60=\"\",\"\",SUMIFS(tblCompras[Valor Final Fechado (R$)],tblCompras[ID Solicitação],C60))","v":""},"",{"$f":"IF(C60=\"\",\"\",_xlfn.MINIFS(tblCotacoes[Prazo Entrega (dias)],tblCotacoes[ID Solicitação],C60))","v":""},"Comprada"]
[null,null,{"$f":"IFERROR(INDEX(tblSolicitacoes[ID Solicitação],ROW(A43)),\"\")","v":""},{"$f":"IF(C61=\"\",\"\",COUNTIFS(tblCotacoes[ID Solicitação],C61))","v":""},{"$f":"IF(C61=\"\",\"\",_xlfn.MINIFS(tblCotacoes[Valor Final Cotado (R$)],tblCotacoes[ID Solicitação],C61))","v":""},{"$f":"IF(C61=\"\",\"\",_xlfn.MAXIFS(tblCotacoes[Valor Final Cotado (R$)],tblCotacoes[ID Solicitação],C61))","v":""},"",{"$f":"IF(C61=\"\",\"\",SUMIFS(tblCompras[Valor Final Fechado (R$)],tblCompras[ID Solicitação],C61))","v":""},"",{"$f":"IF(C61=\"\",\"\",_xlfn.MINIFS(tblCotacoes[Prazo Entrega (dias)],tblCotacoes[ID Solicitação],C61))","v":""},"Comprada"]
[null,null,{"$f":"IFERROR(INDEX(tblSolicitacoes[ID Solicitação],ROW(A44)),\"\")","v":""},{"$f":"IF(C62=\"\",\"\",COUNTIFS(tblCotacoes[ID Solicitação],C62))","v":""},{"$f":"IF(C62=\"\",\"\",_xlfn.MINIFS(tblCotacoes[Valor Final Cotado (R$)],tblCotacoes[ID Solicitação],C62))","v":""},{"$f":"IF(C62=\"\",\"\",_xlfn.MAXIFS(tblCotacoes[Valor Final Cotado (R$)],tblCotacoes[ID Solicitação],C62))","v":""},"",{"$f":"IF(C62=\"\",\"\",SUMIFS(tblCompras[Valor Final Fechado (R$)],tblCompras[ID Solicitação],C62))","v":""},"",{"$f":"IF(C62=\"\",\"\",_xlfn.MINIFS(tblCotacoes[Prazo Entrega (dias)],tblCotacoes[ID Solicitação],C62))","v":""},"Comprada"]
[null,null,{"$f":"IFERROR(INDEX(tblSolicitacoes[ID Solicitação],ROW(A45)),\"\")","v":""},{"$f":"IF(C63=\"\",\"\",COUNTIFS(tblCotacoes[ID Solicitação],C63))","v":""},{"$f":"IF(C63=\"\",\"\",_xlfn.MINIFS(tblCotacoes[Valor Final Cotado (R$)],tblCotacoes[ID Solicitação],C63))","v":""},{"$f":"IF(C63=\"\",\"\",_xlfn.MAXIFS(tblCotacoes[Valor Final Cotado (R$)],tblCotacoes[ID Solicitação],C63))","v":""},"",{"$f":"IF(C63=\"\",\"\",SUMIFS(tblCompras[Valor Final Fechado (R$)],tblCompras[ID Solicitação],C63))","v":""},"",{"$f":"IF(C63=\"\",\"\",_xlfn.MINIFS(tblCotacoes[Prazo Entrega (dias)],tblCotacoes[ID Solicitação],C63))","v":""},"Comprada"]
[null,null,{"$f":"IFERROR(INDEX(tblSolicitacoes[ID Solicitação],ROW(A46)),\"\")","v":""},{"$f":"IF(C64=\"\",\"\",COUNTIFS(tblCotacoes[ID Solicitação],C64))","v":""},{"$f":"IF(C64=\"\",\"\",_xlfn.MINIFS(tblCotacoes[Valor Final Cotado (R$)],tblCotacoes[ID Solicitação],C64))","v":""},{"$f":"IF(C64=\"\",\"\",_xlfn.MAXIFS(tblCotacoes[Valor Final Cotado (R$)],tblCotacoes[ID Solicitação],C64))","v":""},"",{"$f":"IF(C64=\"\",\"\",SUMIFS(tblCompras[Valor Final Fechado (R$)],tblCompras[ID Solicitação],C64))","v":""},"",{"$f":"IF(C64=\"\",\"\",_xlfn.MINIFS(tblCotacoes[Prazo Entrega (dias)],tblCotacoes[ID Solicitação],C64))","v":""},"Comprada"]
[null,null,{"$f":"IFERROR(INDEX(tblSolicitacoes[ID Solicitação],ROW(A47)),\"\")","v":""},{"$f":"IF(C65=\"\",\"\",COUNTIFS(tblCotacoes[ID Solicitação],C65))","v":""},{"$f":"IF(C65=\"\",\"\",_xlfn.MINIFS(tblCotacoes[Valor Final Cotado (R$)],tblCotacoes[ID Solicitação],C65))","v":""},{"$f":"IF(C65=\"\",\"\",_xlfn.MAXIFS(tblCotacoes[Valor Final Cotado (R$)],tblCotacoes[ID Solicitação],C65))","v":""},"",{"$f":"IF(C65=\"\",\"\",SUMIFS(tblCompras[Valor Final Fechado (R$)],tblCompras[ID Solicitação],C65))","v":""},"",{"$f":"IF(C65=\"\",\"\",_xlfn.MINIFS(tblCotacoes[Prazo Entrega (dias)],tblCotacoes[ID Solicitação],C65))","v":""},"Comprada"]
[null,null,{"$f":"IFERROR(INDEX(tblSolicitacoes[ID Solicitação],ROW(A48)),\"\")","v":""},{"$f":"IF(C66=\"\",\"\",COUNTIFS(tblCotacoes[ID Solicitação],C66))","v":""},{"$f":"IF(C66=\"\",\"\",_xlfn.MINIFS(tblCotacoes[Valor Final Cotado (R$)],tblCotacoes[ID Solicitação],C66))","v":""},{"$f":"IF(C66=\"\",\"\",_xlfn.MAXIFS(tblCotacoes[Valor Final Cotado (R$)],tblCotacoes[ID Solicitação],C66))","v":""},"",{"$f":"IF(C66=\"\",\"\",SUMIFS(tblCompras[Valor Final Fechado (R$)],tblCompras[ID Solicitação],C66))","v":""},"",{"$f":"IF(C66=\"\",\"\",_xlfn.MINIFS(tblCotacoes[Prazo Entrega (dias)],tblCotacoes[ID Solicitação],C66))","v":""},"Comprada"]
[null,null,{"$f":"IFERROR(INDEX(tblSolicitacoes[ID Solicitação],ROW(A49)),\"\")","v":""},{"$f":"IF(C67=\"\",\"\",COUNTIFS(tblCotacoes[ID Solicitação],C67))","v":""},{"$f":"IF(C67=\"\",\"\",_xlfn.MINIFS(tblCotacoes[Valor Final Cotado (R$)],tblCotacoes[ID Solicitação],C67))","v":""},{"$f":"IF(C67=\"\",\"\",_xlfn.MAXIFS(tblCotacoes[Valor Final Cotado (R$)],tblCotacoes[ID Solicitação],C67))","v":""},"",{"$f":"IF(C67=\"\",\"\",SUMIFS(tblCompras[Valor Final Fechado (R$)],tblCompras[ID Solicitação],C67))","v":""},"",{"$f":"IF(C67=\"\",\"\",_xlfn.MINIFS(tblCotacoes[Prazo Entrega (dias)],tblCotacoes[ID Solicitação],C67))","v":""},"Comprada"]
[null,null,{"$f":"IFERROR(INDEX(tblSolicitacoes[ID Solicitação],ROW(A50)),\"\")","v":""},{"$f":"IF(C68=\"\",\"\",COUNTIFS(tblCotacoes[ID Solicitação],C68))","v":""},{"$f":"IF(C68=\"\",\"\",_xlfn.MINIFS(tblCotacoes[Valor Final Cotado (R$)],tblCotacoes[ID Solicitação],C68))","v":""},{"$f":"IF(C68=\"\",\"\",_xlfn.MAXIFS(tblCotacoes[Valor Final Cotado (R$)],tblCotacoes[ID Solicitação],C68))","v":""},"",{"$f":"IF(C68=\"\",\"\",SUMIFS(tblCompras[Valor Final Fechado (R$)],tblCompras[ID Solicitação],C68))","v":""},"",{"$f":"IF(C68=\"\",\"\",_xlfn.MINIFS(tblCotacoes[Prazo Entrega (dias)],tblCotacoes[ID Solicitação],C68))","v":""},"Comprada"]
[null,null,{"$f":"IFERROR(INDEX(tblSolicitacoes[ID Solicitação],ROW(A51)),\"\")","v":""},{"$f":"IF(C69=\"\",\"\",COUNTIFS(tblCotacoes[ID Solicitação],C69))","v":""},{"$f":"IF(C69=\"\",\"\",_xlfn.MINIFS(tblCotacoes[Valor Final Cotado (R$)],tblCotacoes[ID Solicitação],C69))","v":""},{"$f":"IF(C69=\"\",\"\",_xlfn.MAXIFS(tblCotacoes[Valor Final Cotado (R$)],tblCotacoes[ID Solicitação],C69))","v":""},"",{"$f":"IF(C69=\"\",\"\",SUMIFS(tblCompras[Valor Final Fechado (R$)],tblCompras[ID Solicitação],C69))","v":""},"",{"$f":"IF(C69=\"\",\"\",_xlfn.MINIFS(tblCotacoes[Prazo Entrega (dias)],tblCotacoes[ID Solicitação],C69))","v":""},"Comprada"]
[null,null,{"$f":"IFERROR(INDEX(tblSolicitacoes[ID Solicitação],ROW(A52)),\"\")","v":""},{"$f":"IF(C70=\"\",\"\",COUNTIFS(tblCotacoes[ID Solicitação],C70))","v":""},{"$f":"IF(C70=\"\",\"\",_xlfn.MINIFS(tblCotacoes[Valor Final Cotado (R$)],tblCotacoes[ID Solicitação],C70))","v":""},{"$f":"IF(C70=\"\",\"\",_xlfn.MAXIFS(tblCotacoes[Valor Final Cotado (R$)],tblCotacoes[ID Solicitação],C70))","v":""},"",{"$f":"IF(C70=\"\",\"\",SUMIFS(tblCompras[Valor Final Fechado (R$)],tblCompras[ID Solicitação],C70))","v":""},"",{"$f":"IF(C70=\"\",\"\",_xlfn.MINIFS(tblCotacoes[Prazo Entrega (dias)],tblCotacoes[ID Solicitação],C70))","v":""},"Comprada"]
[null,null,{"$f":"IFERROR(INDEX(tblSolicitacoes[ID Solicitação],ROW(A53)),\"\")","v":""},{"$f":"IF(C71=\"\",\"\",COUNTIFS(tblCotacoes[ID Solicitação],C71))","v":""},{"$f":"IF(C71=\"\",\"\",_xlfn.MINIFS(tblCotacoes[Valor Final Cotado (R$)],tblCotacoes[ID Solicitação],C71))","v":""},{"$f":"IF(C71=\"\",\"\",_xlfn.MAXIFS(tblCotacoes[Valor Final Cotado (R$)],tblCotacoes[ID Solicitação],C71))","v":""},"",{"$f":"IF(C71=\"\",\"\",SUMIFS(tblCompras[Valor Final Fechado (R$)],tblCompras[ID Solicitação],C71))","v":""},"",{"$f":"IF(C71=\"\",\"\",_xlfn.MINIFS(tblCotacoes[Prazo Entrega (dias)],tblCotacoes[ID Solicitação],C71))","v":""},"Comprada"]
[null,null,{"$f":"IFERROR(INDEX(tblSolicitacoes[ID Solicitação],ROW(A54)),\"\")","v":""},{"$f":"IF(C72=\"\",\"\",COUNTIFS(tblCotacoes[ID Solicitação],C72))","v":""},{"$f":"IF(C72=\"\",\"\",_xlfn.MINIFS(tblCotacoes[Valor Final Cotado (R$)],tblCotacoes[ID Solicitação],C72))","v":""},{"$f":"IF(C72=\"\",\"\",_xlfn.MAXIFS(tblCotacoes[Valor Final Cotado (R$)],tblCotacoes[ID Solicitação],C72))","v":""},"",{"$f":"IF(C72=\"\",\"\",SUMIFS(tblCompras[Valor Final Fechado (R$)],tblCompras[ID Solicitação],C72))","v":""},"",{"$f":"IF(C72=\"\",\"\",_xlfn.MINIFS(tblCotacoes[Prazo Entrega (dias)],tblCotacoes[ID Solicitação],C72))","v":""},"Comprada"]
[null,null,{"$f":"IFERROR(INDEX(tblSolicitacoes[ID Solicitação],ROW(A55)),\"\")","v":""},{"$f":"IF(C73=\"\",\"\",COUNTIFS(tblCotacoes[ID Solicitação],C73))","v":""},{"$f":"IF(C73=\"\",\"\",_xlfn.MINIFS(tblCotacoes[Valor Final Cotado (R$)],tblCotacoes[ID Solicitação],C73))","v":""},{"$f":"IF(C73=\"\",\"\",_xlfn.MAXIFS(tblCotacoes[Valor Final Cotado (R$)],tblCotacoes[ID Solicitação],C73))","v":""},"",{"$f":"IF(C73=\"\",\"\",SUMIFS(tblCompras[Valor Final Fechado (R$)],tblCompras[ID Solicitação],C73))","v":""},"",{"$f":"IF(C73=\"\",\"\",_xlfn.MINIFS(tblCotacoes[Prazo Entrega (dias)],tblCotacoes[ID Solicitação],C73))","v":""},"Comprada"]
[null,null,{"$f":"IFERROR(INDEX(tblSolicitacoes[ID Solicitação],ROW(A56)),\"\")","v":""},{"$f":"IF(C74=\"\",\"\",COUNTIFS(tblCotacoes[ID Solicitação],C74))","v":""},{"$f":"IF(C74=\"\",\"\",_xlfn.MINIFS(tblCotacoes[Valor Final Cotado (R$)],tblCotacoes[ID Solicitação],C74))","v":""},{"$f":"IF(C74=\"\",\"\",_xlfn.MAXIFS(tblCotacoes[Valor Final Cotado (R$)],tblCotacoes[ID Solicitação],C74))","v":""},"",{"$f":"IF(C74=\"\",\"\",SUMIFS(tblCompras[Valor Final Fechado (R$)],tblCompras[ID Solicitação],C74))","v":""},"",{"$f":"IF(C74=\"\",\"\",_xlfn.MINIFS(tblCotacoes[Prazo Entrega (dias)],tblCotacoes[ID Solicitação],C74))","v":""},"Comprada"]
[null,null,{"$f":"IFERROR(INDEX(tblSolicitacoes[ID Solicitação],ROW(A57)),\"\")","v":""},{"$f":"IF(C75=\"\",\"\",COUNTIFS(tblCotacoes[ID Solicitação],C75))","v":""},{"$f":"IF(C75=\"\",\"\",_xlfn.MINIFS(tblCotacoes[Valor Final Cotado (R$)],tblCotacoes[ID Solicitação],C75))","v":""},{"$f":"IF(C75=\"\",\"\",_xlfn.MAXIFS(tblCotacoes[Valor Final Cotado (R$)],tblCotacoes[ID Solicitação],C75))","v":""},"",{"$f":"IF(C75=\"\",\"\",SUMIFS(tblCompras[Valor Final Fechado (R$)],tblCompras[ID Solicitação],C75))","v":""},"",{"$f":"IF(C75=\"\",\"\",_xlfn.MINIFS(tblCotacoes[Prazo Entrega (dias)],tblCotacoes[ID Solicitação],C75))","v":""},"Comprada"]
[null,null,{"$f":"IFERROR(INDEX(tblSolicitacoes[ID Solicitação],ROW(A58)),\"\")","v":""},{"$f":"IF(C76=\"\",\"\",COUNTIFS(tblCotacoes[ID Solicitação],C76))","v":""},{"$f":"IF(C76=\"\",\"\",_xlfn.MINIFS(tblCotacoes[Valor Final Cotado (R$)],tblCotacoes[ID Solicitação],C76))","v":""},{"$f":"IF(C76=\"\",\"\",_xlfn.MAXIFS(tblCotacoes[Valor Final Cotado (R$)],tblCotacoes[ID Solicitação],C76))","v":""},"",{"$f":"IF(C76=\"\",\"\",SUMIFS(tblCompras[Valor Final Fechado (R$)],tblCompras[ID Solicitação],C76))","v":""},"",{"$f":"IF(C76=\"\",\"\",_xlfn.MINIFS(tblCotacoes[Prazo Entrega (dias)],tblCotacoes[ID Solicitação],C76))","v":""},"Comprada"]
[null,null,{"$f":"IFERROR(INDEX(tblSolicitacoes[ID Solicitação],ROW(A59)),\"\")","v":""},{"$f":"IF(C77=\"\",\"\",COUNTIFS(tblCotacoes[ID Solicitação],C77))","v":""},{"$f":"IF(C77=\"\",\"\",_xlfn.MINIFS(tblCotacoes[Valor Final Cotado (R$)],tblCotacoes[ID Solicitação],C77))","v":""},{"$f":"IF(C77=\"\",\"\",_xlfn.MAXIFS(tblCotacoes[Valor Final Cotado (R$)],tblCotacoes[ID Solicitação],C77))","v":""},"",{"$f":"IF(C77=\"\",\"\",SUMIFS(tblCompras[Valor Final Fechado (R$)],tblCompras[ID Solicitação],C77))","v":""},"",{"$f":"IF(C77=\"\",\"\",_xlfn.MINIFS(tblCotacoes[Prazo Entrega (dias)],tblCotacoes[ID Solicitação],C77))","v":""},"Comprada"]
[null,null,{"$f":"IFERROR(INDEX(tblSolicitacoes[ID Solicitação],ROW(A60)),\"\")","v":""},{"$f":"IF(C78=\"\",\"\",COUNTIFS(tblCotacoes[ID Solicitação],C78))","v":""},{"$f":"IF(C78=\"\",\"\",_xlfn.MINIFS(tblCotacoes[Valor Final Cotado (R$)],tblCotacoes[ID Solicitação],C78))","v":""},{"$f":"IF(C78=\"\",\"\",_xlfn.MAXIFS(tblCotacoes[Valor Final Cotado (R$)],tblCotacoes[ID Solicitação],C78))","v":""},"",{"$f":"IF(C78=\"\",\"\",SUMIFS(tblCompras[Valor Final Fechado (R$)],tblCompras[ID Solicitação],C78))","v":""},"",{"$f":"IF(C78=\"\",\"\",_xlfn.MINIFS(tblCotacoes[Prazo Entrega (dias)],tblCotacoes[ID Solicitação],C78))","v":""},"Comprada"]
[null,null,{"$f":"IFERROR(INDEX(tblSolicitacoes[ID Solicitação],ROW(A61)),\"\")","v":""},{"$f":"IF(C79=\"\",\"\",COUNTIFS(tblCotacoes[ID Solicitação],C79))","v":""},{"$f":"IF(C79=\"\",\"\",_xlfn.MINIFS(tblCotacoes[Valor Final Cotado (R$)],tblCotacoes[ID Solicitação],C79))","v":""},{"$f":"IF(C79=\"\",\"\",_xlfn.MAXIFS(tblCotacoes[Valor Final Cotado (R$)],tblCotacoes[ID Solicitação],C79))","v":""},"",{"$f":"IF(C79=\"\",\"\",SUMIFS(tblCompras[Valor Final Fechado (R$)],tblCompras[ID Solicitação],C79))","v":""},"",{"$f":"IF(C79=\"\",\"\",_xlfn.MINIFS(tblCotacoes[Prazo Entrega (dias)],tblCotacoes[ID Solicitação],C79))","v":""},"Comprada"]
[null,null,{"$f":"IFERROR(INDEX(tblSolicitacoes[ID Solicitação],ROW(A62)),\"\")","v":""},{"$f":"IF(C80=\"\",\"\",COUNTIFS(tblCotacoes[ID Solicitação],C80))","v":""},{"$f":"IF(C80=\"\",\"\",_xlfn.MINIFS(tblCotacoes[Valor Final Cotado (R$)],tblCotacoes[ID Solicitação],C80))","v":""},{"$f":"IF(C80=\"\",\"\",_xlfn.MAXIFS(tblCotacoes[Valor Final Cotado (R$)],tblCotacoes[ID Solicitação],C80))","v":""},"",{"$f":"IF(C80=\"\",\"\",SUMIFS(tblCompras[Valor Final Fechado (R$)],tblCompras[ID Solicitação],C80))","v":""},"",{"$f":"IF(C80=\"\",\"\",_xlfn.MINIFS(tblCotacoes[Prazo Entrega (dias)],tblCotacoes[ID Solicitação],C80))","v":""},"Comprada"]
[null,null,{"$f":"IFERROR(INDEX(tblSolicitacoes[ID Solicitação],ROW(A63)),\"\")","v":""},{"$f":"IF(C81=\"\",\"\",COUNTIFS(tblCotacoes[ID Solicitação],C81))","v":""},{"$f":"IF(C81=\"\",\"\",_xlfn.MINIFS(tblCotacoes[Valor Final Cotado (R$)],tblCotacoes[ID Solicitação],C81))","v":""},{"$f":"IF(C81=\"\",\"\",_xlfn.MAXIFS(tblCotacoes[Valor Final Cotado (R$)],tblCotacoes[ID Solicitação],C81))","v":""},"",{"$f":"IF(C81=\"\",\"\",SUMIFS(tblCompras[Valor Final Fechado (R$)],tblCompras[ID Solicitação],C81))","v":""},"",{"$f":"IF(C81=\"\",\"\",_xlfn.MINIFS(tblCotacoes[Prazo Entrega (dias)],tblCotacoes[ID Solicitação],C81))","v":""},"Comprada"]
[null,null,{"$f":"IFERROR(INDEX(tblSolicitacoes[ID Solicitação],ROW(A64)),\"\")","v":""},{"$f":"IF(C82=\"\",\"\",COUNTIFS(tblCotacoes[ID Solicitação],C82))","v":""},{"$f":"IF(C82=\"\",\"\",_xlfn.MINIFS(tblCotacoes[Valor Final Cotado (R$)],tblCotacoes[ID Solicitação],C82))","v":""},{"$f":"IF(C82=\"\",\"\",_xlfn.MAXIFS(tblCotacoes[Valor Final Cotado (R$)],tblCotacoes[ID Solicitação],C82))","v":""},"",{"$f":"IF(C82=\"\",\"\",SUMIFS(tblCompras[Valor Final Fechado (R$)],tblCompras[ID Solicitação],C82))","v":""},"",{"$f":"IF(C82=\"\",\"\",_xlfn.MINIFS(tblCotacoes[Prazo Entrega (dias)],tblCotacoes[ID Solicitação],C82))","v":""},"Comprada"]
[null,null,{"$f":"IFERROR(INDEX(tblSolicitacoes[ID Solicitação],ROW(A65)),\"\")","v":""},{"$f":"IF(C83=\"\",\"\",COUNTIFS(tblCotacoes[ID Solicitação],C83))","v":""},{"$f":"IF(C83=\"\",\"\",_xlfn.MINIFS(tblCotacoes[Valor Final Cotado (R$)],tblCotacoes[ID Solicitação],C83))","v":""},{"$f":"IF(C83=\"\",\"\",_xlfn.MAXIFS(tblCotacoes[Valor Final Cotado (R$)],tblCotacoes[ID Solicitação],C83))","v":""},{"$f":"IF(F83=\"\",\"\",F83-E83)","v":""},{"$f":"IF(C83=\"\",\"\",SUMIFS(tblCompras[Valor Final Fechado (R$)],tblCompras[ID Solicitação],C83))","v":""},{"$f":"IF(H83=\"\",\"\",F83-H83)","v":""},{"$f":"IF(C83=\"\",\"\",_xlfn.MINIFS(tblCotacoes[Prazo Entrega (dias)],tblCotacoes[ID Solicitação],C83))","v":""},{"$f":"IF(H83>0,\"Comprada\",\"Em aberto\")","v":"Comprada"}]
[null,null,{"$f":"IFERROR(INDEX(tblSolicitacoes[ID Solicitação],ROW(A66)),\"\")","v":""},{"$f":"IF(C84=\"\",\"\",COUNTIFS(tblCotacoes[ID Solicitação],C84))","v":""},{"$f":"IF(C84=\"\",\"\",_xlfn.MINIFS(tblCotacoes[Valor Final Cotado (R$)],tblCotacoes[ID Solicitação],C84))","v":""},{"$f":"IF(C84=\"\",\"\",_xlfn.MAXIFS(tblCotacoes[Valor Final Cotado (R$)],tblCotacoes[ID Solicitação],C84))","v":""},"",{"$f":"IF(C84=\"\",\"\",SUMIFS(tblCompras[Valor Final Fechado (R$)],tblCompras[ID Solicitação],C84))","v":""},"",{"$f":"IF(C84=\"\",\"\",_xlfn.MINIFS(tblCotacoes[Prazo Entrega (dias)],tblCotacoes[ID Solicitação],C84))","v":""},"Comprada"]
[null,null,{"$f":"IFERROR(INDEX(tblSolicitacoes[ID Solicitação],ROW(A67)),\"\")","v":""},{"$f":"IF(C85=\"\",\"\",COUNTIFS(tblCotacoes[ID Solicitação],C85))","v":""},{"$f":"IF(C85=\"\",\"\",_xlfn.MINIFS(tblCotacoes[Valor Final Cotado (R$)],tblCotacoes[ID Solicitação],C85))","v":""},{"$f":"IF(C85=\"\",\"\",_xlfn.MAXIFS(tblCotacoes[Valor Final Cotado (R$)],tblCotacoes[ID Solicitação],C85))","v":""},"",{"$f":"IF(C85=\"\",\"\",SUMIFS(tblCompras[Valor Final Fechado (R$)],tblCompras[ID Solicitação],C85))","v":""},"",{"$f":"IF(C85=\"\",\"\",_xlfn.MINIFS(tblCotacoes[Prazo Entrega (dias)],tblCotacoes[ID Solicitação],C85))","v":""},"Comprada"]
[null,null,{"$f":"IFERROR(INDEX(tblSolicitacoes[ID Solicitação],ROW(A68)),\"\")","v":""},{"$f":"IF(C86=\"\",\"\",COUNTIFS(tblCotacoes[ID Solicitação],C86))","v":""},{"$f":"IF(C86=\"\",\"\",_xlfn.MINIFS(tblCotacoes[Valor Final Cotado (R$)],tblCotacoes[ID Solicitação],C86))","v":""},{"$f":"IF(C86=\"\",\"\",_xlfn.MAXIFS(tblCotacoes[Valor Final Cotado (R$)],tblCotacoes[ID Solicitação],C86))","v":""},"",{"$f":"IF(C86=\"\",\"\",SUMIFS(tblCompras[Valor Final Fechado (R$)],tblCompras[ID Solicitação],C86))","v":""},"",{"$f":"IF(C86=\"\",\"\",_xlfn.MINIFS(tblCotacoes[Prazo Entrega (dias)],tblCotacoes[ID Solicitação],C86))","v":""},"Comprada"]
[null,null,{"$f":"IFERROR(INDEX(tblSolicitacoes[ID Solicitação],ROW(A69)),\"\")","v":""},{"$f":"IF(C87=\"\",\"\",COUNTIFS(tblCotacoes[ID Solicitação],C87))","v":""},{"$f":"IF(C87=\"\",\"\",_xlfn.MINIFS(tblCotacoes[Valor Final Cotado (R$)],tblCotacoes[ID Solicitação],C87))","v":""},{"$f":"IF(C87=\"\",\"\",_xlfn.MAXIFS(tblCotacoes[Valor Final Cotado (R$)],tblCotacoes[ID Solicitação],C87))","v":""},"",{"$f":"IF(C87=\"\",\"\",SUMIFS(tblCompras[Valor Final Fechado (R$)],tblCompras[ID Solicitação],C87))","v":""},"",{"$f":"IF(C87=\"\",\"\",_xlfn.MINIFS(tblCotacoes[Prazo Entrega (dias)],tblCotacoes[ID Solicitação],C87))","v":""},"Comprada"]
[null,null,{"$f":"IFERROR(INDEX(tblSolicitacoes[ID Solicitação],ROW(A70)),\"\")","v":""},{"$f":"IF(C88=\"\",\"\",COUNTIFS(tblCotacoes[ID Solicitação],C88))","v":""},{"$f":"IF(C88=\"\",\"\",_xlfn.MINIFS(tblCotacoes[Valor Final Cotado (R$)],tblCotacoes[ID Solicitação],C88))","v":""},{"$f":"IF(C88=\"\",\"\",_xlfn.MAXIFS(tblCotacoes[Valor Final Cotado (R$)],tblCotacoes[ID Solicitação],C88))","v":""},"",{"$f":"IF(C88=\"\",\"\",SUMIFS(tblCompras[Valor Final Fechado (R$)],tblCompras[ID Solicitação],C88))","v":""},"",{"$f":"IF(C88=\"\",\"\",_xlfn.MINIFS(tblCotacoes[Prazo Entrega (dias)],tblCotacoes[ID Solicitação],C88))","v":""},"Comprada"]
[null,null,{"$f":"IFERROR(INDEX(tblSolicitacoes[ID Solicitação],ROW(A71)),\"\")","v":""},{"$f":"IF(C89=\"\",\"\",COUNTIFS(tblCotacoes[ID Solicitação],C89))","v":""},{"$f":"IF(C89=\"\",\"\",_xlfn.MINIFS(tblCotacoes[Valor Final Cotado (R$)],tblCotacoes[ID Solicitação],C89))","v":""},{"$f":"IF(C89=\"\",\"\",_xlfn.MAXIFS(tblCotacoes[Valor Final Cotado (R$)],tblCotacoes[ID Solicitação],C89))","v":""},"",{"$f":"IF(C89=\"\",\"\",SUMIFS(tblCompras[Valor Final Fechado (R$)],tblCompras[ID Solicitação],C89))","v":""},"",{"$f":"IF(C89=\"\",\"\",_xlfn.MINIFS(tblCotacoes[Prazo Entrega (dias)],tblCotacoes[ID Solicitação],C89))","v":""},"Comprada"]
[null,null,{"$f":"IFERROR(INDEX(tblSolicitacoes[ID Solicitação],ROW(A72)),\"\")","v":""},{"$f":"IF(C90=\"\",\"\",COUNTIFS(tblCotacoes[ID Solicitação],C90))","v":""},{"$f":"IF(C90=\"\",\"\",_xlfn.MINIFS(tblCotacoes[Valor Final Cotado (R$)],tblCotacoes[ID Solicitação],C90))","v":""},{"$f":"IF(C90=\"\",\"\",_xlfn.MAXIFS(tblCotacoes[Valor Final Cotado (R$)],tblCotacoes[ID Solicitação],C90))","v":""},"",{"$f":"IF(C90=\"\",\"\",SUMIFS(tblCompras[Valor Final Fechado (R$)],tblCompras[ID Solicitação],C90))","v":""},"",{"$f":"IF(C90=\"\",\"\",_xlfn.MINIFS(tblCotacoes[Prazo Entrega (dias)],tblCotacoes[ID Solicitação],C90))","v":""},"Comprada"]
[null,null,{"$f":"IFERROR(INDEX(tblSolicitacoes[ID Solicitação],ROW(A73)),\"\")","v":""},{"$f":"IF(C91=\"\",\"\",COUNTIFS(tblCotacoes[ID Solicitação],C91))","v":""},{"$f":"IF(C91=\"\",\"\",_xlfn.MINIFS(tblCotacoes[Valor Final Cotado (R$)],tblCotacoes[ID Solicitação],C91))","v":""},{"$f":"IF(C91=\"\",\"\",_xlfn.MAXIFS(tblCotacoes[Valor Final Cotado (R$)],tblCotacoes[ID Solicitação],C91))","v":""},"",{"$f":"IF(C91=\"\",\"\",SUMIFS(tblCompras[Valor Final Fechado (R$)],tblCompras[ID Solicitação],C91))","v":""},"",{"$f":"IF(C91=\"\",\"\",_xlfn.MINIFS(tblCotacoes[Prazo Entrega (dias)],tblCotacoes[ID Solicitação],C91))","v":""},"Comprada"]
[null,null,{"$f":"IFERROR(INDEX(tblSolicitacoes[ID Solicitação],ROW(A74)),\"\")","v":""},{"$f":"IF(C92=\"\",\"\",COUNTIFS(tblCotacoes[ID Solicitação],C92))","v":""},{"$f":"IF(C92=\"\",\"\",_xlfn.MINIFS(tblCotacoes[Valor Final Cotado (R$)],tblCotacoes[ID Solicitação],C92))","v":""},{"$f":"IF(C92=\"\",\"\",_xlfn.MAXIFS(tblCotacoes[Valor Final Cotado (R$)],tblCotacoes[ID Solicitação],C92))","v":""},"",{"$f":"IF(C92=\"\",\"\",SUMIFS(tblCompras[Valor Final Fechado (R$)],tblCompras[ID Solicitação],C92))","v":""},"",{"$f":"IF(C92=\"\",\"\",_xlfn.MINIFS(tblCotacoes[Prazo Entrega (dias)],tblCotacoes[ID Solicitação],C92))","v":""},"Comprada"]
[null,null,{"$f":"IFERROR(INDEX(tblSolicitacoes[ID Solicitação],ROW(A75)),\"\")","v":""},{"$f":"IF(C93=\"\",\"\",COUNTIFS(tblCotacoes[ID Solicitação],C93))","v":""},{"$f":"IF(C93=\"\",\"\",_xlfn.MINIFS(tblCotacoes[Valor Final Cotado (R$)],tblCotacoes[ID Solicitação],C93))","v":""},{"$f":"IF(C93=\"\",\"\",_xlfn.MAXIFS(tblCotacoes[Valor Final Cotado (R$)],tblCotacoes[ID Solicitação],C93))","v":""},"",{"$f":"IF(C93=\"\",\"\",SUMIFS(tblCompras[Valor Final Fechado (R$)],tblCompras[ID Solicitação],C93))","v":""},"",{"$f":"IF(C93=\"\",\"\",_xlfn.MINIFS(tblCotacoes[Prazo Entrega (dias)],tblCotacoes[ID Solicitação],C93))","v":""},"Comprada"]
[null,null,{"$f":"IFERROR(INDEX(tblSolicitacoes[ID Solicitação],ROW(A76)),\"\")","v":""},{"$f":"IF(C94=\"\",\"\",COUNTIFS(tblCotacoes[ID Solicitação],C94))","v":""},{"$f":"IF(C94=\"\",\"\",_xlfn.MINIFS(tblCotacoes[Valor Final Cotado (R$)],tblCotacoes[ID Solicitação],C94))","v":""},{"$f":"IF(C94=\"\",\"\",_xlfn.MAXIFS(tblCotacoes[Valor Final Cotado (R$)],tblCotacoes[ID Solicitação],C94))","v":""},"",{"$f":"IF(C94=\"\",\"\",SUMIFS(tblCompras[Valor Final Fechado (R$)],tblCompras[ID Solicitação],C94))","v":""},"",{"$f":"IF(C94=\"\",\"\",_xlfn.MINIFS(tblCotacoes[Prazo Entrega (dias)],tblCotacoes[ID Solicitação],C94))","v":""},"Comprada"]
[null,null,{"$f":"IFERROR(INDEX(tblSolicitacoes[ID Solicitação],ROW(A77)),\"\")","v":""},{"$f":"IF(C95=\"\",\"\",COUNTIFS(tblCotacoes[ID Solicitação],C95))","v":""},{"$f":"IF(C95=\"\",\"\",_xlfn.MINIFS(tblCotacoes[Valor Final Cotado (R$)],tblCotacoes[ID Solicitação],C95))","v":""},{"$f":"IF(C95=\"\",\"\",_xlfn.MAXIFS(tblCotacoes[Valor Final Cotado (R$)],tblCotacoes[ID Solicitação],C95))","v":""},"",{"$f":"IF(C95=\"\",\"\",SUMIFS(tblCompras[Valor Final Fechado (R$)],tblCompras[ID Solicitação],C95))","v":""},"",{"$f":"IF(C95=\"\",\"\",_xlfn.MINIFS(tblCotacoes[Prazo Entrega (dias)],tblCotacoes[ID Solicitação],C95))","v":""},"Comprada"]
[null,null,{"$f":"IFERROR(INDEX(tblSolicitacoes[ID Solicitação],ROW(A78)),\"\")","v":""},{"$f":"IF(C96=\"\",\"\",COUNTIFS(tblCotacoes[ID Solicitação],C96))","v":""},{"$f":"IF(C96=\"\",\"\",_xlfn.MINIFS(tblCotacoes[Valor Final Cotado (R$)],tblCotacoes[ID Solicitação],C96))","v":""},{"$f":"IF(C96=\"\",\"\",_xlfn.MAXIFS(tblCotacoes[Valor Final Cotado (R$)],tblCotacoes[ID Solicitação],C96))","v":""},"",{"$f":"IF(C96=\"\",\"\",SUMIFS(tblCompras[Valor Final Fechado (R$)],tblCompras[ID Solicitação],C96))","v":""},"",{"$f":"IF(C96=\"\",\"\",_xlfn.MINIFS(tblCotacoes[Prazo Entrega (dias)],tblCotacoes[ID Solicitação],C96))","v":""},"Comprada"]
[null,null,{"$f":"IFERROR(INDEX(tblSolicitacoes[ID Solicitação],ROW(A79)),\"\")","v":""},{"$f":"IF(C97=\"\",\"\",COUNTIFS(tblCotacoes[ID Solicitação],C97))","v":""},{"$f":"IF(C97=\"\",\"\",_xlfn.MINIFS(tblCotacoes[Valor Final Cotado (R$)],tblCotacoes[ID Solicitação],C97))","v":""},{"$f":"IF(C97=\"\",\"\",_xlfn.MAXIFS(tblCotacoes[Valor Final Cotado (R$)],tblCotacoes[ID Solicitação],C97))","v":""},"",{"$f":"IF(C97=\"\",\"\",SUMIFS(tblCompras[Valor Final Fechado (R$)],tblCompras[ID Solicitação],C97))","v":""},"",{"$f":"IF(C97=\"\",\"\",_xlfn.MINIFS(tblCotacoes[Prazo Entrega (dias)],tblCotacoes[ID Solicitação],C97))","v":""},"Comprada"]
[null,null,{"$f":"IFERROR(INDEX(tblSolicitacoes[ID Solicitação],ROW(A80)),\"\")","v":""},{"$f":"IF(C98=\"\",\"\",COUNTIFS(tblCotacoes[ID Solicitação],C98))","v":""},{"$f":"IF(C98=\"\",\"\",_xlfn.MINIFS(tblCotacoes[Valor Final Cotado (R$)],tblCotacoes[ID Solicitação],C98))","v":""},{"$f":"IF(C98=\"\",\"\",_xlfn.MAXIFS(tblCotacoes[Valor Final Cotado (R$)],tblCotacoes[ID Solicitação],C98))","v":""},"",{"$f":"IF(C98=\"\",\"\",SUMIFS(tblCompras[Valor Final Fechado (R$)],tblCompras[ID Solicitação],C98))","v":""},"",{"$f":"IF(C98=\"\",\"\",_xlfn.MINIFS(tblCotacoes[Prazo Entrega (dias)],tblCotacoes[ID Solicitação],C98))","v":""},"Comprada"]
[null,null,{"$f":"IFERROR(INDEX(tblSolicitacoes[ID Solicitação],ROW(A81)),\"\")","v":""},{"$f":"IF(C99=\"\",\"\",COUNTIFS(tblCotacoes[ID Solicitação],C99))","v":""},{"$f":"IF(C99=\"\",\"\",_xlfn.MINIFS(tblCotacoes[Valor Final Cotado (R$)],tblCotacoes[ID Solicitação],C99))","v":""},{"$f":"IF(C99=\"\",\"\",_xlfn.MAXIFS(tblCotacoes[Valor Final Cotado (R$)],tblCotacoes[ID Solicitação],C99))","v":""},"",{"$f":"IF(C99=\"\",\"\",SUMIFS(tblCompras[Valor Final Fechado (R$)],tblCompras[ID Solicitação],C99))","v":""},"",{"$f":"IF(C99=\"\",\"\",_xlfn.MINIFS(tblCotacoes[Prazo Entrega (dias)],tblCotacoes[ID Solicitação],C99))","v":""},"Comprada"]
[null,null,{"$f":"IFERROR(INDEX(tblSolicitacoes[ID Solicitação],ROW(A82)),\"\")","v":""},{"$f":"IF(C100=\"\",\"\",COUNTIFS(tblCotacoes[ID Solicitação],C100))","v":""},{"$f":"IF(C100=\"\",\"\",_xlfn.MINIFS(tblCotacoes[Valor Final Cotado (R$)],tblCotacoes[ID Solicitação],C100))","v":""},{"$f":"IF(C100=\"\",\"\",_xlfn.MAXIFS(tblCotacoes[Valor Final Cotado (R$)],tblCotacoes[ID Solicitação],C100))","v":""},"",{"$f":"IF(C100=\"\",\"\",SUMIFS(tblCompras[Valor Final Fechado (R$)],tblCompras[ID Solicitação],C100))","v":""},"",{"$f":"IF(C100=\"\",\"\",_xlfn.MINIFS(tblCotacoes[Prazo Entrega (dias)],tblCotacoes[ID Solicitação],C100))","v":""},"Comprada"]
[null,null,{"$f":"IFERROR(INDEX(tblSolicitacoes[ID Solicitação],ROW(A83)),\"\")","v":""},{"$f":"IF(C101=\"\",\"\",COUNTIFS(tblCotacoes[ID Solicitação],C101))","v":""},{"$f":"IF(C101=\"\",\"\",_xlfn.MINIFS(tblCotacoes[Valor Final Cotado (R$)],tblCotacoes[ID Solicitação],C101))","v":""},{"$f":"IF(C101=\"\",\"\",_xlfn.MAXIFS(tblCotacoes[Valor Final Cotado (R$)],tblCotacoes[ID Solicitação],C101))","v":""},"",{"$f":"IF(C101=\"\",\"\",SUMIFS(tblCompras[Valor Final Fechado (R$)],tblCompras[ID Solicitação],C101))","v":""},"",{"$f":"IF(C101=\"\",\"\",_xlfn.MINIFS(tblCotacoes[Prazo Entrega (dias)],tblCotacoes[ID Solicitação],C101))","v":""},"Comprada"]
[null,null,{"$f":"IFERROR(INDEX(tblSolicitacoes[ID Solicitação],ROW(A84)),\"\")","v":""},{"$f":"IF(C102=\"\",\"\",COUNTIFS(tblCotacoes[ID Solicitação],C102))","v":""},{"$f":"IF(C102=\"\",\"\",_xlfn.MINIFS(tblCotacoes[Valor Final Cotado (R$)],tblCotacoes[ID Solicitação],C102))","v":""},{"$f":"IF(C102=\"\",\"\",_xlfn.MAXIFS(tblCotacoes[Valor Final Cotado (R$)],tblCotacoes[ID Solicitação],C102))","v":""},"",{"$f":"IF(C102=\"\",\"\",SUMIFS(tblCompras[Valor Final Fechado (R$)],tblCompras[ID Solicitação],C102))","v":""},"",{"$f":"IF(C102=\"\",\"\",_xlfn.MINIFS(tblCotacoes[Prazo Entrega (dias)],tblCotacoes[ID Solicitação],C102))","v":""},"Comprada"]
[null,null,{"$f":"IFERROR(INDEX(tblSolicitacoes[ID Solicitação],ROW(A85)),\"\")","v":""},{"$f":"IF(C103=\"\",\"\",COUNTIFS(tblCotacoes[ID Solicitação],C103))","v":""},{"$f":"IF(C103=\"\",\"\",_xlfn.MINIFS(tblCotacoes[Valor Final Cotado (R$)],tblCotacoes[ID Solicitação],C103))","v":""},{"$f":"IF(C103=\"\",\"\",_xlfn.MAXIFS(tblCotacoes[Valor Final Cotado (R$)],tblCotacoes[ID Solicitação],C103))","v":""},"",{"$f":"IF(C103=\"\",\"\",SUMIFS(tblCompras[Valor Final Fechado (R$)],tblCompras[ID Solicitação],C103))","v":""},"",{"$f":"IF(C103=\"\",\"\",_xlfn.MINIFS(tblCotacoes[Prazo Entrega (dias)],tblCotacoes[ID Solicitação],C103))","v":""},"Comprada"]
[null,null,{"$f":"IFERROR(INDEX(tblSolicitacoes[ID Solicitação],ROW(A86)),\"\")","v":""},{"$f":"IF(C104=\"\",\"\",COUNTIFS(tblCotacoes[ID Solicitação],C104))","v":""},{"$f":"IF(C104=\"\",\"\",_xlfn.MINIFS(tblCotacoes[Valor Final Cotado (R$)],tblCotacoes[ID Solicitação],C104))","v":""},{"$f":"IF(C104=\"\",\"\",_xlfn.MAXIFS(tblCotacoes[Valor Final Cotado (R$)],tblCotacoes[ID Solicitação],C104))","v":""},"",{"$f":"IF(C104=\"\",\"\",SUMIFS(tblCompras[Valor Final Fechado (R$)],tblCompras[ID Solicitação],C104))","v":""},"",{"$f":"IF(C104=\"\",\"\",_xlfn.MINIFS(tblCotacoes[Prazo Entrega (dias)],tblCotacoes[ID Solicitação],C104))","v":""},"Comprada"]
[null,null,{"$f":"IFERROR(INDEX(tblSolicitacoes[ID Solicitação],ROW(A87)),\"\")","v":""},{"$f":"IF(C105=\"\",\"\",COUNTIFS(tblCotacoes[ID Solicitação],C105))","v":""},{"$f":"IF(C105=\"\",\"\",_xlfn.MINIFS(tblCotacoes[Valor Final Cotado (R$)],tblCotacoes[ID Solicitação],C105))","v":""},{"$f":"IF(C105=\"\",\"\",_xlfn.MAXIFS(tblCotacoes[Valor Final Cotado (R$)],tblCotacoes[ID Solicitação],C105))","v":""},"",{"$f":"IF(C105=\"\",\"\",SUMIFS(tblCompras[Valor Final Fechado (R$)],tblCompras[ID Solicitação],C105))","v":""},"",{"$f":"IF(C105=\"\",\"\",_xlfn.MINIFS(tblCotacoes[Prazo Entrega (dias)],tblCotacoes[ID Solicitação],C105))","v":""},"Comprada"]
[null,null,{"$f":"IFERROR(INDEX(tblSolicitacoes[ID Solicitação],ROW(A88)),\"\")","v":""},{"$f":"IF(C106=\"\",\"\",COUNTIFS(tblCotacoes[ID Solicitação],C106))","v":""},{"$f":"IF(C106=\"\",\"\",_xlfn.MINIFS(tblCotacoes[Valor Final Cotado (R$)],tblCotacoes[ID Solicitação],C106))","v":""},{"$f":"IF(C106=\"\",\"\",_xlfn.MAXIFS(tblCotacoes[Valor Final Cotado (R$)],tblCotacoes[ID Solicitação],C106))","v":""},"",{"$f":"IF(C106=\"\",\"\",SUMIFS(tblCompras[Valor Final Fechado (R$)],tblCompras[ID Solicitação],C106))","v":""},"",{"$f":"IF(C106=\"\",\"\",_xlfn.MINIFS(tblCotacoes[Prazo Entrega (dias)],tblCotacoes[ID Solicitação],C106))","v":""},"Comprada"]
[null,null,{"$f":"IFERROR(INDEX(tblSolicitacoes[ID Solicitação],ROW(A89)),\"\")","v":""},{"$f":"IF(C107=\"\",\"\",COUNTIFS(tblCotacoes[ID Solicitação],C107))","v":""},{"$f":"IF(C107=\"\",\"\",_xlfn.MINIFS(tblCotacoes[Valor Final Cotado (R$)],tblCotacoes[ID Solicitação],C107))","v":""},{"$f":"IF(C107=\"\",\"\",_xlfn.MAXIFS(tblCotacoes[Valor Final Cotado (R$)],tblCotacoes[ID Solicitação],C107))","v":""},"",{"$f":"IF(C107=\"\",\"\",SUMIFS(tblCompras[Valor Final Fechado (R$)],tblCompras[ID Solicitação],C107))","v":""},"",{"$f":"IF(C107=\"\",\"\",_xlfn.MINIFS(tblCotacoes[Prazo Entrega (dias)],tblCotacoes[ID Solicitação],C107))","v":""},"Comprada"]
[null,null,{"$f":"IFERROR(INDEX(tblSolicitacoes[ID Solicitação],ROW(A90)),\"\")","v":""},{"$f":"IF(C108=\"\",\"\",COUNTIFS(tblCotacoes[ID Solicitação],C108))","v":""},{"$f":"IF(C108=\"\",\"\",_xlfn.MINIFS(tblCotacoes[Valor Final Cotado (R$)],tblCotacoes[ID Solicitação],C108))","v":""},{"$f":"IF(C108=\"\",\"\",_xlfn.MAXIFS(tblCotacoes[Valor Final Cotado (R$)],tblCotacoes[ID Solicitação],C108))","v":""},"",{"$f":"IF(C108=\"\",\"\",SUMIFS(tblCompras[Valor Final Fechado (R$)],tblCompras[ID Solicitação],C108))","v":""},"",{"$f":"IF(C108=\"\",\"\",_xlfn.MINIFS(tblCotacoes[Prazo Entrega (dias)],tblCotacoes[ID Solicitação],C108))","v":""},"Comprada"]
[null,null,{"$f":"IFERROR(INDEX(tblSolicitacoes[ID Solicitação],ROW(A91)),\"\")","v":""},{"$f":"IF(C109=\"\",\"\",COUNTIFS(tblCotacoes[ID Solicitação],C109))","v":""},{"$f":"IF(C109=\"\",\"\",_xlfn.MINIFS(tblCotacoes[Valor Final Cotado (R$)],tblCotacoes[ID Solicitação],C109))","v":""},{"$f":"IF(C109=\"\",\"\",_xlfn.MAXIFS(tblCotacoes[Valor Final Cotado (R$)],tblCotacoes[ID Solicitação],C109))","v":""},"",{"$f":"IF(C109=\"\",\"\",SUMIFS(tblCompras[Valor Final Fechado (R$)],tblCompras[ID Solicitação],C109))","v":""},"",{"$f":"IF(C109=\"\",\"\",_xlfn.MINIFS(tblCotacoes[Prazo Entrega (dias)],tblCotacoes[ID Solicitação],C109))","v":""},"Comprada"]
[null,null,{"$f":"IFERROR(INDEX(tblSolicitacoes[ID Solicitação],ROW(A92)),\"\")","v":""},{"$f":"IF(C110=\"\",\"\",COUNTIFS(tblCotacoes[ID Solicitação],C110))","v":""},{"$f":"IF(C110=\"\",\"\",_xlfn.MINIFS(tblCotacoes[Valor Final Cotado (R$)],tblCotacoes[ID Solicitação],C110))","v":""},{"$f":"IF(C110=\"\",\"\",_xlfn.MAXIFS(tblCotacoes[Valor Final Cotado (R$)],tblCotacoes[ID Solicitação],C110))","v":""},"",{"$f":"IF(C110=\"\",\"\",SUMIFS(tblCompras[Valor Final Fechado (R$)],tblCompras[ID Solicitação],C110))","v":""},"",{"$f":"IF(C110=\"\",\"\",_xlfn.MINIFS(tblCotacoes[Prazo Entrega (dias)],tblCotacoes[ID Solicitação],C110))","v":""},"Comprada"]
[null,null,{"$f":"IFERROR(INDEX(tblSolicitacoes[ID Solicitação],ROW(A93)),\"\")","v":""},{"$f":"IF(C111=\"\",\"\",COUNTIFS(tblCotacoes[ID Solicitação],C111))","v":""},{"$f":"IF(C111=\"\",\"\",_xlfn.MINIFS(tblCotacoes[Valor Final Cotado (R$)],tblCotacoes[ID Solicitação],C111))","v":""},{"$f":"IF(C111=\"\",\"\",_xlfn.MAXIFS(tblCotacoes[Valor Final Cotado (R$)],tblCotacoes[ID Solicitação],C111))","v":""},"",{"$f":"IF(C111=\"\",\"\",SUMIFS(tblCompras[Valor Final Fechado (R$)],tblCompras[ID Solicitação],C111))","v":""},"",{"$f":"IF(C111=\"\",\"\",_xlfn.MINIFS(tblCotacoes[Prazo Entrega (dias)],tblCotacoes[ID Solicitação],C111))","v":""},"Comprada"]
[null,null,{"$f":"IFERROR(INDEX(tblSolicitacoes[ID Solicitação],ROW(A94)),\"\")","v":""},{"$f":"IF(C112=\"\",\"\",COUNTIFS(tblCotacoes[ID Solicitação],C112))","v":""},{"$f":"IF(C112=\"\",\"\",_xlfn.MINIFS(tblCotacoes[Valor Final Cotado (R$)],tblCotacoes[ID Solicitação],C112))","v":""},{"$f":"IF(C112=\"\",\"\",_xlfn.MAXIFS(tblCotacoes[Valor Final Cotado (R$)],tblCotacoes[ID Solicitação],C112))","v":""},"",{"$f":"IF(C112=\"\",\"\",SUMIFS(tblCompras[Valor Final Fechado (R$)],tblCompras[ID Solicitação],C112))","v":""},"",{"$f":"IF(C112=\"\",\"\",_xlfn.MINIFS(tblCotacoes[Prazo Entrega (dias)],tblCotacoes[ID Solicitação],C112))","v":""},"Comprada"]
[null,null,{"$f":"IFERROR(INDEX(tblSolicitacoes[ID Solicitação],ROW(A95)),\"\")","v":""},{"$f":"IF(C113=\"\",\"\",COUNTIFS(tblCotacoes[ID Solicitação],C113))","v":""},{"$f":"IF(C113=\"\",\"\",_xlfn.MINIFS(tblCotacoes[Valor Final Cotado (R$)],tblCotacoes[ID Solicitação],C113))","v":""},{"$f":"IF(C113=\"\",\"\",_xlfn.MAXIFS(tblCotacoes[Valor Final Cotado (R$)],tblCotacoes[ID Solicitação],C113))","v":""},"",{"$f":"IF(C113=\"\",\"\",SUMIFS(tblCompras[Valor Final Fechado (R$)],tblCompras[ID Solicitação],C113))","v":""},"",{"$f":"IF(C113=\"\",\"\",_xlfn.MINIFS(tblCotacoes[Prazo Entrega (dias)],tblCotacoes[ID Solicitação],C113))","v":""},"Comprada"]
[null,null,{"$f":"IFERROR(INDEX(tblSolicitacoes[ID Solicitação],ROW(A96)),\"\")","v":""},{"$f":"IF(C114=\"\",\"\",COUNTIFS(tblCotacoes[ID Solicitação],C114))","v":""},{"$f":"IF(C114=\"\",\"\",_xlfn.MINIFS(tblCotacoes[Valor Final Cotado (R$)],tblCotacoes[ID Solicitação],C114))","v":""},{"$f":"IF(C114=\"\",\"\",_xlfn.MAXIFS(tblCotacoes[Valor Final Cotado (R$)],tblCotacoes[ID Solicitação],C114))","v":""},"",{"$f":"IF(C114=\"\",\"\",SUMIFS(tblCompras[Valor Final Fechado (R$)],tblCompras[ID Solicitação],C114))","v":""},"",{"$f":"IF(C114=\"\",\"\",_xlfn.MINIFS(tblCotacoes[Prazo Entrega (dias)],tblCotacoes[ID Solicitação],C114))","v":""},"Comprada"]
[null,null,{"$f":"IFERROR(INDEX(tblSolicitacoes[ID Solicitação],ROW(A97)),\"\")","v":""},{"$f":"IF(C115=\"\",\"\",COUNTIFS(tblCotacoes[ID Solicitação],C115))","v":""},{"$f":"IF(C115=\"\",\"\",_xlfn.MINIFS(tblCotacoes[Valor Final Cotado (R$)],tblCotacoes[ID Solicitação],C115))","v":""},{"$f":"IF(C115=\"\",\"\",_xlfn.MAXIFS(tblCotacoes[Valor Final Cotado (R$)],tblCotacoes[ID Solicitação],C115))","v":""},{"$f":"IF(F115=\"\",\"\",F115-E115)","v":""},{"$f":"IF(C115=\"\",\"\",SUMIFS(tblCompras[Valor Final Fechado (R$)],tblCompras[ID Solicitação],C115))","v":""},{"$f":"IF(H115=\"\",\"\",F115-H115)","v":""},{"$f":"IF(C115=\"\",\"\",_xlfn.MINIFS(tblCotacoes[Prazo Entrega (dias)],tblCotacoes[ID Solicitação],C115))","v":""},"Comprada"]
[null,null,{"$f":"IFERROR(INDEX(tblSolicitacoes[ID Solicitação],ROW(A98)),\"\")","v":""},{"$f":"IF(C116=\"\",\"\",COUNTIFS(tblCotacoes[ID Solicitação],C116))","v":""},{"$f":"IF(C116=\"\",\"\",_xlfn.MINIFS(tblCotacoes[Valor Final Cotado (R$)],tblCotacoes[ID Solicitação],C116))","v":""},{"$f":"IF(C116=\"\",\"\",_xlfn.MAXIFS(tblCotacoes[Valor Final Cotado (R$)],tblCotacoes[ID Solicitação],C116))","v":""},"",{"$f":"IF(C116=\"\",\"\",SUMIFS(tblCompras[Valor Final Fechado (R$)],tblCompras[ID Solicitação],C116))","v":""},"",{"$f":"IF(C116=\"\",\"\",_xlfn.MINIFS(tblCotacoes[Prazo Entrega (dias)],tblCotacoes[ID Solicitação],C116))","v":""},"Comprada"]
[null,null,{"$f":"IFERROR(INDEX(tblSolicitacoes[ID Solicitação],ROW(A99)),\"\")","v":""},{"$f":"IF(C117=\"\",\"\",COUNTIFS(tblCotacoes[ID Solicitação],C117))","v":""},{"$f":"IF(C117=\"\",\"\",_xlfn.MINIFS(tblCotacoes[Valor Final Cotado (R$)],tblCotacoes[ID Solicitação],C117))","v":""},{"$f":"IF(C117=\"\",\"\",_xlfn.MAXIFS(tblCotacoes[Valor Final Cotado (R$)],tblCotacoes[ID Solicitação],C117))","v":""},"",{"$f":"IF(C117=\"\",\"\",SUMIFS(tblCompras[Valor Final Fechado (R$)],tblCompras[ID Solicitação],C117))","v":""},"",{"$f":"IF(C117=\"\",\"\",_xlfn.MINIFS(tblCotacoes[Prazo Entrega (dias)],tblCotacoes[ID Solicitação],C117))","v":""},"Comprada"]
[null,null,{"$f":"IFERROR(INDEX(tblSolicitacoes[ID Solicitação],ROW(A100)),\"\")","v":""},{"$f":"IF(C118=\"\",\"\",COUNTIFS(tblCotacoes[ID Solicitação],C118))","v":""},{"$f":"IF(C118=\"\",\"\",_xlfn.MINIFS(tblCotacoes[Valor Final Cotado (R$)],tblCotacoes[ID Solicitação],C118))","v":""},{"$f":"IF(C118=\"\",\"\",_xlfn.MAXIFS(tblCotacoes[Valor Final Cotado (R$)],tblCotacoes[ID Solicitação],C118))","v":""},"",{"$f":"IF(C118=\"\",\"\",SUMIFS(tblCompras[Valor Final Fechado (R$)],tblCompras[ID Solicitação],C118))","v":""},"",{"$f":"IF(C118=\"\",\"\",_xlfn.MINIFS(tblCotacoes[Prazo Entrega (dias)],tblCotacoes[ID Solicitação],C118))","v":""},"Comprada"]
[]
[null,null,"🏢 RESUMO POR FORNECEDOR"]
[null,null,"Fornecedor","Qtd Cotações","Valor Total Cotado (R$)","Prazo Médio Cotado (dias)","Qtd Compras Fechadas","Valor Total Comprado (R$)","Taxa de Fechamento","Economia Negociada Total (R$)","Ticket Médio Compra (R$)"]
[null,null,{"$f":"IFERROR(INDEX(tblFornecedores[Fornecedor],ROW(A1)),\"\")","v":0},{"$f":"IF(C122=\"\",\"\",COUNTIFS(tblCotacoes[Fornecedor],C122))","v":0},{"$f":"IF(C122=\"\",\"\",SUMIFS(tblCotacoes[Valor Final Cotado (R$)],tblCotacoes[Fornecedor],C122))","v":0},{"$f":"IFERROR(AVERAGEIFS(tblCotacoes[Prazo Entrega (dias)],tblCotacoes[Fornecedor],C122),0)","v":{"v":0,"d":"0.0"}},{"$f":"IF(C122=\"\",\"\",COUNTIFS(tblCompras[Fornecedor Escolhido],C122))","v":0},{"$f":"IF(C122=\"\",\"\",SUMIFS(tblCompras[Valor Final Fechado (R$)],tblCompras[Fornecedor Escolhido],C122))","v":0},{"$f":"IF(D122=0,0,G122/D122)","v":{"v":0,"d":"0.0%"}},{"$f":"IF(C122=\"\",\"\",SUMIFS(tblCompras[Economia Negociada (R$)],tblCompras[Fornecedor Escolhido],C122))","v":0},{"$f":"IF(G122=0,0,H122/G122)","v":0}]
[null,null,{"$f":"IFERROR(INDEX(tblFornecedores[Fornecedor],ROW(A2)),\"\")","v":""},{"$f":"IF(C123=\"\",\"\",COUNTIFS(tblCotacoes[Fornecedor],C123))","v":""},{"$f":"IF(C123=\"\",\"\",SUMIFS(tblCotacoes[Valor Final Cotado (R$)],tblCotacoes[Fornecedor],C123))","v":""},{"$f":"IFERROR(AVERAGEIFS(tblCotacoes[Prazo Entrega (dias)],tblCotacoes[Fornecedor],C123),0)","v":{"v":0,"d":"0.0"}},{"$f":"IF(C123=\"\",\"\",COUNTIFS(tblCompras[Fornecedor Escolhido],C123))","v":""},{"$f":"IF(C123=\"\",\"\",SUMIFS(tblCompras[Valor Final Fechado (R$)],tblCompras[Fornecedor Escolhido],C123))","v":""},{"$error":"#VALUE!"},{"$f":"IF(C123=\"\",\"\",SUMIFS(tblCompras[Economia Negociada (R$)],tblCompras[Fornecedor Escolhido],C123))","v":""},{"$error":"#VALUE!"}]
[null,null,{"$f":"IFERROR(INDEX(tblFornecedores[Fornecedor],ROW(A3)),\"\")","v":""},{"$f":"IF(C124=\"\",\"\",COUNTIFS(tblCotacoes[Fornecedor],C124))","v":""},{"$f":"IF(C124=\"\",\"\",SUMIFS(tblCotacoes[Valor Final Cotado (R$)],tblCotacoes[Fornecedor],C124))","v":""},{"$f":"IFERROR(AVERAGEIFS(tblCotacoes[Prazo Entrega (dias)],tblCotacoes[Fornecedor],C124),0)","v":{"v":0,"d":"0.0"}},{"$f":"IF(C124=\"\",\"\",COUNTIFS(tblCompras[Fornecedor Escolhido],C124))","v":""},{"$f":"IF(C124=\"\",\"\",SUMIFS(tblCompras[Valor Final Fechado (R$)],tblCompras[Fornecedor Escolhido],C124))","v":""},{"$error":"#VALUE!"},{"$f":"IF(C124=\"\",\"\",SUMIFS(tblCompras[Economia Negociada (R$)],tblCompras[Fornecedor Escolhido],C124))","v":""},{"$error":"#VALUE!"}]
[null,null,{"$f":"IFERROR(INDEX(tblFornecedores[Fornecedor],ROW(A4)),\"\")","v":""},{"$f":"IF(C125=\"\",\"\",COUNTIFS(tblCotacoes[Fornecedor],C125))","v":""},{"$f":"IF(C125=\"\",\"\",SUMIFS(tblCotacoes[Valor Final Cotado (R$)],tblCotacoes[Fornecedor],C125))","v":""},{"$f":"IFERROR(AVERAGEIFS(tblCotacoes[Prazo Entrega (dias)],tblCotacoes[Fornecedor],C125),0)","v":{"v":0,"d":"0.0"}},{"$f":"IF(C125=\"\",\"\",COUNTIFS(tblCompras[Fornecedor Escolhido],C125))","v":""},{"$f":"IF(C125=\"\",\"\",SUMIFS(tblCompras[Valor Final Fechado (R$)],tblCompras[Fornecedor Escolhido],C125))","v":""},{"$error":"#VALUE!"},{"$f":"IF(C125=\"\",\"\",SUMIFS(tblCompras[Economia Negociada (R$)],tblCompras[Fornecedor Escolhido],C125))","v":""},{"$error":"#VALUE!"}]
[null,null,{"$f":"IFERROR(INDEX(tblFornecedores[Fornecedor],ROW(A5)),\"\")","v":""},{"$f":"IF(C126=\"\",\"\",COUNTIFS(tblCotacoes[Fornecedor],C126))","v":""},{"$f":"IF(C126=\"\",\"\",SUMIFS(tblCotacoes[Valor Final Cotado (R$)],tblCotacoes[Fornecedor],C126))","v":""},{"$f":"IFERROR(AVERAGEIFS(tblCotacoes[Prazo Entrega (dias)],tblCotacoes[Fornecedor],C126),0)","v":{"v":0,"d":"0.0"}},{"$f":"IF(C126=\"\",\"\",COUNTIFS(tblCompras[Fornecedor Escolhido],C126))","v":""},{"$f":"IF(C126=\"\",\"\",SUMIFS(tblCompras[Valor Final Fechado (R$)],tblCompras[Fornecedor Escolhido],C126))","v":""},{"$error":"#VALUE!"},{"$f":"IF(C126=\"\",\"\",SUMIFS(tblCompras[Economia Negociada (R$)],tblCompras[Fornecedor Escolhido],C126))","v":""},{"$error":"#VALUE!"}]
[null,null,{"$f":"IFERROR(INDEX(tblFornecedores[Fornecedor],ROW(A6)),\"\")","v":""},{"$f":"IF(C127=\"\",\"\",COUNTIFS(tblCotacoes[Fornecedor],C127))","v":""},{"$f":"IF(C127=\"\",\"\",SUMIFS(tblCotacoes[Valor Final Cotado (R$)],tblCotacoes[Fornecedor],C127))","v":""},{"$f":"IFERROR(AVERAGEIFS(tblCotacoes[Prazo Entrega (dias)],tblCotacoes[Fornecedor],C127),0)","v":{"v":0,"d":"0.0"}},{"$f":"IF(C127=\"\",\"\",COUNTIFS(tblCompras[Fornecedor Escolhido],C127))","v":""},{"$f":"IF(C127=\"\",\"\",SUMIFS(tblCompras[Valor Final Fechado (R$)],tblCompras[Fornecedor Escolhido],C127))","v":""},{"$error":"#VALUE!"},{"$f":"IF(C127=\"\",\"\",SUMIFS(tblCompras[Economia Negociada (R$)],tblCompras[Fornecedor Escolhido],C127))","v":""},{"$error":"#VALUE!"}]
[null,null,{"$f":"IFERROR(INDEX(tblFornecedores[Fornecedor],ROW(A7)),\"\")","v":""},{"$f":"IF(C128=\"\",\"\",COUNTIFS(tblCotacoes[Fornecedor],C128))","v":""},{"$f":"IF(C128=\"\",\"\",SUMIFS(tblCotacoes[Valor Final Cotado (R$)],tblCotacoes[Fornecedor],C128))","v":""},{"$f":"IFERROR(AVERAGEIFS(tblCotacoes[Prazo Entrega (dias)],tblCotacoes[Fornecedor],C128),0)","v":{"v":0,"d":"0.0"}},{"$f":"IF(C128=\"\",\"\",COUNTIFS(tblCompras[Fornecedor Escolhido],C128))","v":""},{"$f":"IF(C128=\"\",\"\",SUMIFS(tblCompras[Valor Final Fechado (R$)],tblCompras[Fornecedor Escolhido],C128))","v":""},{"$error":"#VALUE!"},{"$f":"IF(C128=\"\",\"\",SUMIFS(tblCompras[Economia Negociada (R$)],tblCompras[Fornecedor Escolhido],C128))","v":""},{"$error":"#VALUE!"}]
[null,null,{"$f":"IFERROR(INDEX(tblFornecedores[Fornecedor],ROW(A8)),\"\")","v":""},{"$f":"IF(C129=\"\",\"\",COUNTIFS(tblCotacoes[Fornecedor],C129))","v":""},{"$f":"IF(C129=\"\",\"\",SUMIFS(tblCotacoes[Valor Final Cotado (R$)],tblCotacoes[Fornecedor],C129))","v":""},{"$f":"IFERROR(AVERAGEIFS(tblCotacoes[Prazo Entrega (dias)],tblCotacoes[Fornecedor],C129),0)","v":{"v":0,"d":"0.0"}},{"$f":"IF(C129=\"\",\"\",COUNTIFS(tblCompras[Fornecedor Escolhido],C129))","v":""},{"$f":"IF(C129=\"\",\"\",SUMIFS(tblCompras[Valor Final Fechado (R$)],tblCompras[Fornecedor Escolhido],C129))","v":""},{"$error":"#VALUE!"},{"$f":"IF(C129=\"\",\"\",SUMIFS(tblCompras[Economia Negociada (R$)],tblCompras[Fornecedor Escolhido],C129))","v":""},{"$error":"#VALUE!"}]
[null,null,{"$f":"IFERROR(INDEX(tblFornecedores[Fornecedor],ROW(A9)),\"\")","v":""},{"$f":"IF(C130=\"\",\"\",COUNTIFS(tblCotacoes[Fornecedor],C130))","v":""},{"$f":"IF(C130=\"\",\"\",SUMIFS(tblCotacoes[Valor Final Cotado (R$)],tblCotacoes[Fornecedor],C130))","v":""},{"$f":"IFERROR(AVERAGEIFS(tblCotacoes[Prazo Entrega (dias)],tblCotacoes[Fornecedor],C130),0)","v":{"v":0,"d":"0.0"}},{"$f":"IF(C130=\"\",\"\",COUNTIFS(tblCompras[Fornecedor Escolhido],C130))","v":""},{"$f":"IF(C130=\"\",\"\",SUMIFS(tblCompras[Valor Final Fechado (R$)],tblCompras[Fornecedor Escolhido],C130))","v":""},{"$error":"#VALUE!"},{"$f":"IF(C130=\"\",\"\",SUMIFS(tblCompras[Economia Negociada (R$)],tblCompras[Fornecedor Escolhido],C130))","v":""},{"$error":"#VALUE!"}]
[null,null,{"$f":"IFERROR(INDEX(tblFornecedores[Fornecedor],ROW(A10)),\"\")","v":""},{"$f":"IF(C131=\"\",\"\",COUNTIFS(tblCotacoes[Fornecedor],C131))","v":""},{"$f":"IF(C131=\"\",\"\",SUMIFS(tblCotacoes[Valor Final Cotado (R$)],tblCotacoes[Fornecedor],C131))","v":""},{"$f":"IFERROR(AVERAGEIFS(tblCotacoes[Prazo Entrega (dias)],tblCotacoes[Fornecedor],C131),0)","v":{"v":0,"d":"0.0"}},{"$f":"IF(C131=\"\",\"\",COUNTIFS(tblCompras[Fornecedor Escolhido],C131))","v":""},{"$f":"IF(C131=\"\",\"\",SUMIFS(tblCompras[Valor Final Fechado (R$)],tblCompras[Fornecedor Escolhido],C131))","v":""},{"$error":"#VALUE!"},{"$f":"IF(C131=\"\",\"\",SUMIFS(tblCompras[Economia Negociada (R$)],tblCompras[Fornecedor Escolhido],C131))","v":""},{"$error":"#VALUE!"}]
[null,null,{"$f":"IFERROR(INDEX(tblFornecedores[Fornecedor],ROW(A11)),\"\")","v":""},{"$f":"IF(C132=\"\",\"\",COUNTIFS(tblCotacoes[Fornecedor],C132))","v":""},{"$f":"IF(C132=\"\",\"\",SUMIFS(tblCotacoes[Valor Final Cotado (R$)],tblCotacoes[Fornecedor],C132))","v":""},{"$f":"IFERROR(AVERAGEIFS(tblCotacoes[Prazo Entrega (dias)],tblCotacoes[Fornecedor],C132),0)","v":{"v":0,"d":"0.0"}},{"$f":"IF(C132=\"\",\"\",COUNTIFS(tblCompras[Fornecedor Escolhido],C132))","v":""},{"$f":"IF(C132=\"\",\"\",SUMIFS(tblCompras[Valor Final Fechado (R$)],tblCompras[Fornecedor Escolhido],C132))","v":""},{"$error":"#VALUE!"},{"$f":"IF(C132=\"\",\"\",SUMIFS(tblCompras[Economia Negociada (R$)],tblCompras[Fornecedor Escolhido],C132))","v":""},{"$error":"#VALUE!"}]
[null,null,{"$f":"IFERROR(INDEX(tblFornecedores[Fornecedor],ROW(A12)),\"\")","v":""},{"$f":"IF(C133=\"\",\"\",COUNTIFS(tblCotacoes[Fornecedor],C133))","v":""},{"$f":"IF(C133=\"\",\"\",SUMIFS(tblCotacoes[Valor Final Cotado (R$)],tblCotacoes[Fornecedor],C133))","v":""},{"$f":"IFERROR(AVERAGEIFS(tblCotacoes[Prazo Entrega (dias)],tblCotacoes[Fornecedor],C133),0)","v":{"v":0,"d":"0.0"}},{"$f":"IF(C133=\"\",\"\",COUNTIFS(tblCompras[Fornecedor Escolhido],C133))","v":""},{"$f":"IF(C133=\"\",\"\",SUMIFS(tblCompras[Valor Final Fechado (R$)],tblCompras[Fornecedor Escolhido],C133))","v":""},{"$error":"#VALUE!"},{"$f":"IF(C133=\"\",\"\",SUMIFS(tblCompras[Economia Negociada (R$)],tblCompras[Fornecedor Escolhido],C133))","v":""},{"$error":"#VALUE!"}]
[null,null,{"$f":"IFERROR(INDEX(tblFornecedores[Fornecedor],ROW(A13)),\"\")","v":""},{"$f":"IF(C134=\"\",\"\",COUNTIFS(tblCotacoes[Fornecedor],C134))","v":""},{"$f":"IF(C134=\"\",\"\",SUMIFS(tblCotacoes[Valor Final Cotado (R$)],tblCotacoes[Fornecedor],C134))","v":""},{"$f":"IFERROR(AVERAGEIFS(tblCotacoes[Prazo Entrega (dias)],tblCotacoes[Fornecedor],C134),0)","v":{"v":0,"d":"0.0"}},{"$f":"IF(C134=\"\",\"\",COUNTIFS(tblCompras[Fornecedor Escolhido],C134))","v":""},{"$f":"IF(C134=\"\",\"\",SUMIFS(tblCompras[Valor Final Fechado (R$)],tblCompras[Fornecedor Escolhido],C134))","v":""},{"$error":"#VALUE!"},{"$f":"IF(C134=\"\",\"\",SUMIFS(tblCompras[Economia Negociada (R$)],tblCompras[Fornecedor Escolhido],C134))","v":""},{"$error":"#VALUE!"}]
[null,null,{"$f":"IFERROR(INDEX(tblFornecedores[Fornecedor],ROW(A14)),\"\")","v":""},{"$f":"IF(C135=\"\",\"\",COUNTIFS(tblCotacoes[Fornecedor],C135))","v":""},{"$f":"IF(C135=\"\",\"\",SUMIFS(tblCotacoes[Valor Final Cotado (R$)],tblCotacoes[Fornecedor],C135))","v":""},{"$f":"IFERROR(AVERAGEIFS(tblCotacoes[Prazo Entrega (dias)],tblCotacoes[Fornecedor],C135),0)","v":{"v":0,"d":"0.0"}},{"$f":"IF(C135=\"\",\"\",COUNTIFS(tblCompras[Fornecedor Escolhido],C135))","v":""},{"$f":"IF(C135=\"\",\"\",SUMIFS(tblCompras[Valor Final Fechado (R$)],tblCompras[Fornecedor Escolhido],C135))","v":""},{"$error":"#VALUE!"},{"$f":"IF(C135=\"\",\"\",SUMIFS(tblCompras[Economia Negociada (R$)],tblCompras[Fornecedor Escolhido],C135))","v":""},{"$error":"#VALUE!"}]
[null,null,{"$f":"IFERROR(INDEX(tblFornecedores[Fornecedor],ROW(A15)),\"\")","v":""},{"$f":"IF(C136=\"\",\"\",COUNTIFS(tblCotacoes[Fornecedor],C136))","v":""},{"$f":"IF(C136=\"\",\"\",SUMIFS(tblCotacoes[Valor Final Cotado (R$)],tblCotacoes[Fornecedor],C136))","v":""},{"$f":"IFERROR(AVERAGEIFS(tblCotacoes[Prazo Entrega (dias)],tblCotacoes[Fornecedor],C136),0)","v":{"v":0,"d":"0.0"}},{"$f":"IF(C136=\"\",\"\",COUNTIFS(tblCompras[Fornecedor Escolhido],C136))","v":""},{"$f":"IF(C136=\"\",\"\",SUMIFS(tblCompras[Valor Final Fechado (R$)],tblCompras[Fornecedor Escolhido],C136))","v":""},{"$error":"#VALUE!"},{"$f":"IF(C136=\"\",\"\",SUMIFS(tblCompras[Economia Negociada (R$)],tblCompras[Fornecedor Escolhido],C136))","v":""},{"$error":"#VALUE!"}]
[null,null,{"$f":"IFERROR(INDEX(tblFornecedores[Fornecedor],ROW(A16)),\"\")","v":""},{"$f":"IF(C137=\"\",\"\",COUNTIFS(tblCotacoes[Fornecedor],C137))","v":""},{"$f":"IF(C137=\"\",\"\",SUMIFS(tblCotacoes[Valor Final Cotado (R$)],tblCotacoes[Fornecedor],C137))","v":""},{"$f":"IFERROR(AVERAGEIFS(tblCotacoes[Prazo Entrega (dias)],tblCotacoes[Fornecedor],C137),0)","v":{"v":0,"d":"0.0"}},{"$f":"IF(C137=\"\",\"\",COUNTIFS(tblCompras[Fornecedor Escolhido],C137))","v":""},{"$f":"IF(C137=\"\",\"\",SUMIFS(tblCompras[Valor Final Fechado (R$)],tblCompras[Fornecedor Escolhido],C137))","v":""},{"$error":"#VALUE!"},{"$f":"IF(C137=\"\",\"\",SUMIFS(tblCompras[Economia Negociada (R$)],tblCompras[Fornecedor Escolhido],C137))","v":""},{"$error":"#VALUE!"}]
[null,null,{"$f":"IFERROR(INDEX(tblFornecedores[Fornecedor],ROW(A17)),\"\")","v":""},{"$f":"IF(C138=\"\",\"\",COUNTIFS(tblCotacoes[Fornecedor],C138))","v":""},{"$f":"IF(C138=\"\",\"\",SUMIFS(tblCotacoes[Valor Final Cotado (R$)],tblCotacoes[Fornecedor],C138))","v":""},{"$f":"IFERROR(AVERAGEIFS(tblCotacoes[Prazo Entrega (dias)],tblCotacoes[Fornecedor],C138),0)","v":{"v":0,"d":"0.0"}},{"$f":"IF(C138=\"\",\"\",COUNTIFS(tblCompras[Fornecedor Escolhido],C138))","v":""},{"$f":"IF(C138=\"\",\"\",SUMIFS(tblCompras[Valor Final Fechado (R$)],tblCompras[Fornecedor Escolhido],C138))","v":""},{"$error":"#VALUE!"},{"$f":"IF(C138=\"\",\"\",SUMIFS(tblCompras[Economia Negociada (R$)],tblCompras[Fornecedor Escolhido],C138))","v":""},{"$error":"#VALUE!"}]
[null,null,{"$f":"IFERROR(INDEX(tblFornecedores[Fornecedor],ROW(A18)),\"\")","v":""},{"$f":"IF(C139=\"\",\"\",COUNTIFS(tblCotacoes[Fornecedor],C139))","v":""},{"$f":"IF(C139=\"\",\"\",SUMIFS(tblCotacoes[Valor Final Cotado (R$)],tblCotacoes[Fornecedor],C139))","v":""},{"$f":"IFERROR(AVERAGEIFS(tblCotacoes[Prazo Entrega (dias)],tblCotacoes[Fornecedor],C139),0)","v":{"v":0,"d":"0.0"}},{"$f":"IF(C139=\"\",\"\",COUNTIFS(tblCompras[Fornecedor Escolhido],C139))","v":""},{"$f":"IF(C139=\"\",\"\",SUMIFS(tblCompras[Valor Final Fechado (R$)],tblCompras[Fornecedor Escolhido],C139))","v":""},{"$error":"#VALUE!"},{"$f":"IF(C139=\"\",\"\",SUMIFS(tblCompras[Economia Negociada (R$)],tblCompras[Fornecedor Escolhido],C139))","v":""},{"$error":"#VALUE!"}]
[null,null,{"$f":"IFERROR(INDEX(tblFornecedores[Fornecedor],ROW(A19)),\"\")","v":""},{"$f":"IF(C140=\"\",\"\",COUNTIFS(tblCotacoes[Fornecedor],C140))","v":""},{"$f":"IF(C140=\"\",\"\",SUMIFS(tblCotacoes[Valor Final Cotado (R$)],tblCotacoes[Fornecedor],C140))","v":""},{"$f":"IFERROR(AVERAGEIFS(tblCotacoes[Prazo Entrega (dias)],tblCotacoes[Fornecedor],C140),0)","v":{"v":0,"d":"0.0"}},{"$f":"IF(C140=\"\",\"\",COUNTIFS(tblCompras[Fornecedor Escolhido],C140))","v":""},{"$f":"IF(C140=\"\",\"\",SUMIFS(tblCompras[Valor Final Fechado (R$)],tblCompras[Fornecedor Escolhido],C140))","v":""},{"$error":"#VALUE!"},{"$f":"IF(C140=\"\",\"\",SUMIFS(tblCompras[Economia Negociada (R$)],tblCompras[Fornecedor Escolhido],C140))","v":""},{"$error":"#VALUE!"}]
[null,null,{"$f":"IFERROR(INDEX(tblFornecedores[Fornecedor],ROW(A20)),\"\")","v":""},{"$f":"IF(C141=\"\",\"\",COUNTIFS(tblCotacoes[Fornecedor],C141))","v":""},{"$f":"IF(C141=\"\",\"\",SUMIFS(tblCotacoes[Valor Final Cotado (R$)],tblCotacoes[Fornecedor],C141))","v":""},{"$f":"IFERROR(AVERAGEIFS(tblCotacoes[Prazo Entrega (dias)],tblCotacoes[Fornecedor],C141),0)","v":{"v":0,"d":"0.0"}},{"$f":"IF(C141=\"\",\"\",COUNTIFS(tblCompras[Fornecedor Escolhido],C141))","v":""},{"$f":"IF(C141=\"\",\"\",SUMIFS(tblCompras[Valor Final Fechado (R$)],tblCompras[Fornecedor Escolhido],C141))","v":""},{"$error":"#VALUE!"},{"$f":"IF(C141=\"\",\"\",SUMIFS(tblCompras[Economia Negociada (R$)],tblCompras[Fornecedor Escolhido],C141))","v":""},{"$error":"#VALUE!"}]
[null,null,{"$f":"IFERROR(INDEX(tblFornecedores[Fornecedor],ROW(A21)),\"\")","v":""},{"$f":"IF(C142=\"\",\"\",COUNTIFS(tblCotacoes[Fornecedor],C142))","v":""},{"$f":"IF(C142=\"\",\"\",SUMIFS(tblCotacoes[Valor Final Cotado (R$)],tblCotacoes[Fornecedor],C142))","v":""},{"$f":"IFERROR(AVERAGEIFS(tblCotacoes[Prazo Entrega (dias)],tblCotacoes[Fornecedor],C142),0)","v":{"v":0,"d":"0.0"}},{"$f":"IF(C142=\"\",\"\",COUNTIFS(tblCompras[Fornecedor Escolhido],C142))","v":""},{"$f":"IF(C142=\"\",\"\",SUMIFS(tblCompras[Valor Final Fechado (R$)],tblCompras[Fornecedor Escolhido],C142))","v":""},{"$error":"#VALUE!"},{"$f":"IF(C142=\"\",\"\",SUMIFS(tblCompras[Economia Negociada (R$)],tblCompras[Fornecedor Escolhido],C142))","v":""},{"$error":"#VALUE!"}]
[null,null,{"$f":"IFERROR(INDEX(tblFornecedores[Fornecedor],ROW(A22)),\"\")","v":""},{"$f":"IF(C143=\"\",\"\",COUNTIFS(tblCotacoes[Fornecedor],C143))","v":""},{"$f":"IF(C143=\"\",\"\",SUMIFS(tblCotacoes[Valor Final Cotado (R$)],tblCotacoes[Fornecedor],C143))","v":""},{"$f":"IFERROR(AVERAGEIFS(tblCotacoes[Prazo Entrega (dias)],tblCotacoes[Fornecedor],C143),0)","v":{"v":0,"d":"0.0"}},{"$f":"IF(C143=\"\",\"\",COUNTIFS(tblCompras[Fornecedor Escolhido],C143))","v":""},{"$f":"IF(C143=\"\",\"\",SUMIFS(tblCompras[Valor Final Fechado (R$)],tblCompras[Fornecedor Escolhido],C143))","v":""},{"$error":"#VALUE!"},{"$f":"IF(C143=\"\",\"\",SUMIFS(tblCompras[Economia Negociada (R$)],tblCompras[Fornecedor Escolhido],C143))","v":""},{"$error":"#VALUE!"}]
[null,null,{"$f":"IFERROR(INDEX(tblFornecedores[Fornecedor],ROW(A23)),\"\")","v":""},{"$f":"IF(C144=\"\",\"\",COUNTIFS(tblCotacoes[Fornecedor],C144))","v":""},{"$f":"IF(C144=\"\",\"\",SUMIFS(tblCotacoes[Valor Final Cotado (R$)],tblCotacoes[Fornecedor],C144))","v":""},{"$f":"IFERROR(AVERAGEIFS(tblCotacoes[Prazo Entrega (dias)],tblCotacoes[Fornecedor],C144),0)","v":{"v":0,"d":"0.0"}},{"$f":"IF(C144=\"\",\"\",COUNTIFS(tblCompras[Fornecedor Escolhido],C144))","v":""},{"$f":"IF(C144=\"\",\"\",SUMIFS(tblCompras[Valor Final Fechado (R$)],tblCompras[Fornecedor Escolhido],C144))","v":""},{"$error":"#VALUE!"},{"$f":"IF(C144=\"\",\"\",SUMIFS(tblCompras[Economia Negociada (R$)],tblCompras[Fornecedor Escolhido],C144))","v":""},{"$error":"#VALUE!"}]
[null,null,{"$f":"IFERROR(INDEX(tblFornecedores[Fornecedor],ROW(A24)),\"\")","v":""},{"$f":"IF(C145=\"\",\"\",COUNTIFS(tblCotacoes[Fornecedor],C145))","v":""},{"$f":"IF(C145=\"\",\"\",SUMIFS(tblCotacoes[Valor Final Cotado (R$)],tblCotacoes[Fornecedor],C145))","v":""},{"$f":"IFERROR(AVERAGEIFS(tblCotacoes[Prazo Entrega (dias)],tblCotacoes[Fornecedor],C145),0)","v":{"v":0,"d":"0.0"}},{"$f":"IF(C145=\"\",\"\",COUNTIFS(tblCompras[Fornecedor Escolhido],C145))","v":""},{"$f":"IF(C145=\"\",\"\",SUMIFS(tblCompras[Valor Final Fechado (R$)],tblCompras[Fornecedor Escolhido],C145))","v":""},{"$error":"#VALUE!"},{"$f":"IF(C145=\"\",\"\",SUMIFS(tblCompras[Economia Negociada (R$)],tblCompras[Fornecedor Escolhido],C145))","v":""},{"$error":"#VALUE!"}]
[null,null,{"$f":"IFERROR(INDEX(tblFornecedores[Fornecedor],ROW(A25)),\"\")","v":""},{"$f":"IF(C146=\"\",\"\",COUNTIFS(tblCotacoes[Fornecedor],C146))","v":""},{"$f":"IF(C146=\"\",\"\",SUMIFS(tblCotacoes[Valor Final Cotado (R$)],tblCotacoes[Fornecedor],C146))","v":""},{"$f":"IFERROR(AVERAGEIFS(tblCotacoes[Prazo Entrega (dias)],tblCotacoes[Fornecedor],C146),0)","v":{"v":0,"d":"0.0"}},{"$f":"IF(C146=\"\",\"\",COUNTIFS(tblCompras[Fornecedor Escolhido],C146))","v":""},{"$f":"IF(C146=\"\",\"\",SUMIFS(tblCompras[Valor Final Fechado (R$)],tblCompras[Fornecedor Escolhido],C146))","v":""},{"$error":"#VALUE!"},{"$f":"IF(C146=\"\",\"\",SUMIFS(tblCompras[Economia Negociada (R$)],tblCompras[Fornecedor Escolhido],C146))","v":""},{"$error":"#VALUE!"}]
[null,null,{"$f":"IFERROR(INDEX(tblFornecedores[Fornecedor],ROW(A26)),\"\")","v":""},{"$f":"IF(C147=\"\",\"\",COUNTIFS(tblCotacoes[Fornecedor],C147))","v":""},{"$f":"IF(C147=\"\",\"\",SUMIFS(tblCotacoes[Valor Final Cotado (R$)],tblCotacoes[Fornecedor],C147))","v":""},{"$f":"IFERROR(AVERAGEIFS(tblCotacoes[Prazo Entrega (dias)],tblCotacoes[Fornecedor],C147),0)","v":{"v":0,"d":"0.0"}},{"$f":"IF(C147=\"\",\"\",COUNTIFS(tblCompras[Fornecedor Escolhido],C147))","v":""},{"$f":"IF(C147=\"\",\"\",SUMIFS(tblCompras[Valor Final Fechado (R$)],tblCompras[Fornecedor Escolhido],C147))","v":""},{"$error":"#VALUE!"},{"$f":"IF(C147=\"\",\"\",SUMIFS(tblCompras[Economia Negociada (R$)],tblCompras[Fornecedor Escolhido],C147))","v":""},{"$error":"#VALUE!"}]
[null,null,{"$f":"IFERROR(INDEX(tblFornecedores[Fornecedor],ROW(A27)),\"\")","v":""},{"$f":"IF(C148=\"\",\"\",COUNTIFS(tblCotacoes[Fornecedor],C148))","v":""},{"$f":"IF(C148=\"\",\"\",SUMIFS(tblCotacoes[Valor Final Cotado (R$)],tblCotacoes[Fornecedor],C148))","v":""},{"$f":"IFERROR(AVERAGEIFS(tblCotacoes[Prazo Entrega (dias)],tblCotacoes[Fornecedor],C148),0)","v":{"v":0,"d":"0.0"}},{"$f":"IF(C148=\"\",\"\",COUNTIFS(tblCompras[Fornecedor Escolhido],C148))","v":""},{"$f":"IF(C148=\"\",\"\",SUMIFS(tblCompras[Valor Final Fechado (R$)],tblCompras[Fornecedor Escolhido],C148))","v":""},{"$error":"#VALUE!"},{"$f":"IF(C148=\"\",\"\",SUMIFS(tblCompras[Economia Negociada (R$)],tblCompras[Fornecedor Escolhido],C148))","v":""},{"$error":"#VALUE!"}]
[null,null,{"$f":"IFERROR(INDEX(tblFornecedores[Fornecedor],ROW(A28)),\"\")","v":""},{"$f":"IF(C149=\"\",\"\",COUNTIFS(tblCotacoes[Fornecedor],C149))","v":""},{"$f":"IF(C149=\"\",\"\",SUMIFS(tblCotacoes[Valor Final Cotado (R$)],tblCotacoes[Fornecedor],C149))","v":""},{"$f":"IFERROR(AVERAGEIFS(tblCotacoes[Prazo Entrega (dias)],tblCotacoes[Fornecedor],C149),0)","v":{"v":0,"d":"0.0"}},{"$f":"IF(C149=\"\",\"\",COUNTIFS(tblCompras[Fornecedor Escolhido],C149))","v":""},{"$f":"IF(C149=\"\",\"\",SUMIFS(tblCompras[Valor Final Fechado (R$)],tblCompras[Fornecedor Escolhido],C149))","v":""},{"$error":"#VALUE!"},{"$f":"IF(C149=\"\",\"\",SUMIFS(tblCompras[Economia Negociada (R$)],tblCompras[Fornecedor Escolhido],C149))","v":""},{"$error":"#VALUE!"}]
[null,null,{"$f":"IFERROR(INDEX(tblFornecedores[Fornecedor],ROW(A29)),\"\")","v":""},{"$f":"IF(C150=\"\",\"\",COUNTIFS(tblCotacoes[Fornecedor],C150))","v":""},{"$f":"IF(C150=\"\",\"\",SUMIFS(tblCotacoes[Valor Final Cotado (R$)],tblCotacoes[Fornecedor],C150))","v":""},{"$f":"IFERROR(AVERAGEIFS(tblCotacoes[Prazo Entrega (dias)],tblCotacoes[Fornecedor],C150),0)","v":{"v":0,"d":"0.0"}},{"$f":"IF(C150=\"\",\"\",COUNTIFS(tblCompras[Fornecedor Escolhido],C150))","v":""},{"$f":"IF(C150=\"\",\"\",SUMIFS(tblCompras[Valor Final Fechado (R$)],tblCompras[Fornecedor Escolhido],C150))","v":""},{"$error":"#VALUE!"},{"$f":"IF(C150=\"\",\"\",SUMIFS(tblCompras[Economia Negociada (R$)],tblCompras[Fornecedor Escolhido],C150))","v":""},{"$error":"#VALUE!"}]
[null,null,{"$f":"IFERROR(INDEX(tblFornecedores[Fornecedor],ROW(A30)),\"\")","v":""},{"$f":"IF(C151=\"\",\"\",COUNTIFS(tblCotacoes[Fornecedor],C151))","v":""},{"$f":"IF(C151=\"\",\"\",SUMIFS(tblCotacoes[Valor Final Cotado (R$)],tblCotacoes[Fornecedor],C151))","v":""},{"$f":"IFERROR(AVERAGEIFS(tblCotacoes[Prazo Entrega (dias)],tblCotacoes[Fornecedor],C151),0)","v":{"v":0,"d":"0.0"}},{"$f":"IF(C151=\"\",\"\",COUNTIFS(tblCompras[Fornecedor Escolhido],C151))","v":""},{"$f":"IF(C151=\"\",\"\",SUMIFS(tblCompras[Valor Final Fechado (R$)],tblCompras[Fornecedor Escolhido],C151))","v":""},{"$error":"#VALUE!"},{"$f":"IF(C151=\"\",\"\",SUMIFS(tblCompras[Economia Negociada (R$)],tblCompras[Fornecedor Escolhido],C151))","v":""},{"$error":"#VALUE!"}]
[null,null,{"$f":"IFERROR(INDEX(tblFornecedores[Fornecedor],ROW(A31)),\"\")","v":""},{"$f":"IF(C152=\"\",\"\",COUNTIFS(tblCotacoes[Fornecedor],C152))","v":""},{"$f":"IF(C152=\"\",\"\",SUMIFS(tblCotacoes[Valor Final Cotado (R$)],tblCotacoes[Fornecedor],C152))","v":""},{"$f":"IFERROR(AVERAGEIFS(tblCotacoes[Prazo Entrega (dias)],tblCotacoes[Fornecedor],C152),0)","v":{"v":0,"d":"0.0"}},{"$f":"IF(C152=\"\",\"\",COUNTIFS(tblCompras[Fornecedor Escolhido],C152))","v":""},{"$f":"IF(C152=\"\",\"\",SUMIFS(tblCompras[Valor Final Fechado (R$)],tblCompras[Fornecedor Escolhido],C152))","v":""},{"$error":"#VALUE!"},{"$f":"IF(C152=\"\",\"\",SUMIFS(tblCompras[Economia Negociada (R$)],tblCompras[Fornecedor Escolhido],C152))","v":""},{"$error":"#VALUE!"}]
[null,null,{"$f":"IFERROR(INDEX(tblFornecedores[Fornecedor],ROW(A32)),\"\")","v":""},{"$f":"IF(C153=\"\",\"\",COUNTIFS(tblCotacoes[Fornecedor],C153))","v":""},{"$f":"IF(C153=\"\",\"\",SUMIFS(tblCotacoes[Valor Final Cotado (R$)],tblCotacoes[Fornecedor],C153))","v":""},{"$f":"IFERROR(AVERAGEIFS(tblCotacoes[Prazo Entrega (dias)],tblCotacoes[Fornecedor],C153),0)","v":{"v":0,"d":"0.0"}},{"$f":"IF(C153=\"\",\"\",COUNTIFS(tblCompras[Fornecedor Escolhido],C153))","v":""},{"$f":"IF(C153=\"\",\"\",SUMIFS(tblCompras[Valor Final Fechado (R$)],tblCompras[Fornecedor Escolhido],C153))","v":""},{"$error":"#VALUE!"},{"$f":"IF(C153=\"\",\"\",SUMIFS(tblCompras[Economia Negociada (R$)],tblCompras[Fornecedor Escolhido],C153))","v":""},{"$error":"#VALUE!"}]
[null,null,{"$f":"IFERROR(INDEX(tblFornecedores[Fornecedor],ROW(A33)),\"\")","v":""},{"$f":"IF(C154=\"\",\"\",COUNTIFS(tblCotacoes[Fornecedor],C154))","v":""},{"$f":"IF(C154=\"\",\"\",SUMIFS(tblCotacoes[Valor Final Cotado (R$)],tblCotacoes[Fornecedor],C154))","v":""},{"$f":"IFERROR(AVERAGEIFS(tblCotacoes[Prazo Entrega (dias)],tblCotacoes[Fornecedor],C154),0)","v":{"v":0,"d":"0.0"}},{"$f":"IF(C154=\"\",\"\",COUNTIFS(tblCompras[Fornecedor Escolhido],C154))","v":""},{"$f":"IF(C154=\"\",\"\",SUMIFS(tblCompras[Valor Final Fechado (R$)],tblCompras[Fornecedor Escolhido],C154))","v":""},{"$f":"IF(D154=0,0,G154/D154)","v":{"$error":"#VALUE!"}},{"$f":"IF(C154=\"\",\"\",SUMIFS(tblCompras[Economia Negociada (R$)],tblCompras[Fornecedor Escolhido],C154))","v":""},{"$f":"IF(G154=0,0,H154/G154)","v":{"$error":"#VALUE!"}}]
[null,null,{"$f":"IFERROR(INDEX(tblFornecedores[Fornecedor],ROW(A34)),\"\")","v":""},{"$f":"IF(C155=\"\",\"\",COUNTIFS(tblCotacoes[Fornecedor],C155))","v":""},{"$f":"IF(C155=\"\",\"\",SUMIFS(tblCotacoes[Valor Final Cotado (R$)],tblCotacoes[Fornecedor],C155))","v":""},{"$f":"IFERROR(AVERAGEIFS(tblCotacoes[Prazo Entrega (dias)],tblCotacoes[Fornecedor],C155),0)","v":{"v":0,"d":"0.0"}},{"$f":"IF(C155=\"\",\"\",COUNTIFS(tblCompras[Fornecedor Escolhido],C155))","v":""},{"$f":"IF(C155=\"\",\"\",SUMIFS(tblCompras[Valor Final Fechado (R$)],tblCompras[Fornecedor Escolhido],C155))","v":""},{"$error":"#VALUE!"},{"$f":"IF(C155=\"\",\"\",SUMIFS(tblCompras[Economia Negociada (R$)],tblCompras[Fornecedor Escolhido],C155))","v":""},{"$error":"#VALUE!"}]
[null,null,{"$f":"IFERROR(INDEX(tblFornecedores[Fornecedor],ROW(A35)),\"\")","v":""},{"$f":"IF(C156=\"\",\"\",COUNTIFS(tblCotacoes[Fornecedor],C156))","v":""},{"$f":"IF(C156=\"\",\"\",SUMIFS(tblCotacoes[Valor Final Cotado (R$)],tblCotacoes[Fornecedor],C156))","v":""},{"$f":"IFERROR(AVERAGEIFS(tblCotacoes[Prazo Entrega (dias)],tblCotacoes[Fornecedor],C156),0)","v":{"v":0,"d":"0.0"}},{"$f":"IF(C156=\"\",\"\",COUNTIFS(tblCompras[Fornecedor Escolhido],C156))","v":""},{"$f":"IF(C156=\"\",\"\",SUMIFS(tblCompras[Valor Final Fechado (R$)],tblCompras[Fornecedor Escolhido],C156))","v":""},{"$error":"#VALUE!"},{"$f":"IF(C156=\"\",\"\",SUMIFS(tblCompras[Economia Negociada (R$)],tblCompras[Fornecedor Escolhido],C156))","v":""},{"$error":"#VALUE!"}]
[null,null,{"$f":"IFERROR(INDEX(tblFornecedores[Fornecedor],ROW(A36)),\"\")","v":""},{"$f":"IF(C157=\"\",\"\",COUNTIFS(tblCotacoes[Fornecedor],C157))","v":""},{"$f":"IF(C157=\"\",\"\",SUMIFS(tblCotacoes[Valor Final Cotado (R$)],tblCotacoes[Fornecedor],C157))","v":""},{"$f":"IFERROR(AVERAGEIFS(tblCotacoes[Prazo Entrega (dias)],tblCotacoes[Fornecedor],C157),0)","v":{"v":0,"d":"0.0"}},{"$f":"IF(C157=\"\",\"\",COUNTIFS(tblCompras[Fornecedor Escolhido],C157))","v":""},{"$f":"IF(C157=\"\",\"\",SUMIFS(tblCompras[Valor Final Fechado (R$)],tblCompras[Fornecedor Escolhido],C157))","v":""},{"$error":"#VALUE!"},{"$f":"IF(C157=\"\",\"\",SUMIFS(tblCompras[Economia Negociada (R$)],tblCompras[Fornecedor Escolhido],C157))","v":""},{"$error":"#VALUE!"}]
[null,null,{"$f":"IFERROR(INDEX(tblFornecedores[Fornecedor],ROW(A37)),\"\")","v":""},{"$f":"IF(C158=\"\",\"\",COUNTIFS(tblCotacoes[Fornecedor],C158))","v":""},{"$f":"IF(C158=\"\",\"\",SUMIFS(tblCotacoes[Valor Final Cotado (R$)],tblCotacoes[Fornecedor],C158))","v":""},{"$f":"IFERROR(AVERAGEIFS(tblCotacoes[Prazo Entrega (dias)],tblCotacoes[Fornecedor],C158),0)","v":{"v":0,"d":"0.0"}},{"$f":"IF(C158=\"\",\"\",COUNTIFS(tblCompras[Fornecedor Escolhido],C158))","v":""},{"$f":"IF(C158=\"\",\"\",SUMIFS(tblCompras[Valor Final Fechado (R$)],tblCompras[Fornecedor Escolhido],C158))","v":""},{"$error":"#VALUE!"},{"$f":"IF(C158=\"\",\"\",SUMIFS(tblCompras[Economia Negociada (R$)],tblCompras[Fornecedor Escolhido],C158))","v":""},{"$error":"#VALUE!"}]
[null,null,{"$f":"IFERROR(INDEX(tblFornecedores[Fornecedor],ROW(A38)),\"\")","v":""},{"$f":"IF(C159=\"\",\"\",COUNTIFS(tblCotacoes[Fornecedor],C159))","v":""},{"$f":"IF(C159=\"\",\"\",SUMIFS(tblCotacoes[Valor Final Cotado (R$)],tblCotacoes[Fornecedor],C159))","v":""},{"$f":"IFERROR(AVERAGEIFS(tblCotacoes[Prazo Entrega (dias)],tblCotacoes[Fornecedor],C159),0)","v":{"v":0,"d":"0.0"}},{"$f":"IF(C159=\"\",\"\",COUNTIFS(tblCompras[Fornecedor Escolhido],C159))","v":""},{"$f":"IF(C159=\"\",\"\",SUMIFS(tblCompras[Valor Final Fechado (R$)],tblCompras[Fornecedor Escolhido],C159))","v":""},{"$error":"#VALUE!"},{"$f":"IF(C159=\"\",\"\",SUMIFS(tblCompras[Economia Negociada (R$)],tblCompras[Fornecedor Escolhido],C159))","v":""},{"$error":"#VALUE!"}]
[null,null,{"$f":"IFERROR(INDEX(tblFornecedores[Fornecedor],ROW(A39)),\"\")","v":""},{"$f":"IF(C160=\"\",\"\",COUNTIFS(tblCotacoes[Fornecedor],C160))","v":""},{"$f":"IF(C160=\"\",\"\",SUMIFS(tblCotacoes[Valor Final Cotado (R$)],tblCotacoes[Fornecedor],C160))","v":""},{"$f":"IFERROR(AVERAGEIFS(tblCotacoes[Prazo Entrega (dias)],tblCotacoes[Fornecedor],C160),0)","v":{"v":0,"d":"0.0"}},{"$f":"IF(C160=\"\",\"\",COUNTIFS(tblCompras[Fornecedor Escolhido],C160))","v":""},{"$f":"IF(C160=\"\",\"\",SUMIFS(tblCompras[Valor Final Fechado (R$)],tblCompras[Fornecedor Escolhido],C160))","v":""},{"$error":"#VALUE!"},{"$f":"IF(C160=\"\",\"\",SUMIFS(tblCompras[Economia Negociada (R$)],tblCompras[Fornecedor Escolhido],C160))","v":""},{"$error":"#VALUE!"}]
[null,null,{"$f":"IFERROR(INDEX(tblFornecedores[Fornecedor],ROW(A40)),\"\")","v":""},{"$f":"IF(C161=\"\",\"\",COUNTIFS(tblCotacoes[Fornecedor],C161))","v":""},{"$f":"IF(C161=\"\",\"\",SUMIFS(tblCotacoes[Valor Final Cotado (R$)],tblCotacoes[Fornecedor],C161))","v":""},{"$f":"IFERROR(AVERAGEIFS(tblCotacoes[Prazo Entrega (dias)],tblCotacoes[Fornecedor],C161),0)","v":{"v":0,"d":"0.0"}},{"$f":"IF(C161=\"\",\"\",COUNTIFS(tblCompras[Fornecedor Escolhido],C161))","v":""},{"$f":"IF(C161=\"\",\"\",SUMIFS(tblCompras[Valor Final Fechado (R$)],tblCompras[Fornecedor Escolhido],C161))","v":""},{"$error":"#VALUE!"},{"$f":"IF(C161=\"\",\"\",SUMIFS(tblCompras[Economia Negociada (R$)],tblCompras[Fornecedor Escolhido],C161))","v":""},{"$error":"#VALUE!"}]
[null,null,{"$f":"IFERROR(INDEX(tblFornecedores[Fornecedor],ROW(A41)),\"\")","v":""},{"$f":"IF(C162=\"\",\"\",COUNTIFS(tblCotacoes[Fornecedor],C162))","v":""},{"$f":"IF(C162=\"\",\"\",SUMIFS(tblCotacoes[Valor Final Cotado (R$)],tblCotacoes[Fornecedor],C162))","v":""},{"$f":"IFERROR(AVERAGEIFS(tblCotacoes[Prazo Entrega (dias)],tblCotacoes[Fornecedor],C162),0)","v":{"v":0,"d":"0.0"}},{"$f":"IF(C162=\"\",\"\",COUNTIFS(tblCompras[Fornecedor Escolhido],C162))","v":""},{"$f":"IF(C162=\"\",\"\",SUMIFS(tblCompras[Valor Final Fechado (R$)],tblCompras[Fornecedor Escolhido],C162))","v":""},{"$error":"#VALUE!"},{"$f":"IF(C162=\"\",\"\",SUMIFS(tblCompras[Economia Negociada (R$)],tblCompras[Fornecedor Escolhido],C162))","v":""},{"$error":"#VALUE!"}]
[null,null,{"$f":"IFERROR(INDEX(tblFornecedores[Fornecedor],ROW(A42)),\"\")","v":""},{"$f":"IF(C163=\"\",\"\",COUNTIFS(tblCotacoes[Fornecedor],C163))","v":""},{"$f":"IF(C163=\"\",\"\",SUMIFS(tblCotacoes[Valor Final Cotado (R$)],tblCotacoes[Fornecedor],C163))","v":""},{"$f":"IFERROR(AVERAGEIFS(tblCotacoes[Prazo Entrega (dias)],tblCotacoes[Fornecedor],C163),0)","v":{"v":0,"d":"0.0"}},{"$f":"IF(C163=\"\",\"\",COUNTIFS(tblCompras[Fornecedor Escolhido],C163))","v":""},{"$f":"IF(C163=\"\",\"\",SUMIFS(tblCompras[Valor Final Fechado (R$)],tblCompras[Fornecedor Escolhido],C163))","v":""},{"$error":"#VALUE!"},{"$f":"IF(C163=\"\",\"\",SUMIFS(tblCompras[Economia Negociada (R$)],tblCompras[Fornecedor Escolhido],C163))","v":""},{"$error":"#VALUE!"}]
[null,null,{"$f":"IFERROR(INDEX(tblFornecedores[Fornecedor],ROW(A43)),\"\")","v":""},{"$f":"IF(C164=\"\",\"\",COUNTIFS(tblCotacoes[Fornecedor],C164))","v":""},{"$f":"IF(C164=\"\",\"\",SUMIFS(tblCotacoes[Valor Final Cotado (R$)],tblCotacoes[Fornecedor],C164))","v":""},{"$f":"IFERROR(AVERAGEIFS(tblCotacoes[Prazo Entrega (dias)],tblCotacoes[Fornecedor],C164),0)","v":{"v":0,"d":"0.0"}},{"$f":"IF(C164=\"\",\"\",COUNTIFS(tblCompras[Fornecedor Escolhido],C164))","v":""},{"$f":"IF(C164=\"\",\"\",SUMIFS(tblCompras[Valor Final Fechado (R$)],tblCompras[Fornecedor Escolhido],C164))","v":""},{"$error":"#VALUE!"},{"$f":"IF(C164=\"\",\"\",SUMIFS(tblCompras[Economia Negociada (R$)],tblCompras[Fornecedor Escolhido],C164))","v":""},{"$error":"#VALUE!"}]
[null,null,{"$f":"IFERROR(INDEX(tblFornecedores[Fornecedor],ROW(A44)),\"\")","v":""},{"$f":"IF(C165=\"\",\"\",COUNTIFS(tblCotacoes[Fornecedor],C165))","v":""},{"$f":"IF(C165=\"\",\"\",SUMIFS(tblCotacoes[Valor Final Cotado (R$)],tblCotacoes[Fornecedor],C165))","v":""},{"$f":"IFERROR(AVERAGEIFS(tblCotacoes[Prazo Entrega (dias)],tblCotacoes[Fornecedor],C165),0)","v":{"v":0,"d":"0.0"}},{"$f":"IF(C165=\"\",\"\",COUNTIFS(tblCompras[Fornecedor Escolhido],C165))","v":""},{"$f":"IF(C165=\"\",\"\",SUMIFS(tblCompras[Valor Final Fechado (R$)],tblCompras[Fornecedor Escolhido],C165))","v":""},{"$error":"#VALUE!"},{"$f":"IF(C165=\"\",\"\",SUMIFS(tblCompras[Economia Negociada (R$)],tblCompras[Fornecedor Escolhido],C165))","v":""},{"$error":"#VALUE!"}]
[null,null,{"$f":"IFERROR(INDEX(tblFornecedores[Fornecedor],ROW(A45)),\"\")","v":""},{"$f":"IF(C166=\"\",\"\",COUNTIFS(tblCotacoes[Fornecedor],C166))","v":""},{"$f":"IF(C166=\"\",\"\",SUMIFS(tblCotacoes[Valor Final Cotado (R$)],tblCotacoes[Fornecedor],C166))","v":""},{"$f":"IFERROR(AVERAGEIFS(tblCotacoes[Prazo Entrega (dias)],tblCotacoes[Fornecedor],C166),0)","v":{"v":0,"d":"0.0"}},{"$f":"IF(C166=\"\",\"\",COUNTIFS(tblCompras[Fornecedor Escolhido],C166))","v":""},{"$f":"IF(C166=\"\",\"\",SUMIFS(tblCompras[Valor Final Fechado (R$)],tblCompras[Fornecedor Escolhido],C166))","v":""},{"$error":"#VALUE!"},{"$f":"IF(C166=\"\",\"\",SUMIFS(tblCompras[Economia Negociada (R$)],tblCompras[Fornecedor Escolhido],C166))","v":""},{"$error":"#VALUE!"}]
[null,null,{"$f":"IFERROR(INDEX(tblFornecedores[Fornecedor],ROW(A46)),\"\")","v":""},{"$f":"IF(C167=\"\",\"\",COUNTIFS(tblCotacoes[Fornecedor],C167))","v":""},{"$f":"IF(C167=\"\",\"\",SUMIFS(tblCotacoes[Valor Final Cotado (R$)],tblCotacoes[Fornecedor],C167))","v":""},{"$f":"IFERROR(AVERAGEIFS(tblCotacoes[Prazo Entrega (dias)],tblCotacoes[Fornecedor],C167),0)","v":{"v":0,"d":"0.0"}},{"$f":"IF(C167=\"\",\"\",COUNTIFS(tblCompras[Fornecedor Escolhido],C167))","v":""},{"$f":"IF(C167=\"\",\"\",SUMIFS(tblCompras[Valor Final Fechado (R$)],tblCompras[Fornecedor Escolhido],C167))","v":""},{"$error":"#VALUE!"},{"$f":"IF(C167=\"\",\"\",SUMIFS(tblCompras[Economia Negociada (R$)],tblCompras[Fornecedor Escolhido],C167))","v":""},{"$error":"#VALUE!"}]
[null,null,{"$f":"IFERROR(INDEX(tblFornecedores[Fornecedor],ROW(A47)),\"\")","v":""},{"$f":"IF(C168=\"\",\"\",COUNTIFS(tblCotacoes[Fornecedor],C168))","v":""},{"$f":"IF(C168=\"\",\"\",SUMIFS(tblCotacoes[Valor Final Cotado (R$)],tblCotacoes[Fornecedor],C168))","v":""},{"$f":"IFERROR(AVERAGEIFS(tblCotacoes[Prazo Entrega (dias)],tblCotacoes[Fornecedor],C168),0)","v":{"v":0,"d":"0.0"}},{"$f":"IF(C168=\"\",\"\",COUNTIFS(tblCompras[Fornecedor Escolhido],C168))","v":""},{"$f":"IF(C168=\"\",\"\",SUMIFS(tblCompras[Valor Final Fechado (R$)],tblCompras[Fornecedor Escolhido],C168))","v":""},{"$error":"#VALUE!"},{"$f":"IF(C168=\"\",\"\",SUMIFS(tblCompras[Economia Negociada (R$)],tblCompras[Fornecedor Escolhido],C168))","v":""},{"$error":"#VALUE!"}]
[null,null,{"$f":"IFERROR(INDEX(tblFornecedores[Fornecedor],ROW(A48)),\"\")","v":""},{"$f":"IF(C169=\"\",\"\",COUNTIFS(tblCotacoes[Fornecedor],C169))","v":""},{"$f":"IF(C169=\"\",\"\",SUMIFS(tblCotacoes[Valor Final Cotado (R$)],tblCotacoes[Fornecedor],C169))","v":""},{"$f":"IFERROR(AVERAGEIFS(tblCotacoes[Prazo Entrega (dias)],tblCotacoes[Fornecedor],C169),0)","v":{"v":0,"d":"0.0"}},{"$f":"IF(C169=\"\",\"\",COUNTIFS(tblCompras[Fornecedor Escolhido],C169))","v":""},{"$f":"IF(C169=\"\",\"\",SUMIFS(tblCompras[Valor Final Fechado (R$)],tblCompras[Fornecedor Escolhido],C169))","v":""},{"$error":"#VALUE!"},{"$f":"IF(C169=\"\",\"\",SUMIFS(tblCompras[Economia Negociada (R$)],tblCompras[Fornecedor Escolhido],C169))","v":""},{"$error":"#VALUE!"}]
[null,null,{"$f":"IFERROR(INDEX(tblFornecedores[Fornecedor],ROW(A49)),\"\")","v":""},{"$f":"IF(C170=\"\",\"\",COUNTIFS(tblCotacoes[Fornecedor],C170))","v":""},{"$f":"IF(C170=\"\",\"\",SUMIFS(tblCotacoes[Valor Final Cotado (R$)],tblCotacoes[Fornecedor],C170))","v":""},{"$f":"IFERROR(AVERAGEIFS(tblCotacoes[Prazo Entrega (dias)],tblCotacoes[Fornecedor],C170),0)","v":{"v":0,"d":"0.0"}},{"$f":"IF(C170=\"\",\"\",COUNTIFS(tblCompras[Fornecedor Escolhido],C170))","v":""},{"$f":"IF(C170=\"\",\"\",SUMIFS(tblCompras[Valor Final Fechado (R$)],tblCompras[Fornecedor Escolhido],C170))","v":""},{"$error":"#VALUE!"},{"$f":"IF(C170=\"\",\"\",SUMIFS(tblCompras[Economia Negociada (R$)],tblCompras[Fornecedor Escolhido],C170))","v":""},{"$error":"#VALUE!"}]
[null,null,{"$f":"IFERROR(INDEX(tblFornecedores[Fornecedor],ROW(A50)),\"\")","v":""},{"$f":"IF(C171=\"\",\"\",COUNTIFS(tblCotacoes[Fornecedor],C171))","v":""},{"$f":"IF(C171=\"\",\"\",SUMIFS(tblCotacoes[Valor Final Cotado (R$)],tblCotacoes[Fornecedor],C171))","v":""},{"$f":"IFERROR(AVERAGEIFS(tblCotacoes[Prazo Entrega (dias)],tblCotacoes[Fornecedor],C171),0)","v":{"v":0,"d":"0.0"}},{"$f":"IF(C171=\"\",\"\",COUNTIFS(tblCompras[Fornecedor Escolhido],C171))","v":""},{"$f":"IF(C171=\"\",\"\",SUMIFS(tblCompras[Valor Final Fechado (R$)],tblCompras[Fornecedor Escolhido],C171))","v":""},{"$error":"#VALUE!"},{"$f":"IF(C171=\"\",\"\",SUMIFS(tblCompras[Economia Negociada (R$)],tblCompras[Fornecedor Escolhido],C171))","v":""},{"$error":"#VALUE!"}]
[]
[null,null,"📅 RESUMO MENSAL"]
[null,null,"Mês/Ano","Início do Mês","Fim do Mês","Total Cotado (R$)","Total Comprado (R$)","Economia Negociada (R$)","Qtd Cotações","Qtd Compras"]
[null,null,"2026-01-01",{"$f":"DATE(2026,1,1)","v":"2026-01-01"},{"$f":"DATE(2026,1,31)","v":"2026-01-31"},{"$f":"SUMIFS(tblCotacoes[Valor Final Cotado (R$)],tblCotacoes[Data Cotação],\">=\"&D175,tblCotacoes[Data Cotação],\"<=\"&E175)","v":0},{"$f":"SUMIFS(tblCompras[Valor Final Fechado (R$)],tblCompras[Data Fechamento],\">=\"&D175,tblCompras[Data Fechamento],\"<=\"&E175)","v":0},{"$f":"SUMIFS(tblCompras[Economia Negociada (R$)],tblCompras[Data Fechamento],\">=\"&D175,tblCompras[Data Fechamento],\"<=\"&E175)","v":0},{"$f":"COUNTIFS(tblCotacoes[Data Cotação],\">=\"&D175,tblCotacoes[Data Cotação],\"<=\"&E175)","v":0},{"$f":"COUNTIFS(tblCompras[Data Fechamento],\">=\"&D175,tblCompras[Data Fechamento],\"<=\"&E175)","v":0}]
[null,null,"fev/2026","2026-01-01","2026-01-31",{"$f":"SUMIFS(tblCotacoes[Valor Final Cotado (R$)],tblCotacoes[Data Cotação],\">=\"&D176,tblCotacoes[Data Cotação],\"<=\"&E176)","v":0},{"$f":"SUMIFS(tblCompras[Valor Final Fechado (R$)],tblCompras[Data Fechamento],\">=\"&D176,tblCompras[Data Fechamento],\"<=\"&E176)","v":0},{"$f":"SUMIFS(tblCompras[Economia Negociada (R$)],tblCompras[Data Fechamento],\">=\"&D176,tblCompras[Data Fechamento],\"<=\"&E176)","v":0},{"$f":"COUNTIFS(tblCotacoes[Data Cotação],\">=\"&D176,tblCotacoes[Data Cotação],\"<=\"&E176)","v":0},{"$f":"COUNTIFS(tblCompras[Data Fechamento],\">=\"&D176,tblCompras[Data Fechamento],\"<=\"&E176)","v":0}]
[null,null,"2026-03-01","2026-01-01","2026-01-31",{"$f":"SUMIFS(tblCotacoes[Valor Final Cotado (R$)],tblCotacoes[Data Cotação],\">=\"&D177,tblCotacoes[Data Cotação],\"<=\"&E177)","v":0},{"$f":"SUMIFS(tblCompras[Valor Final Fechado (R$)],tblCompras[Data Fechamento],\">=\"&D177,tblCompras[Data Fechamento],\"<=\"&E177)","v":0},{"$f":"SUMIFS(tblCompras[Economia Negociada (R$)],tblCompras[Data Fechamento],\">=\"&D177,tblCompras[Data Fechamento],\"<=\"&E177)","v":0},{"$f":"COUNTIFS(tblCotacoes[Data Cotação],\">=\"&D177,tblCotacoes[Data Cotação],\"<=\"&E177)","v":0},{"$f":"COUNTIFS(tblCompras[Data Fechamento],\">=\"&D177,tblCompras[Data Fechamento],\"<=\"&E177)","v":0}]
[null,null,"abr/2026","2026-01-01","2026-01-31",{"$f":"SUMIFS(tblCotacoes[Valor Final Cotado (R$)],tblCotacoes[Data Cotação],\">=\"&D178,tblCotacoes[Data Cotação],\"<=\"&E178)","v":0},{"$f":"SUMIFS(tblCompras[Valor Final Fechado (R$)],tblCompras[Data Fechamento],\">=\"&D178,tblCompras[Data Fechamento],\"<=\"&E178)","v":0},{"$f":"SUMIFS(tblCompras[Economia Negociada (R$)],tblCompras[Data Fechamento],\">=\"&D178,tblCompras[Data Fechamento],\"<=\"&E178)","v":0},{"$f":"COUNTIFS(tblCotacoes[Data Cotação],\">=\"&D178,tblCotacoes[Data Cotação],\"<=\"&E178)","v":0},{"$f":"COUNTIFS(tblCompras[Data Fechamento],\">=\"&D178,tblCompras[Data Fechamento],\"<=\"&E178)","v":0}]
[null,null,"mai/2026","2026-01-01","2026-01-31",{"$f":"SUMIFS(tblCotacoes[Valor Final Cotado (R$)],tblCotacoes[Data Cotação],\">=\"&D179,tblCotacoes[Data Cotação],\"<=\"&E179)","v":0},{"$f":"SUMIFS(tblCompras[Valor Final Fechado (R$)],tblCompras[Data Fechamento],\">=\"&D179,tblCompras[Data Fechamento],\"<=\"&E179)","v":0},{"$f":"SUMIFS(tblCompras[Economia Negociada (R$)],tblCompras[Data Fechamento],\">=\"&D179,tblCompras[Data Fechamento],\"<=\"&E179)","v":0},{"$f":"COUNTIFS(tblCotacoes[Data Cotação],\">=\"&D179,tblCotacoes[Data Cotação],\"<=\"&E179)","v":0},{"$f":"COUNTIFS(tblCompras[Data Fechamento],\">=\"&D179,tblCompras[Data Fechamento],\"<=\"&E179)","v":0}]
[null,null,"2026-06-01","2026-01-01","2026-01-31",{"$f":"SUMIFS(tblCotacoes[Valor Final Cotado (R$)],tblCotacoes[Data Cotação],\">=\"&D180,tblCotacoes[Data Cotação],\"<=\"&E180)","v":0},{"$f":"SUMIFS(tblCompras[Valor Final Fechado (R$)],tblCompras[Data Fechamento],\">=\"&D180,tblCompras[Data Fechamento],\"<=\"&E180)","v":0},{"$f":"SUMIFS(tblCompras[Economia Negociada (R$)],tblCompras[Data Fechamento],\">=\"&D180,tblCompras[Data Fechamento],\"<=\"&E180)","v":0},{"$f":"COUNTIFS(tblCotacoes[Data Cotação],\">=\"&D180,tblCotacoes[Data Cotação],\"<=\"&E180)","v":0},{"$f":"COUNTIFS(tblCompras[Data Fechamento],\">=\"&D180,tblCompras[Data Fechamento],\"<=\"&E180)","v":0}]
[null,null,"2026-07-01","2026-01-01","2026-01-31",{"$f":"SUMIFS(tblCotacoes[Valor Final Cotado (R$)],tblCotacoes[Data Cotação],\">=\"&D181,tblCotacoes[Data Cotação],\"<=\"&E181)","v":0},{"$f":"SUMIFS(tblCompras[Valor Final Fechado (R$)],tblCompras[Data Fechamento],\">=\"&D181,tblCompras[Data Fechamento],\"<=\"&E181)","v":0},{"$f":"SUMIFS(tblCompras[Economia Negociada (R$)],tblCompras[Data Fechamento],\">=\"&D181,tblCompras[Data Fechamento],\"<=\"&E181)","v":0},{"$f":"COUNTIFS(tblCotacoes[Data Cotação],\">=\"&D181,tblCotacoes[Data Cotação],\"<=\"&E181)","v":0},{"$f":"COUNTIFS(tblCompras[Data Fechamento],\">=\"&D181,tblCompras[Data Fechamento],\"<=\"&E181)","v":0}]
[null,null,"ago/2026","2026-01-01","2026-01-31",{"$f":"SUMIFS(tblCotacoes[Valor Final Cotado (R$)],tblCotacoes[Data Cotação],\">=\"&D182,tblCotacoes[Data Cotação],\"<=\"&E182)","v":0},{"$f":"SUMIFS(tblCompras[Valor Final Fechado (R$)],tblCompras[Data Fechamento],\">=\"&D182,tblCompras[Data Fechamento],\"<=\"&E182)","v":0},{"$f":"SUMIFS(tblCompras[Economia Negociada (R$)],tblCompras[Data Fechamento],\">=\"&D182,tblCompras[Data Fechamento],\"<=\"&E182)","v":0},{"$f":"COUNTIFS(tblCotacoes[Data Cotação],\">=\"&D182,tblCotacoes[Data Cotação],\"<=\"&E182)","v":0},{"$f":"COUNTIFS(tblCompras[Data Fechamento],\">=\"&D182,tblCompras[Data Fechamento],\"<=\"&E182)","v":0}]
[null,null,"set/2026","2026-01-01","2026-01-31",{"$f":"SUMIFS(tblCotacoes[Valor Final Cotado (R$)],tblCotacoes[Data Cotação],\">=\"&D183,tblCotacoes[Data Cotação],\"<=\"&E183)","v":0},{"$f":"SUMIFS(tblCompras[Valor Final Fechado (R$)],tblCompras[Data Fechamento],\">=\"&D183,tblCompras[Data Fechamento],\"<=\"&E183)","v":0},{"$f":"SUMIFS(tblCompras[Economia Negociada (R$)],tblCompras[Data Fechamento],\">=\"&D183,tblCompras[Data Fechamento],\"<=\"&E183)","v":0},{"$f":"COUNTIFS(tblCotacoes[Data Cotação],\">=\"&D183,tblCotacoes[Data Cotação],\"<=\"&E183)","v":0},{"$f":"COUNTIFS(tblCompras[Data Fechamento],\">=\"&D183,tblCompras[Data Fechamento],\"<=\"&E183)","v":0}]
[null,null,"out/2026","2026-01-01","2026-01-31",{"$f":"SUMIFS(tblCotacoes[Valor Final Cotado (R$)],tblCotacoes[Data Cotação],\">=\"&D184,tblCotacoes[Data Cotação],\"<=\"&E184)","v":0},{"$f":"SUMIFS(tblCompras[Valor Final Fechado (R$)],tblCompras[Data Fechamento],\">=\"&D184,tblCompras[Data Fechamento],\"<=\"&E184)","v":0},{"$f":"SUMIFS(tblCompras[Economia Negociada (R$)],tblCompras[Data Fechamento],\">=\"&D184,tblCompras[Data Fechamento],\"<=\"&E184)","v":0},{"$f":"COUNTIFS(tblCotacoes[Data Cotação],\">=\"&D184,tblCotacoes[Data Cotação],\"<=\"&E184)","v":0},{"$f":"COUNTIFS(tblCompras[Data Fechamento],\">=\"&D184,tblCompras[Data Fechamento],\"<=\"&E184)","v":0}]
[null,null,"2026-11-01","2026-01-01","2026-01-31",{"$f":"SUMIFS(tblCotacoes[Valor Final Cotado (R$)],tblCotacoes[Data Cotação],\">=\"&D185,tblCotacoes[Data Cotação],\"<=\"&E185)","v":0},{"$f":"SUMIFS(tblCompras[Valor Final Fechado (R$)],tblCompras[Data Fechamento],\">=\"&D185,tblCompras[Data Fechamento],\"<=\"&E185)","v":0},{"$f":"SUMIFS(tblCompras[Economia Negociada (R$)],tblCompras[Data Fechamento],\">=\"&D185,tblCompras[Data Fechamento],\"<=\"&E185)","v":0},{"$f":"COUNTIFS(tblCotacoes[Data Cotação],\">=\"&D185,tblCotacoes[Data Cotação],\"<=\"&E185)","v":0},{"$f":"COUNTIFS(tblCompras[Data Fechamento],\">=\"&D185,tblCompras[Data Fechamento],\"<=\"&E185)","v":0}]
[null,null,"dez/2026","2026-01-01","2026-01-31",{"$f":"SUMIFS(tblCotacoes[Valor Final Cotado (R$)],tblCotacoes[Data Cotação],\">=\"&D186,tblCotacoes[Data Cotação],\"<=\"&E186)","v":0},{"$f":"SUMIFS(tblCompras[Valor Final Fechado (R$)],tblCompras[Data Fechamento],\">=\"&D186,tblCompras[Data Fechamento],\"<=\"&E186)","v":0},{"$f":"SUMIFS(tblCompras[Economia Negociada (R$)],tblCompras[Data Fechamento],\">=\"&D186,tblCompras[Data Fechamento],\"<=\"&E186)","v":0},{"$f":"COUNTIFS(tblCotacoes[Data Cotação],\">=\"&D186,tblCotacoes[Data Cotação],\"<=\"&E186)","v":0},{"$f":"COUNTIFS(tblCompras[Data Fechamento],\">=\"&D186,tblCompras[Data Fechamento],\"<=\"&E186)","v":0}]
[null,null,"2027-01-01","2026-01-01","2026-01-31",{"$f":"SUMIFS(tblCotacoes[Valor Final Cotado (R$)],tblCotacoes[Data Cotação],\">=\"&D187,tblCotacoes[Data Cotação],\"<=\"&E187)","v":0},{"$f":"SUMIFS(tblCompras[Valor Final Fechado (R$)],tblCompras[Data Fechamento],\">=\"&D187,tblCompras[Data Fechamento],\"<=\"&E187)","v":0},{"$f":"SUMIFS(tblCompras[Economia Negociada (R$)],tblCompras[Data Fechamento],\">=\"&D187,tblCompras[Data Fechamento],\"<=\"&E187)","v":0},{"$f":"COUNTIFS(tblCotacoes[Data Cotação],\">=\"&D187,tblCotacoes[Data Cotação],\"<=\"&E187)","v":0},{"$f":"COUNTIFS(tblCompras[Data Fechamento],\">=\"&D187,tblCompras[Data Fechamento],\"<=\"&E187)","v":0}]
[null,null,"fev/2027","2026-01-01","2026-01-31",{"$f":"SUMIFS(tblCotacoes[Valor Final Cotado (R$)],tblCotacoes[Data Cotação],\">=\"&D188,tblCotacoes[Data Cotação],\"<=\"&E188)","v":0},{"$f":"SUMIFS(tblCompras[Valor Final Fechado (R$)],tblCompras[Data Fechamento],\">=\"&D188,tblCompras[Data Fechamento],\"<=\"&E188)","v":0},{"$f":"SUMIFS(tblCompras[Economia Negociada (R$)],tblCompras[Data Fechamento],\">=\"&D188,tblCompras[Data Fechamento],\"<=\"&E188)","v":0},{"$f":"COUNTIFS(tblCotacoes[Data Cotação],\">=\"&D188,tblCotacoes[Data Cotação],\"<=\"&E188)","v":0},{"$f":"COUNTIFS(tblCompras[Data Fechamento],\">=\"&D188,tblCompras[Data Fechamento],\"<=\"&E188)","v":0}]
[null,null,"2027-03-01","2026-01-01","2026-01-31",{"$f":"SUMIFS(tblCotacoes[Valor Final Cotado (R$)],tblCotacoes[Data Cotação],\">=\"&D189,tblCotacoes[Data Cotação],\"<=\"&E189)","v":0},{"$f":"SUMIFS(tblCompras[Valor Final Fechado (R$)],tblCompras[Data Fechamento],\">=\"&D189,tblCompras[Data Fechamento],\"<=\"&E189)","v":0},{"$f":"SUMIFS(tblCompras[Economia Negociada (R$)],tblCompras[Data Fechamento],\">=\"&D189,tblCompras[Data Fechamento],\"<=\"&E189)","v":0},{"$f":"COUNTIFS(tblCotacoes[Data Cotação],\">=\"&D189,tblCotacoes[Data Cotação],\"<=\"&E189)","v":0},{"$f":"COUNTIFS(tblCompras[Data Fechamento],\">=\"&D189,tblCompras[Data Fechamento],\"<=\"&E189)","v":0}]
[null,null,"abr/2027","2026-01-01","2026-01-31",{"$f":"SUMIFS(tblCotacoes[Valor Final Cotado (R$)],tblCotacoes[Data Cotação],\">=\"&D190,tblCotacoes[Data Cotação],\"<=\"&E190)","v":0},{"$f":"SUMIFS(tblCompras[Valor Final Fechado (R$)],tblCompras[Data Fechamento],\">=\"&D190,tblCompras[Data Fechamento],\"<=\"&E190)","v":0},{"$f":"SUMIFS(tblCompras[Economia Negociada (R$)],tblCompras[Data Fechamento],\">=\"&D190,tblCompras[Data Fechamento],\"<=\"&E190)","v":0},{"$f":"COUNTIFS(tblCotacoes[Data Cotação],\">=\"&D190,tblCotacoes[Data Cotação],\"<=\"&E190)","v":0},{"$f":"COUNTIFS(tblCompras[Data Fechamento],\">=\"&D190,tblCompras[Data Fechamento],\"<=\"&E190)","v":0}]
[null,null,"mai/2027","2026-01-01","2026-01-31",{"$f":"SUMIFS(tblCotacoes[Valor Final Cotado (R$)],tblCotacoes[Data Cotação],\">=\"&D191,tblCotacoes[Data Cotação],\"<=\"&E191)","v":0},{"$f":"SUMIFS(tblCompras[Valor Final Fechado (R$)],tblCompras[Data Fechamento],\">=\"&D191,tblCompras[Data Fechamento],\"<=\"&E191)","v":0},{"$f":"SUMIFS(tblCompras[Economia Negociada (R$)],tblCompras[Data Fechamento],\">=\"&D191,tblCompras[Data Fechamento],\"<=\"&E191)","v":0},{"$f":"COUNTIFS(tblCotacoes[Data Cotação],\">=\"&D191,tblCotacoes[Data Cotação],\"<=\"&E191)","v":0},{"$f":"COUNTIFS(tblCompras[Data Fechamento],\">=\"&D191,tblCompras[Data Fechamento],\"<=\"&E191)","v":0}]
[null,null,"2027-06-01","2026-01-01","2026-01-31",{"$f":"SUMIFS(tblCotacoes[Valor Final Cotado (R$)],tblCotacoes[Data Cotação],\">=\"&D192,tblCotacoes[Data Cotação],\"<=\"&E192)","v":0},{"$f":"SUMIFS(tblCompras[Valor Final Fechado (R$)],tblCompras[Data Fechamento],\">=\"&D192,tblCompras[Data Fechamento],\"<=\"&E192)","v":0},{"$f":"SUMIFS(tblCompras[Economia Negociada (R$)],tblCompras[Data Fechamento],\">=\"&D192,tblCompras[Data Fechamento],\"<=\"&E192)","v":0},{"$f":"COUNTIFS(tblCotacoes[Data Cotação],\">=\"&D192,tblCotacoes[Data Cotação],\"<=\"&E192)","v":0},{"$f":"COUNTIFS(tblCompras[Data Fechamento],\">=\"&D192,tblCompras[Data Fechamento],\"<=\"&E192)","v":0}]
[null,null,"2027-07-01","2026-01-01","2026-01-31",{"$f":"SUMIFS(tblCotacoes[Valor Final Cotado (R$)],tblCotacoes[Data Cotação],\">=\"&D193,tblCotacoes[Data Cotação],\"<=\"&E193)","v":0},{"$f":"SUMIFS(tblCompras[Valor Final Fechado (R$)],tblCompras[Data Fechamento],\">=\"&D193,tblCompras[Data Fechamento],\"<=\"&E193)","v":0},{"$f":"SUMIFS(tblCompras[Economia Negociada (R$)],tblCompras[Data Fechamento],\">=\"&D193,tblCompras[Data Fechamento],\"<=\"&E193)","v":0},{"$f":"COUNTIFS(tblCotacoes[Data Cotação],\">=\"&D193,tblCotacoes[Data Cotação],\"<=\"&E193)","v":0},{"$f":"COUNTIFS(tblCompras[Data Fechamento],\">=\"&D193,tblCompras[Data Fechamento],\"<=\"&E193)","v":0}]
[null,null,"ago/2027","2026-01-01","2026-01-31",{"$f":"SUMIFS(tblCotacoes[Valor Final Cotado (R$)],tblCotacoes[Data Cotação],\">=\"&D194,tblCotacoes[Data Cotação],\"<=\"&E194)","v":0},{"$f":"SUMIFS(tblCompras[Valor Final Fechado (R$)],tblCompras[Data Fechamento],\">=\"&D194,tblCompras[Data Fechamento],\"<=\"&E194)","v":0},{"$f":"SUMIFS(tblCompras[Economia Negociada (R$)],tblCompras[Data Fechamento],\">=\"&D194,tblCompras[Data Fechamento],\"<=\"&E194)","v":0},{"$f":"COUNTIFS(tblCotacoes[Data Cotação],\">=\"&D194,tblCotacoes[Data Cotação],\"<=\"&E194)","v":0},{"$f":"COUNTIFS(tblCompras[Data Fechamento],\">=\"&D194,tblCompras[Data Fechamento],\"<=\"&E194)","v":0}]
[null,null,"set/2027","2026-01-01","2026-01-31",{"$f":"SUMIFS(tblCotacoes[Valor Final Cotado (R$)],tblCotacoes[Data Cotação],\">=\"&D195,tblCotacoes[Data Cotação],\"<=\"&E195)","v":0},{"$f":"SUMIFS(tblCompras[Valor Final Fechado (R$)],tblCompras[Data Fechamento],\">=\"&D195,tblCompras[Data Fechamento],\"<=\"&E195)","v":0},{"$f":"SUMIFS(tblCompras[Economia Negociada (R$)],tblCompras[Data Fechamento],\">=\"&D195,tblCompras[Data Fechamento],\"<=\"&E195)","v":0},{"$f":"COUNTIFS(tblCotacoes[Data Cotação],\">=\"&D195,tblCotacoes[Data Cotação],\"<=\"&E195)","v":0},{"$f":"COUNTIFS(tblCompras[Data Fechamento],\">=\"&D195,tblCompras[Data Fechamento],\"<=\"&E195)","v":0}]
[null,null,"out/2027","2026-01-01","2026-01-31",{"$f":"SUMIFS(tblCotacoes[Valor Final Cotado (R$)],tblCotacoes[Data Cotação],\">=\"&D196,tblCotacoes[Data Cotação],\"<=\"&E196)","v":0},{"$f":"SUMIFS(tblCompras[Valor Final Fechado (R$)],tblCompras[Data Fechamento],\">=\"&D196,tblCompras[Data Fechamento],\"<=\"&E196)","v":0},{"$f":"SUMIFS(tblCompras[Economia Negociada (R$)],tblCompras[Data Fechamento],\">=\"&D196,tblCompras[Data Fechamento],\"<=\"&E196)","v":0},{"$f":"COUNTIFS(tblCotacoes[Data Cotação],\">=\"&D196,tblCotacoes[Data Cotação],\"<=\"&E196)","v":0},{"$f":"COUNTIFS(tblCompras[Data Fechamento],\">=\"&D196,tblCompras[Data Fechamento],\"<=\"&E196)","v":0}]
[null,null,"2027-11-01","2026-01-01","2026-01-31",{"$f":"SUMIFS(tblCotacoes[Valor Final Cotado (R$)],tblCotacoes[Data Cotação],\">=\"&D197,tblCotacoes[Data Cotação],\"<=\"&E197)","v":0},{"$f":"SUMIFS(tblCompras[Valor Final Fechado (R$)],tblCompras[Data Fechamento],\">=\"&D197,tblCompras[Data Fechamento],\"<=\"&E197)","v":0},{"$f":"SUMIFS(tblCompras[Economia Negociada (R$)],tblCompras[Data Fechamento],\">=\"&D197,tblCompras[Data Fechamento],\"<=\"&E197)","v":0},{"$f":"COUNTIFS(tblCotacoes[Data Cotação],\">=\"&D197,tblCotacoes[Data Cotação],\"<=\"&E197)","v":0},{"$f":"COUNTIFS(tblCompras[Data Fechamento],\">=\"&D197,tblCompras[Data Fechamento],\"<=\"&E197)","v":0}]
[null,null,"dez/2027","2026-01-01","2026-01-31",{"$f":"SUMIFS(tblCotacoes[Valor Final Cotado (R$)],tblCotacoes[Data Cotação],\">=\"&D198,tblCotacoes[Data Cotação],\"<=\"&E198)","v":0},{"$f":"SUMIFS(tblCompras[Valor Final Fechado (R$)],tblCompras[Data Fechamento],\">=\"&D198,tblCompras[Data Fechamento],\"<=\"&E198)","v":0},{"$f":"SUMIFS(tblCompras[Economia Negociada (R$)],tblCompras[Data Fechamento],\">=\"&D198,tblCompras[Data Fechamento],\"<=\"&E198)","v":0},{"$f":"COUNTIFS(tblCotacoes[Data Cotação],\">=\"&D198,tblCotacoes[Data Cotação],\"<=\"&E198)","v":0},{"$f":"COUNTIFS(tblCompras[Data Fechamento],\">=\"&D198,tblCompras[Data Fechamento],\"<=\"&E198)","v":0}]

{"sheet":"08_Relatórios","index":7,"n_rows":52,"n_cols":9,"rows_kept":52,"hidden":true}
["http://authenticator.sapphirebusinesstech.com:8080/access/v1/validate"]
[]
[]
[]
[]
[null,null,"📊 DASHBOARD — ACOMPANHAMENTO DE COMPRAS"]
[null,null,"INDICADORES GERAIS"]
[]
[null,null,"Total Cotado",null,"Total Comprado",null,"Economia Negociada",null,"Solicitações"]
[null,null,{"$f":"SUM(tblCotacoes[Valor Final Cotado (R$)])","v":0},null,{"$f":"SUM(tblCompras[Valor Final Fechado (R$)])","v":0},null,{"$f":"SUM(tblCompras[Economia Negociada (R$)])","v":0},null,{"$f":"COUNTIF(tblSolicitacoes[ID Solicitação],\"<>\")","v":0}]
[]
[null,null,"Entregas no Prazo",null,"Entregas com Atraso",null,"Compras em Aberto",null,"Prazo Médio (dias)"]
[null,null,{"$f":"COUNTIF(tblCompras[Status Entrega],\"Recebida no prazo\")","v":0},null,{"$f":"COUNTIF(tblCompras[Status Entrega],\"Recebida com atraso\")","v":0},null,{"$f":"COUNTIF(tblCompras[Status Entrega],\"Em aberto\")","v":1},null,{"$f":"IFERROR(AVERAGE(tblCotacoes[Prazo Entrega (dias)]),0)","v":{"v":0,"d":"0.0"}}]
[]
[]
[null,null,"SITUAÇÃO OPERACIONAL",{"$nulls":3},"STATUS DAS SOLICITAÇÕES"]
[null,null,"Indicador","Quantidade","% do Total",null,"Status","Qtd","% Total"]
[null,null,"Compras em aberto",{"$f":"COUNTIF(tblCompras[Status Entrega],\"Em aberto\")","v":1},{"$f":"IFERROR(D18/SUM(D18:D20),0)","v":{"v":1,"d":"100.0%"}},null,"Aberta",{"$f":"COUNTIF(tblSolicitacoes[Status Solicitação],\"Aberta\")","v":0},{"$f":"IFERROR(H18/SUM(H18:H22),0)","v":{"v":0,"d":"0.0%"}}]
[null,null,"Recebidas no prazo",{"$f":"COUNTIF(tblCompras[Status Entrega],\"Recebida no prazo\")","v":0},{"$f":"IFERROR(D19/SUM(D18:D20),0)","v":{"v":0,"d":"0.0%"}},null,"Em cotação",{"$f":"COUNTIF(tblSolicitacoes[Status Solicitação],\"Em cotação\")","v":0},{"$f":"IFERROR(H19/SUM(H18:H22),0)","v":{"v":0,"d":"0.0%"}}]
[null,null,"Recebidas com atraso",{"$f":"COUNTIF(tblCompras[Status Entrega],\"Recebida com atraso\")","v":0},{"$f":"IFERROR(D20/SUM(D18:D20),0)","v":{"v":0,"d":"0.0%"}},null,"Cotação concluída",{"$f":"COUNTIF(tblSolicitacoes[Status Solicitação],\"Cotação concluída\")","v":0},{"$f":"IFERROR(H20/SUM(H18:H22),0)","v":{"v":0,"d":"0.0%"}}]
[null,null,"Total",{"$f":"SUM(D18:D20)","v":1},{"$f":"IFERROR(SUM(E18:E20),0)","v":{"v":1,"d":"100.0%"}},null,"Compra fechada",{"$f":"COUNTIF(tblSolicitacoes[Status Solicitação],\"Compra fechada\")","v":0},{"$f":"IFERROR(H21/SUM(H18:H22),0)","v":{"v":0,"d":"0.0%"}}]
[{"$nulls":6},"Cancelada",{"$f":"COUNTIF(tblSolicitacoes[Status Solicitação],\"Cancelada\")","v":0},{"$f":"IFERROR(H22/SUM(H18:H22),0)","v":{"v":0,"d":"0.0%"}}]
[]
[null,null,"RANKING DE FORNECEDORES"]
[null,null,"Fornecedor","Qtd Cotações","Valor Cotado (R$)","Prazo Médio (dias)","Compras Fechadas","Valor Comprado (R$)","Taxa Fechamento"]
[null,null,{"$f":"IF('07_Cálculos'!C122=\"\",\"\",'07_Cálculos'!C122)","v":0},{"$f":"IF('07_Cálculos'!C122=\"\",\"\",'07_Cálculos'!D122)","v":0},{"$f":"IF('07_Cálculos'!C122=\"\",\"\",'07_Cálculos'!E122)","v":0},{"$f":"IF('07_Cálculos'!C122=\"\",\"\",'07_Cálculos'!F122)","v":{"v":0,"d":"0.0"}},{"$f":"IF('07_Cálculos'!C122=\"\",\"\",'07_Cálculos'!G122)","v":0},{"$f":"IF('07_Cálculos'!C122=\"\",\"\",'07_Cálculos'!H122)","v":0},{"$f":"IF('07_Cálculos'!C122=\"\",\"\",'07_Cálculos'!I122)","v":{"v":0,"d":"0.0%"}}]
[null,null,{"$f":"IF('07_Cálculos'!C123=\"\",\"\",'07_Cálculos'!C123)","v":""},{"$f":"IF('07_Cálculos'!C123=\"\",\"\",'07_Cálculos'!D123)","v":""},{"$f":"IF('07_Cálculos'!C123=\"\",\"\",'07_Cálculos'!E123)","v":""},{"$f":"IF('07_Cálculos'!C123=\"\",\"\",'07_Cálculos'!F123)","v":""},{"$f":"IF('07_Cálculos'!C123=\"\",\"\",'07_Cálculos'!G123)","v":""},{"$f":"IF('07_Cálculos'!C123=\"\",\"\",'07_Cálculos'!H123)","v":""},{"$f":"IF('07_Cálculos'!C123=\"\",\"\",'07_Cálculos'!I123)","v":""}]
[null,null,{"$f":"IF('07_Cálculos'!C124=\"\",\"\",'07_Cálculos'!C124)","v":""},{"$f":"IF('07_Cálculos'!C124=\"\",\"\",'07_Cálculos'!D124)","v":""},{"$f":"IF('07_Cálculos'!C124=\"\",\"\",'07_Cálculos'!E124)","v":""},{"$f":"IF('07_Cálculos'!C124=\"\",\"\",'07_Cálculos'!F124)","v":""},{"$f":"IF('07_Cálculos'!C124=\"\",\"\",'07_Cálculos'!G124)","v":""},{"$f":"IF('07_Cálculos'!C124=\"\",\"\",'07_Cálculos'!H124)","v":""},{"$f":"IF('07_Cálculos'!C124=\"\",\"\",'07_Cálculos'!I124)","v":""}]
[null,null,{"$f":"IF('07_Cálculos'!C125=\"\",\"\",'07_Cálculos'!C125)","v":""},{"$f":"IF('07_Cálculos'!C125=\"\",\"\",'07_Cálculos'!D125)","v":""},{"$f":"IF('07_Cálculos'!C125=\"\",\"\",'07_Cálculos'!E125)","v":""},{"$f":"IF('07_Cálculos'!C125=\"\",\"\",'07_Cálculos'!F125)","v":""},{"$f":"IF('07_Cálculos'!C125=\"\",\"\",'07_Cálculos'!G125)","v":""},{"$f":"IF('07_Cálculos'!C125=\"\",\"\",'07_Cálculos'!H125)","v":""},{"$f":"IF('07_Cálculos'!C125=\"\",\"\",'07_Cálculos'!I125)","v":""}]
[null,null,{"$f":"IF('07_Cálculos'!C126=\"\",\"\",'07_Cálculos'!C126)","v":""},{"$f":"IF('07_Cálculos'!C126=\"\",\"\",'07_Cálculos'!D126)","v":""},{"$f":"IF('07_Cálculos'!C126=\"\",\"\",'07_Cálculos'!E126)","v":""},{"$f":"IF('07_Cálculos'!C126=\"\",\"\",'07_Cálculos'!F126)","v":""},{"$f":"IF('07_Cálculos'!C126=\"\",\"\",'07_Cálculos'!G126)","v":""},{"$f":"IF('07_Cálculos'!C126=\"\",\"\",'07_Cálculos'!H126)","v":""},{"$f":"IF('07_Cálculos'!C126=\"\",\"\",'07_Cálculos'!I126)","v":""}]
[null,null,{"$f":"IF('07_Cálculos'!C127=\"\",\"\",'07_Cálculos'!C127)","v":""},{"$f":"IF('07_Cálculos'!C127=\"\",\"\",'07_Cálculos'!D127)","v":""},{"$f":"IF('07_Cálculos'!C127=\"\",\"\",'07_Cálculos'!E127)","v":""},{"$f":"IF('07_Cálculos'!C127=\"\",\"\",'07_Cálculos'!F127)","v":""},{"$f":"IF('07_Cálculos'!C127=\"\",\"\",'07_Cálculos'!G127)","v":""},{"$f":"IF('07_Cálculos'!C127=\"\",\"\",'07_Cálculos'!H127)","v":""},{"$f":"IF('07_Cálculos'!C127=\"\",\"\",'07_Cálculos'!I127)","v":""}]
[null,null,{"$f":"IF('07_Cálculos'!C128=\"\",\"\",'07_Cálculos'!C128)","v":""},{"$f":"IF('07_Cálculos'!C128=\"\",\"\",'07_Cálculos'!D128)","v":""},{"$f":"IF('07_Cálculos'!C128=\"\",\"\",'07_Cálculos'!E128)","v":""},{"$f":"IF('07_Cálculos'!C128=\"\",\"\",'07_Cálculos'!F128)","v":""},{"$f":"IF('07_Cálculos'!C128=\"\",\"\",'07_Cálculos'!G128)","v":""},{"$f":"IF('07_Cálculos'!C128=\"\",\"\",'07_Cálculos'!H128)","v":""},{"$f":"IF('07_Cálculos'!C128=\"\",\"\",'07_Cálculos'!I128)","v":""}]
[null,null,{"$f":"IF('07_Cálculos'!C129=\"\",\"\",'07_Cálculos'!C129)","v":""},{"$f":"IF('07_Cálculos'!C129=\"\",\"\",'07_Cálculos'!D129)","v":""},{"$f":"IF('07_Cálculos'!C129=\"\",\"\",'07_Cálculos'!E129)","v":""},{"$f":"IF('07_Cálculos'!C129=\"\",\"\",'07_Cálculos'!F129)","v":""},{"$f":"IF('07_Cálculos'!C129=\"\",\"\",'07_Cálculos'!G129)","v":""},{"$f":"IF('07_Cálculos'!C129=\"\",\"\",'07_Cálculos'!H129)","v":""},{"$f":"IF('07_Cálculos'!C129=\"\",\"\",'07_Cálculos'!I129)","v":""}]
[null,null,{"$f":"IF('07_Cálculos'!C130=\"\",\"\",'07_Cálculos'!C130)","v":""},{"$f":"IF('07_Cálculos'!C130=\"\",\"\",'07_Cálculos'!D130)","v":""},{"$f":"IF('07_Cálculos'!C130=\"\",\"\",'07_Cálculos'!E130)","v":""},{"$f":"IF('07_Cálculos'!C130=\"\",\"\",'07_Cálculos'!F130)","v":""},{"$f":"IF('07_Cálculos'!C130=\"\",\"\",'07_Cálculos'!G130)","v":""},{"$f":"IF('07_Cálculos'!C130=\"\",\"\",'07_Cálculos'!H130)","v":""},{"$f":"IF('07_Cálculos'!C130=\"\",\"\",'07_Cálculos'!I130)","v":""}]
[null,null,{"$f":"IF('07_Cálculos'!C131=\"\",\"\",'07_Cálculos'!C131)","v":""},{"$f":"IF('07_Cálculos'!C131=\"\",\"\",'07_Cálculos'!D131)","v":""},{"$f":"IF('07_Cálculos'!C131=\"\",\"\",'07_Cálculos'!E131)","v":""},{"$f":"IF('07_Cálculos'!C131=\"\",\"\",'07_Cálculos'!F131)","v":""},{"$f":"IF('07_Cálculos'!C131=\"\",\"\",'07_Cálculos'!G131)","v":""},{"$f":"IF('07_Cálculos'!C131=\"\",\"\",'07_Cálculos'!H131)","v":""},{"$f":"IF('07_Cálculos'!C131=\"\",\"\",'07_Cálculos'!I131)","v":""}]
[]
[null,null,"TOP SOLICITAÇÕES — ECONOMIA OBTIDA"]
[null,null,"ID Solicitação","Menor Cotação (R$)","Maior Cotação (R$)","Economia Potencial (R$)","Valor Fechado (R$)","Economia Real (R$)","Situação"]
[null,null,{"$f":"IF('07_Cálculos'!C19=\"\",\"\",'07_Cálculos'!C19)","v":0},{"$f":"IF('07_Cálculos'!C19=\"\",\"\",'07_Cálculos'!E19)","v":0},{"$f":"IF('07_Cálculos'!C19=\"\",\"\",'07_Cálculos'!F19)","v":0},{"$f":"IF('07_Cálculos'!C19=\"\",\"\",'07_Cálculos'!G19)","v":0},{"$f":"IF('07_Cálculos'!C19=\"\",\"\",'07_Cálculos'!H19)","v":0},{"$f":"IF('07_Cálculos'!C19=\"\",\"\",'07_Cálculos'!I19)","v":0},{"$f":"IF('07_Cálculos'!C19=\"\",\"\",'07_Cálculos'!K19)","v":"Em aberto"}]
[null,null,{"$f":"IF('07_Cálculos'!C20=\"\",\"\",'07_Cálculos'!C20)","v":""},{"$f":"IF('07_Cálculos'!C20=\"\",\"\",'07_Cálculos'!E20)","v":""},{"$f":"IF('07_Cálculos'!C20=\"\",\"\",'07_Cálculos'!F20)","v":""},{"$f":"IF('07_Cálculos'!C20=\"\",\"\",'07_Cálculos'!G20)","v":""},{"$f":"IF('07_Cálculos'!C20=\"\",\"\",'07_Cálculos'!H20)","v":""},{"$f":"IF('07_Cálculos'!C20=\"\",\"\",'07_Cálculos'!I20)","v":""},{"$f":"IF('07_Cálculos'!C20=\"\",\"\",'07_Cálculos'!K20)","v":""}]
[null,null,{"$f":"IF('07_Cálculos'!C21=\"\",\"\",'07_Cálculos'!C21)","v":""},{"$f":"IF('07_Cálculos'!C21=\"\",\"\",'07_Cálculos'!E21)","v":""},{"$f":"IF('07_Cálculos'!C21=\"\",\"\",'07_Cálculos'!F21)","v":""},{"$f":"IF('07_Cálculos'!C21=\"\",\"\",'07_Cálculos'!G21)","v":""},{"$f":"IF('07_Cálculos'!C21=\"\",\"\",'07_Cálculos'!H21)","v":""},{"$f":"IF('07_Cálculos'!C21=\"\",\"\",'07_Cálculos'!I21)","v":""},{"$f":"IF('07_Cálculos'!C21=\"\",\"\",'07_Cálculos'!K21)","v":""}]
[null,null,{"$f":"IF('07_Cálculos'!C22=\"\",\"\",'07_Cálculos'!C22)","v":""},{"$f":"IF('07_Cálculos'!C22=\"\",\"\",'07_Cálculos'!E22)","v":""},{"$f":"IF('07_Cálculos'!C22=\"\",\"\",'07_Cálculos'!F22)","v":""},{"$f":"IF('07_Cálculos'!C22=\"\",\"\",'07_Cálculos'!G22)","v":""},{"$f":"IF('07_Cálculos'!C22=\"\",\"\",'07_Cálculos'!H22)","v":""},{"$f":"IF('07_Cálculos'!C22=\"\",\"\",'07_Cálculos'!I22)","v":""},{"$f":"IF('07_Cálculos'!C22=\"\",\"\",'07_Cálculos'!K22)","v":""}]
[null,null,{"$f":"IF('07_Cálculos'!C23=\"\",\"\",'07_Cálculos'!C23)","v":""},{"$f":"IF('07_Cálculos'!C23=\"\",\"\",'07_Cálculos'!E23)","v":""},{"$f":"IF('07_Cálculos'!C23=\"\",\"\",'07_Cálculos'!F23)","v":""},{"$f":"IF('07_Cálculos'!C23=\"\",\"\",'07_Cálculos'!G23)","v":""},{"$f":"IF('07_Cálculos'!C23=\"\",\"\",'07_Cálculos'!H23)","v":""},{"$f":"IF('07_Cálculos'!C23=\"\",\"\",'07_Cálculos'!I23)","v":""},{"$f":"IF('07_Cálculos'!C23=\"\",\"\",'07_Cálculos'!K23)","v":""}]
[null,null,{"$f":"IF('07_Cálculos'!C24=\"\",\"\",'07_Cálculos'!C24)","v":""},{"$f":"IF('07_Cálculos'!C24=\"\",\"\",'07_Cálculos'!E24)","v":""},{"$f":"IF('07_Cálculos'!C24=\"\",\"\",'07_Cálculos'!F24)","v":""},{"$f":"IF('07_Cálculos'!C24=\"\",\"\",'07_Cálculos'!G24)","v":""},{"$f":"IF('07_Cálculos'!C24=\"\",\"\",'07_Cálculos'!H24)","v":""},{"$f":"IF('07_Cálculos'!C24=\"\",\"\",'07_Cálculos'!I24)","v":""},{"$f":"IF('07_Cálculos'!C24=\"\",\"\",'07_Cálculos'!K24)","v":""}]
[null,null,{"$f":"IF('07_Cálculos'!C25=\"\",\"\",'07_Cálculos'!C25)","v":""},{"$f":"IF('07_Cálculos'!C25=\"\",\"\",'07_Cálculos'!E25)","v":""},{"$f":"IF('07_Cálculos'!C25=\"\",\"\",'07_Cálculos'!F25)","v":""},{"$f":"IF('07_Cálculos'!C25=\"\",\"\",'07_Cálculos'!G25)","v":""},{"$f":"IF('07_Cálculos'!C25=\"\",\"\",'07_Cálculos'!H25)","v":""},{"$f":"IF('07_Cálculos'!C25=\"\",\"\",'07_Cálculos'!I25)","v":""},{"$f":"IF('07_Cálculos'!C25=\"\",\"\",'07_Cálculos'!K25)","v":""}]
[null,null,{"$f":"IF('07_Cálculos'!C26=\"\",\"\",'07_Cálculos'!C26)","v":""},{"$f":"IF('07_Cálculos'!C26=\"\",\"\",'07_Cálculos'!E26)","v":""},{"$f":"IF('07_Cálculos'!C26=\"\",\"\",'07_Cálculos'!F26)","v":""},{"$f":"IF('07_Cálculos'!C26=\"\",\"\",'07_Cálculos'!G26)","v":""},{"$f":"IF('07_Cálculos'!C26=\"\",\"\",'07_Cálculos'!H26)","v":""},{"$f":"IF('07_Cálculos'!C26=\"\",\"\",'07_Cálculos'!I26)","v":""},{"$f":"IF('07_Cálculos'!C26=\"\",\"\",'07_Cálculos'!K26)","v":""}]
[null,null,{"$f":"IF('07_Cálculos'!C27=\"\",\"\",'07_Cálculos'!C27)","v":""},{"$f":"IF('07_Cálculos'!C27=\"\",\"\",'07_Cálculos'!E27)","v":""},{"$f":"IF('07_Cálculos'!C27=\"\",\"\",'07_Cálculos'!F27)","v":""},{"$f":"IF('07_Cálculos'!C27=\"\",\"\",'07_Cálculos'!G27)","v":""},{"$f":"IF('07_Cálculos'!C27=\"\",\"\",'07_Cálculos'!H27)","v":""},{"$f":"IF('07_Cálculos'!C27=\"\",\"\",'07_Cálculos'!I27)","v":""},{"$f":"IF('07_Cálculos'!C27=\"\",\"\",'07_Cálculos'!K27)","v":""}]
[null,null,{"$f":"IF('07_Cálculos'!C28=\"\",\"\",'07_Cálculos'!C28)","v":""},{"$f":"IF('07_Cálculos'!C28=\"\",\"\",'07_Cálculos'!E28)","v":""},{"$f":"IF('07_Cálculos'!C28=\"\",\"\",'07_Cálculos'!F28)","v":""},{"$f":"IF('07_Cálculos'!C28=\"\",\"\",'07_Cálculos'!G28)","v":""},{"$f":"IF('07_Cálculos'!C28=\"\",\"\",'07_Cálculos'!H28)","v":""},{"$f":"IF('07_Cálculos'!C28=\"\",\"\",'07_Cálculos'!I28)","v":""},{"$f":"IF('07_Cálculos'!C28=\"\",\"\",'07_Cálculos'!K28)","v":""}]
[null,null,{"$f":"'07_Cálculos'!C183","v":"set/2026"},{"$f":"'07_Cálculos'!F183","v":{"v":0,"d":"R£ .00000"}},{"$f":"'07_Cálculos'!G183","v":{"v":0,"d":"R£ .00000"}},{"$f":"'07_Cálculos'!H183","v":{"v":0,"d":"R£ .00000"}},null,{"$f":"'07_Cálculos'!C183","v":"set/2026"},{"$f":"'07_Cálculos'!H183","v":{"v":0,"d":"R£ .00000"}}]
[null,null,{"$f":"'07_Cálculos'!C184","v":"out/2026"},{"$f":"'07_Cálculos'!F184","v":{"v":0,"d":"R£ .00000"}},{"$f":"'07_Cálculos'!G184","v":{"v":0,"d":"R£ .00000"}},{"$f":"'07_Cálculos'!H184","v":{"v":0,"d":"R£ .00000"}},null,{"$f":"'07_Cálculos'!C184","v":"out/2026"},{"$f":"'07_Cálculos'!H184","v":{"v":0,"d":"R£ .00000"}}]
[null,null,{"$f":"'07_Cálculos'!C185","v":"2026-11-01"},{"$f":"'07_Cálculos'!F185","v":{"v":0,"d":"R£ .00000"}},{"$f":"'07_Cálculos'!G185","v":{"v":0,"d":"R£ .00000"}},{"$f":"'07_Cálculos'!H185","v":{"v":0,"d":"R£ .00000"}},null,{"$f":"'07_Cálculos'!C185","v":"2026-11-01"},{"$f":"'07_Cálculos'!H185","v":{"v":0,"d":"R£ .00000"}}]
[null,null,{"$f":"'07_Cálculos'!C186","v":"dez/2026"},{"$f":"'07_Cálculos'!F186","v":{"v":0,"d":"R£ .00000"}},{"$f":"'07_Cálculos'!G186","v":{"v":0,"d":"R£ .00000"}},{"$f":"'07_Cálculos'!H186","v":{"v":0,"d":"R£ .00000"}},null,{"$f":"'07_Cálculos'!C186","v":"dez/2026"},{"$f":"'07_Cálculos'!H186","v":{"v":0,"d":"R£ .00000"}}]